Workbook

Sheet Plantilla
A1: ÀREA
A3: Components
A6: Assignació CAIB
B7: Component i Inversió | C7: ASSIGNACIÓ 2020 | D7: ASSIGNACIÓ 2021 | E7: ASSIGNACIÓ 2022 | F7: ASSIGNACIÓ 2023 | G7: ASSIGNACIÓ 2024 | H7: ASSIGNACIÓ 2025 | I7: ASSIGNACIÓ 2026 | J7: TOTAL
A10: Instruments CAIB
B11: Component + Inversió | C11: Descripció | D11: Mobilitzat | E11: Executat | F11: Beneficiaris | G11: Anàlisi riscs
B14: COMP + INV | C14: Fons assignats | D14: Mobilitzat | E14: Excutat | F14: % Iniciada mobilització s/assignat | G14: % Executat s/ mobilitzat | H14: % Executat s/ assignat
A17: Instruments AGE
B18: Component + Inversió | C18: Descripció | D18: Executat | E18: Beneficiaris | F18: Dades beneficiaris

Sheet MACROS
J2: 1º | Q2: Ajudes Errors i format
A3: 2º
F4: 3º
Q6: Recordar mostrar les files y columnes ocultes a compromisos
Q7: Insertar components de Compromisos en la pestanya AUX de la B20 cap a baix.
Q8: B20→ | R8: COMPONENTS
A9: 4º | R9: C01. | S9: C01. Pla de xoc de mobilitat sostenible, segura i connectada a entorns urbans i metropolitans
H10: 5º | R10: C02. | S10: C02. Pla de rehabilitació d'habitatge i regeneració urbana
R11: C03. | S11: C03. Transformació ambiental i digital del sistema agroalimentari i pesquer
R12: C04. | S12: C04. Conservació i restauració d'ecosistemes i biodiversitat
R13: C05. | S13: C05. Preservació de lespai litoral i els recursos hídrics
R14: C06. | S14: C06. Mobilitat sostenible, segura i connectada
A15: 6º | R15: C07. | S15: C07. Desplegament i integració d'energies renovables
R16: C08. | S16: C08. Infraestructures elèctriques, promoció de xarxes intel·ligents i desplegament de la flexibilitat i l'emmagatzematge
R17: C09. | S17: C09. Full de ruta de l'hidrogen renovable i la seva integració sectorial
R18: C10. | S18: C10. Estratègia de Transició Justa
R19: C11. | S19: C11. Modernització de les administracions públiques
R20: C12. | S20: C12. Política Industrial Espanya 2030
R21: C13. | S21: C13. Impuls a la pime
R22: C14. | S22: C14. Pla de modernització i competitivitat del sector turístic
R23: C15. | S23: C15. Connectivitat Digital, impuls de la ciberseguretat i desplegament del 5G
R24: C16. | S24: C16. Estratègia Nacional dIntel·ligència Artificial
R25: C17. | S25: C17. Reforma institucional i enfortiment de les capacitats del sistema nacional de ciència, tecnologia i innovació
R26: C18. | S26: C18. Renovació i ampliació de les capacitats del Sistema Nacional de Salut
R27: C19. | S27: C19. Pla Nacional de Competències Digitals (digital skills)
R28: C20. | S28: C20. Pla estratègic d'impuls de la formació professional
R29: C21. | S29: C21. Modernització i digitalització del sistema educatiu, inclosa l'educació primerenca de 0 a 3 anys
R30: C22. | S30: C22. Pla de xoc per a l'economia de les cures i el reforçament de les polítiques d'inclusió
R31: C23. | S31: C23. Noves polítiques públiques per a un mercat de treball dinàmic, resilient i inclusiu
R32: C24. | S32: C24. Revaloració de la indústria cultural
R33: C25. | S33: C25. Espanya hub audiovisual d'Europa (Spain AVS Hub)
R34: C26. | S34: C26. Pla de foment del sector de l'esport
R35: C27. | S35: C27. Mesures i actuacions de prevenció i lluita contra el frau fiscal
R36: C28. | S36: C28. Adaptació del sistema impositiu a la realitat del segle XXI
R37: C29. | S37: C29. Millora de l'eficàcia de la despesa pública
R38: C30. | S38: C30. Sostenibilitat a llarg termini del sistema públic de pensions en el marc del Pacte de Toledo
R39: C31. | S39: C31. Autoconsum. Renovable, emmagatzematge darrera del comptador i comunitats energètiques.
R40: C15+C19 | S40: Creació d’una càtedra de ciberseguretat turística per comentar l’ecosistema innovador vinculat a empreses i universitats

Sheet AUX
A2: Energia
A3: Educació
A4: Ocupació
A5: Cultura
A6: Mobilitat
A7: Medi ambient
A8: Serveis socials
A9: Turisme
A10: Agricultura i pesca
A11: Esports
A12: R+D+I
A13: Digitalització
A14: Habitatge
A15: PIME
A16: Salut
A17: Igualtat
B20: COMPONENTS
B21: C01. | C21: C01. Pla de xoc de mobilitat sostenible, segura i connectada a entorns urbans i metropolitans
B22: C02. | C22: C02. Pla de rehabilitació d'habitatge i regeneració urbana
B23: C03. | C23: C03. Transformació ambiental i digital del sistema agroalimentari i pesquer
B24: C04. | C24: C04. Conservació i restauració d'ecosistemes i biodiversitat
B25: C05. | C25: C05. Preservació de lespai litoral i els recursos hídrics
B26: C06. | C26: C06. Mobilitat sostenible, segura i connectada
B27: C07. | C27: C07. Desplegament i integració d'energies renovables
B28: C08. | C28: C08. Infraestructures elèctriques, promoció de xarxes intel·ligents i desplegament de la flexibilitat i l'emmagatzematge
B29: C09. | C29: C09. Full de ruta de l'hidrogen renovable i la seva integració sectorial
B30: C10. | C30: C10. Estratègia de Transició Justa
B31: C11. | C31: C11. Modernització de les administracions públiques
B32: C12. | C32: C12. Política Industrial Espanya 2030
B33: C13. | C33: C13. Impuls a la pime
B34: C14. | C34: C14. Pla de modernització i competitivitat del sector turístic
B35: C15. | C35: C15. Connectivitat Digital, impuls de la ciberseguretat i desplegament del 5G
B36: C16. | C36: C16. Estratègia Nacional dIntel·ligència Artificial
B37: C17. | C37: C17. Reforma institucional i enfortiment de les capacitats del sistema nacional de ciència, tecnologia i innovació
B38: C18. | C38: C18. Renovació i ampliació de les capacitats del Sistema Nacional de Salut
B39: C19. | C39: C19. Pla Nacional de Competències Digitals (digital skills)
B40: C20. | C40: C20. Pla estratègic d'impuls de la formació professional
B41: C21. | C41: C21. Modernització i digitalització del sistema educatiu, inclosa l'educació primerenca de 0 a 3 anys
B42: C22. | C42: C22. Pla de xoc per a l'economia de les cures i el reforçament de les polítiques d'inclusió
B43: C23. | C43: C23. Noves polítiques públiques per a un mercat de treball dinàmic, resilient i inclusiu
B44: C24. | C44: C24. Revaloració de la indústria cultural
B45: C25. | C45: C25. Espanya hub audiovisual d'Europa (Spain AVS Hub)
B46: C26. | C46: C26. Pla de foment del sector de l'esport
B47: C27. | C47: C27. Mesures i actuacions de prevenció i lluita contra el frau fiscal
B48: C28. | C48: C28. Adaptació del sistema impositiu a la realitat del segle XXI
B49: C29. | C49: C29. Millora de l'eficàcia de la despesa pública
B50: C30. | C50: C30. Sostenibilitat a llarg termini del sistema públic de pensions en el marc del Pacte de Toledo
B51: C31. | C51: C31. Autoconsum. Renovable, emmagatzematge darrera del comptador i comunitats energètiques.
B52: C15+C19 | C52: Creació d’una càtedra de ciberseguretat turística per comentar l’ecosistema innovador vinculat a empreses i universitats

Sheet Compromisos
A1: CONSELLERIA | B1: ÀREA | C1: CONFERÈNCIA | D1: DATA | E1: ESTAT | F1: CATALOGACIO ESTAT | G1: COMPONENT | H1: INVERSIÓ | I1: ACORD | J1: IMPORT TOTAL | K1: ASSIGNACIO 2020 | L1: ASSIGNACIO 2021 | M1: ASSIGNACIO 2022 | N1: ASSIGNACIO 2023 | O1: ASSIGNACIO 2024 | P1: ASSINGACIO 2025 | Q1: ASSIGNACIO 2026 | R1: GESTIÓ ECO CAIB | S1: REINTEGRAMENTS / NO ACCEPTACIÓ | T1: Codi FF | U1: Estratègia | V1: Pressupost 2021 (generat) | W1: Pressupost 2022 inicial | X1: Pressupost 2022 definitiu | Y1: Pressupost 2023 inicial | Z1: Pressupost 2023 definitiu | AA1: Ingressat 2021-2023 | AB1: MINISTERI | AC1: TOTAL ESTATAL | AD1: % RESPECTE TOTAL ESTATAL | AE1: Criteri de distribució | AF1: OBSERVACIONS/CALENDARI | AG1: INFORMACIÓ ADDICIONAL PROJECTE | AH1: FORMA D’EXECUCIÓ | AI1: TERMINI D’EXECUCIÓ | AJ1: AC | AK1: DATA PROPERA FITA | AL1: DESCRIPCIÓ PROPERA FITA | AM1: JUSTIFICACIÓ | AN1: INDICADORS | AO1: ADMINISTRACIÓ/UNITATS EXECUTORES PREVISTES | AP1: TÈCNIC DE CONTACTE | AQ1: OBSERVACIONS/RISCOS
A2: Conselleria de Turisme, Cultura i Esports | B2: Esports | C2: Conferència Sectorial d’Esports | D2: 2022-07-18 | E2: Aprovat/Acord de Conferència Sectorial definitiu | F2: Protecció social | G2: C26. | H2: C26.I01. | I2: C26.I01.P02. Millorar la resiliència, accessibilitat i eficàcia dels sistemes de salut i atenció, la seva accesibilitat i la seva preparació per a situacions de crisi. | J2: =SUM(K2:Q2) -> 308517.24 | M2: 308517.24 | R2: SI | T2: MR077 | U2: E11 | Y2: 308518 | AA2: =+M2 -> 308517.24 | AB2: Ministeri de Cultura i Esport | AC2: 9000000 | AD2: =J2/AC2 -> 0.03427969333 | AE2: Criteris de distribució: 1) Cohesió territorial (fixe de 100,000 € per cada CCAA), 2) Proposta de criteris subvencionables lligats al territori (percentatge de població, nombre de municipis, insularitat, «España despoblada», nombre de centres de salut/consultors locals), 3) Proposta de criteris subvencionables lligats a l’execució del Projecte (educadors físics i esportius, personal sanitari, nombre de municipis, nombre de persones). | AF2: Informació de la Comissió Sectorial de l’Esport. 03/05/2022: Autorització Cministres. 09/05/2022: Acord CS. 18/07/2022: Publicacio acord BOE. 13/09/2022: Ingrés Tresoreria. 02/10/2023: Aprobació de l’Addenda espanyola per la Comissió Europea. Modficació del termini d’execució per a l’objectiu CID 370: T3 del 2025 | AG2: Publicacio BOE Acord CS. | AH2: Conveni Conselleria Afers Socials, Salut i Ib-Salut. Convocatòria de subvencions per a EELL per la creació d’Unitats Actives d’Exercici Físic (BOIB 87 de 27.06.2023), C26.I01.P02. | AI2: 2025-09-30 | AJ2: Objectiu CID 370: Meta 1: Aprovació en la CCAA d’un Pla de prescripció de activitat i exercici físic. Meta 2: disposar d’un sistema/eina digital que doni suport al Pla de prescripció. Meta 3: Disposar de curs de formació específica en programes d’activitat i exercici físic saludables, per el colectiu d’educadors físics i esportius. Meta 4: Formar, abans de 31/12/2023, 43 educadors físics esportius colegiats en programes dactivitat i exercici físic saludables. Meta 5: disposar de curs de formació en prescripció de l’exercici físic per a personal sanitari. Meta 6: abans de 31 de desembre de 2023 , formar a 68 persones entre metges d’atenció primària i personal d’infermeria d’atenció primària. Meta 7: abans de 31/12/23, disposar d’UAEF (Unitats Actives d’Exercici Físic) a 5 municipis. Meta 8: 117 participants als programes UAEF. Ampliació del termini d’execució fins al 30/09/2025. | AK2: 2023-12-31 | AL2: 1) Trimestralment. Informació sobre l’estat de desenvolupament del Pla, en el qual s’inclogui, entre d’altres, informació sobre l’execució, cumpliment de les fites i objectius, cost real esperat respecte l’inicialment estimat, cost individualitzat per inversió i cost de la mesura, forma d’implementació i mecanismes de control per a la seva correcta execució. També cal presentar un informe justificatiu final, a efectes de liquidació en el qual s’avaluin les dades anteriors, així com altres que siguin sol·licitats per les autoritats nacionals o comunitàries. | AN2: Meta 1: Aprovació en la CCAA d’un Pla de prescripció de activitat i exercici físic. Meta 2: disposar d’un sistema/eina digital que doni suport al Pla de prescripció. Meta 3: Disposar de curs de formació específica en programes d’activitat i exercici físic saludables, per el colectiu d’educadors físics i esportius. Meta 4: Formar, abans de 31/12/2023, 43 educadors físics esportius colegiats en programes dactivitat i exercici físic saludables. Meta 5; disposar de curs de formació en prescripció de l’exercici físic per a personal sanitari. Meta 6. abans de 31 de desembre de 2023 , formar a 68 persones entre metges d’atenció primària i personal d’infermeria d’atenció primària. Meta 7: abans de 31/12/23, disposar d’UAEF (Unitats Activves d’Exercici Físic) a 5 municipis. Meta 8: 117 participants als programes UAEF | AO2: Dirección General de Deportes | AP2: Toni Amengual | AQ2: Conveni Conselleria Afers Socials, Salut i Ib-Salut. Convocatòria de subvencions per a EELL per la creació d’Unitats Actives d’Exercici Físic (BOIB 87 de 27.06.2023), C26.I01.P02. Trauran una nova convocatòria
A3: Conselleria de Turisme, Cultura i Esports | B3: Esports | C3: Conferència Sectorial d’Esports | D3: 2022-08-05 | E3: Aprovat/Acord de Conferència Sectorial definitiu | F3: Protecció social | G3: C26. | H3: C26.I03. | I3: C26.I03.P01.S16. Promoció de la igualtat en l’esport. | J3: 566193.42 | M3: 439669.75 | N3: 126523.67 | R3: SI | T3: MR040 | U3: E04 | Y3: 566194 | Z3: 566194 | AA3: =+M3+N3 -> 566193.42 | AB3: Ministeri de Cultura i Esport | AC3: 17900000 | AD3: =J3/AC3 -> 0.03163091732 | AE3: Criteris de distribució: 1) 20% cada un: (població, persones amb discapacitat, centres educatius no universitaris, federacions). 2) 5% densitat de població. 3) 15% Cohesió territorial. | AF3: 14/06/2022: Autorització CM. L’Acord no especifica imports per CCAA (tenim un esborrany d’acord de distribució previ). 02/08/2022: Acord CS (BOE 187 de 5.08.2022). 13/09/2022: Ingrés Tresoreria anualitat 2022. 05/05/2023: Ingrés Tresoreria anualitat 2023. | AG3: Actuacions de promoció, formació i sensibilització. Acord CS BOE 187 5/8/22 | AH3: Convocatòria subvencions formació esportiva dones, adquisició material adaptat i foment igualtat gènere i inclusió publicades + Subvenció directa al Consell Insular de Menorca | AI3: 2023-09-30 | AJ3: Objectiu CID 375: Accions per promoure la presència de les dones en l’esport professional. 1 programa mínim exigit. | AK3: 2023-06-30 | AL3: 1 programa mínim exigit. Informació trimestral sobre l’estat de tramitació dels expedients, en el qual s’ha d’incloure, informació sobre l’execució, cumpliment de fites i objectius, cost real esperat respecte de l’inicialment estimat, cost individualitzat per inversió i cost individualitzat per mesura, manera d’implementació i mecanismes de control per a la seva correcta execució. Informe justificatiu final a efectes de liquidació evaluant les dades anteriors, així com altres que siguin sol·licitats per les autoritats nacionals i comunitàries. | AM3: 2024-03-31 | AO3: Dirección General de Deportes | AP3: Toni Amengual | AQ3: Convocatòria subvencions formació esportiva dones, adquisició material adaptat i foment igualtat gènere i inclusió publicades + Subvenció directa al Consell Insular de Menorca
A4: Conselleria de Turisme, Cultura i Esports | B4: Esports | C4: Conferència Sectorial d’Esports | D4: 2023-12-22 | E4: Aprovat/Acord de Conferència Sectorial definitiu | F4: Esports | G4: C26. | H4: C26.I01. | I4: C26.I01.P02. Digitalització centres de tecnificació | J4: 757918.93 | N4: 757918.93 | R4: SI | AB4: Ministeri de Cultura i Esport | AF4: Fons arribaran el 2024 | AH4: Convocatòria subvencions ajuntaments | AI4: 2025-09-30 | AJ4: 3 centres
A5: Conselleria de Turisme, Cultura i Esports | B5: Esports | C5: Conferència Sectorial d’Esports | D5: 2023-12-22 | E5: Aprovat/Acord de Conferència Sectorial definitiu | F5: Esports | G5: C26. | H5: C26.I02. | I5: C26.I02.P03. Promoció de l’activitat física i de la salut en zones despoblades. Red PAFER | J5: 79600 | N5: 79600 | R5: SI | AB5: Ministeri de Cultura i Esport | AF5: Pendent correcció import. Fons arribaran el 2024 | AH5: Municipis menors de 20.000 habitants. Transferència als consells, import que correspongui, per al reforç programes ja esistents consells insulars | AI5: 2025-12-31 | AJ5: 3 projectes
A6: Conselleria de Turisme, Cultura i Esports | B6: Esports | C6: Conferència Sectorial d’Esports | D6: 2022-07-18 | E6: Aprovat/Acord de Conferència Sectorial definitiu | F6: Transició verda | G6: C26. | H6: C26.I02. | I6: C26.I02.P02.S16. Renovació de les instal·lacions dels centres d’alt rendiment i tecnificació esportiva. | J6: 8463726.49 | L6: 5529634.64 | M6: 2934091.85 | R6: SI | T6: MR059 | U6: E07 | V6: 5529634.64 | W6: 2934091.85 | X6: 844462.85 | Y6: 2089629 | Z6: 2089629 | AA6: =5529634.64+2934091.85 -> 8463726.49 | AB6: Ministeri de Cultura i Esport | AC6: =49000000+26000000 -> 75000000 | AD6: =J6/AC6 -> 0.1128496865 | AE6: Criteris de distribució: 1) Centres d’Alt Rendiment propietat de la Comunitat Autònoma tenen % fixe. 2) La resta de centres de tecnificació i especialitzats en alt rendiment: criteris esportius, constructius i de cohesió. | AF6: 08/11/2021: Acord de CS. 16/11/2021: Resolució d’acord de CS. (Publicacio BOE Acord CS). 21/12/2021: Ingrés Tresoreria. 03/05/2022: Autorització CM. No surten xifres per CCAA però es desprèn que tot és anualitat 2022. D’acord amb la info de la DG Esports, sembla que la CS es faria al setembre, una vegada les CCAA han definit els projectes per aprovar-los. 09/05/2022: Acord de CS. 04/07/2022: Resolució Acord CS (Publicacio BOE Acord CS). 13/09/2022: Ingrés Tresoreria. | AH6: Convocatòria de subvencions plurianual publicada, contractacions del Velòdrom i de Príncipes de España | AI6: 2025-12-31 | AJ6: Objectiu CID 373: 6 proyectos mínimos exigidos, amb una reducció mínima del consum d’energia del 30%. El termini d’execució d’activitats previstes a executar a càrrec d’aquests crèdits han d’estar finalitzades abans de 31/12/2025. | AK6: 2025-12-31 | AL6: Objectiu: 6 projectes mínims exigits, amb una reducció mínima del consum d’energia del 30%. | AO6: Dirección General de Deportes | AP6: Àngel Blanch/ Toni Amengual | AQ6: Convocatòria de subvencions plurianual publicada, contractacions del Velòdrom i de Príncipes de España
A7: Conselleria de Famílies i Afers Socials | B7: Serveis socials | C7: Consell Territorial de Serveis Socials i del Sistema per a l’autonomia i atenció per a la dependència | D7: 2023-12-01 | E7: Aprovat/Acord de Conferència Sectorial definitiu | F7: Protecció social | G7: C22. | H7: C22.I01. | I7: C22.I01.P03.S03. (Subprojecte Obj. 322. Teleassistència) Pla de xoc per a l’economia de les cures: pla de suport i cures de llarga durada; pla de modernització dels serveis socials; Espanya pais accessible. 5 Projectes: 1. Construcció places residencials per a persones amb necessitats cura de llarga durada. 2. Alberg per a persones sense llar. 3. Reforma de residències. 4. Centre de dia per a persones amb necessitat de cures de llarga durada. 5.Teleassistència avançada i noves tecnologies per a la promoció de l’autonomia. | J7: 7992848.08 | L7: 1786693.65 | M7: 2200361.64 | N7: 4005792.79 | R7: SI | T7: MR007 | U7: E04 | V7: =L7 -> 1786693.65 | W7: =M7 -> 2200361.64 | X7: =W7 -> 2200361.64 | AA7: =+L7+M7 -> 3987055.29 | AB7: Ministeri d’Afers Socials i Agenda 2030 | AC7: =J7/AD7 -> 326922189.5 | AD7: =22003616.39/899988386.38 -> 0.02444877814 | AE7: Criteris de distribució: 1) Població: 90,0%, 2) Superficie: 5,0%, 3) Població dependent: 2,3%, 4) Dispersió: 1,5%, 5) Grans Urbes: 0,7%, 6) Insularitat: 0,5%. | AF7: 30/04/2021: Consell Territorial de Serveis Socials i del Sistema per a l’Autonomía i Atenció a la Dependència. Tenim certificat acord. Detall de projectes i fites de seguiment del Ministeri per línia i semestre. Realitzada generació de crèdit amb fons propis. Conveni signat. 30/09/2021: Ingrés Tresoreria. Acord només fa referència 2021. El conveni recull les quanties 2021-23. 01/08/2022: Aprobació i autorització CM import 2022 (no informació detallada). 26/10/2022: Acord d’aprovació (publicat BOE 279 de data 21/11/22). 02/01/2023: Ingrés Tresoreria. 02/10/2023: Aprobació de l’Addenda espanyola per la Comissió Europea. Modficació del termini d’execució per a l’objectiu CID 322: T1 del 2025; i per l’objectiu CID 323: T2 del 2026 15/11/2023: Aprovació acord CM repartiment fons C22.I1, I2 i I3 per l’any 2023 (veure doc. Carpeta conf. Sectorial Afers Socials). 30/11/2023: Acord del Consell Territorial de Serveis Socials. Resolució de repartiment de fons any 2023. | AG7: BOE conveni Illes Balears. Acord CS 2022: BOE 27/11/22 | AH7: Projecte 1 i 3: Conveni amb CIMa (Miquel Mir i Bonanova), CIME (Bintaufa) i CIEiv (Cas Serres) i licitacions Consorci Recursos Socioassistencials. . Projecte 2: Conveni amb CIEiv. Projecte 5: han demanat reconvertir una part en noves places. Sembla que el Ministeri no acceptarà. Es preveu concertar amb les empreses que ja ho fan. | AI7: 2025-03-31 | AJ7: Fites: Resolució de la Secretaria d’Estat de Drets Socials per la qual es publica el Conveni amb la CAIB pàg. 10 i 11. Objectiu CID 322 (Teleassistència): Nous serveis de teleassistència desplegats per un import mínim de 304.000.000€, tenint com a data de referència: 31 de març de 2020. Que almenys el 90% de les persones acollides al Sistema per a l'Autonomia i Atenció a la Dependència (SAAD) es beneficiïn d'una llista mínima de serveis de teleassistència a domicili, en particular a través de línies telefòniques i mitjançant equips específics de comunicacions i informàtics situats en un centre assistencial i en les llars dels usuaris. Projecte 5: Reforç del servei de teleassistència domiciliària. 31/12/2023 Ampliació del termini d’execució per a l’objectiu CID 322 fins al 31/03/2025. | AK7: 2023-12-31 | AL7: 1.er semestre 2022. I1: 1) Execució del 15 % d’obres de places residencials d’obra nova licitades al 2021. 2) Execució 15 % d’obres de reforma places residencials licitades en 2021. 3) Execució del 30 % d’obres altres instal·lacions no residencials licitacions en 2021. 4) Contractació o concertació del 20 % dels serveis tecnològics . 2n semestre 2022 I1: 1) Aprovació del projecte de 120 places residencials obra nova. 2) Licitació de 160 places residencials obra nova amb projecte aprovar a 2021. 3) Execució del 30 % de les obres de places residencials d’obra nova licitades a 2021. 4) Aprovació del projecte de reforma de 30 places residencials. 5) Licitació de reforma de 114 places residencials (34 de las quals con proyecto aprobado en 2021). 6) Ejecución del 30 % de las obras de reforma de plazas residenciales licitadas en 2021. 7) Licitación de 30 plazas proyecto reforma centro de día con proyecto aprobado en 2021. 8) Ejecución del 60 % de las obras de otras instalaciones no residenciales licitados en 2021. 9) Contratación o concertación del 60 % de los servicios tecnológicos. Seguimiento, control y evaluación del concierto o contrato. 1er semestre 2023 I1: 1) Ejecución del 50 % de las obras de plazas residenciales de obra nueva licitadas en 2021. 2) Ejecución del 15 % de las obras de plazas residenciales de obra nueva licitadas en 2022. 3) Ejecución del 50 % de las obras de reforma de plazas residenciales licitadas en 2021. 4) Ejecución del 15 % de las obras de reforma de plazas residenciales licitadas en 2022. 5) Ejecución del 70 % de las obras de otras instalaciones no residenciales licitados en 2021. 6) Ejecución del 15 % de las obras de centro de día licitados en 2022. 7) Seguimiento, control y evaluación del concierto o contrato. 2.º Semestre 2023 I1: 1) Licitación de 120 plazas residenciales de obra nueva. 2) Ejecución del 80 % de las obras de plazas residenciales de obra nueva licitadas en 2021. 3) Ejecución del 30 % de las obras de plazas residenciales de obra nueva licitadas en 2022. 4) licitación de reforma de 30 plazas residenciales con proyecto aprobado en 2021. 5) Ejecución del 30 % de las obras de reforma de plazas residenciales licitadas en 2022. 6) Ejecución del 100 % de las obras de reforma residenciales licitadas en 2021. Finalización obra. 7) Ejecución del 100 % de las obras en otras instalaciones no residenciales licitadas en 2021. Final de obra. 8) Ejecución del 30 % de las obras de centro de día licitadas en 2022. 9) Contratación o concertación del 100% de los servicios tecnológicos. Seguimiento, control y evaluación del concierto o contrato. | AO7: Institut Mallorquí d’Afers Socials (IMAS), Consell Insular de Menorca, Consell Insular d’Eivissa, Consell Insular de Formentera, i el Consorci de Recursos Sociosanitaris i Assistencials de les Illes Balears (CRSA) | AP7: Marta Thomas | AQ7: Projecte 1 i 3: amb l’Addenda, hi ha més fons i menys places com a fita. Es preveu poder complir la fita amb la resi Miquel Mir, Trepucó i les del Consorci. Consorci Recursos Socioassistencials: licitacions en marxa. Eivissa: es preveu que retornin la part de la residència Cas Serres perquè ho han fet amb fons propis i menors. Mallorca: residència Miquel Mir va bé; Bonanova, va quedar desert i han demanat canviar projecte per compra residència a Hermanitas de los Pobres. Com que no sortia la compra, han demanat al Ministeri i ha sol·licita més info per respondre i estan pendent del Consell. Preveuen redistribuir projectes d’acord amb els canvis en el conveni amb l’Estat. Projecte 2: Execucio finalitzada. Manca adaptació formal a MRR. Dubte que se pugui fer Projecte 5: han demanat reconvertir una part en noves places. Sembla que el Ministeri no acceptarà. Es preveu concertar amb les empreses que ja ho fan. No capacitat per executar tot. Es preveu devolució d’una part important. El Ministeri intenta amb la Comissió reprograma els terminis dels objectius 323 i 325 fins 2026.
A8: Conselleria de Famílies i Afers Socials | B8: Serveis socials | C8: Consell Territorial de Serveis Socials i del Sistema per a l’autonomia i atenció per a la dependència | D8: 2023-12-01 | E8: Aprovat/Acord de Conferència Sectorial definitiu | F8: Protecció social | G8: C22. | H8: C22.I01. | I8: C22.I01.P04.S08. (Subprojecte Obj. 323) Pla de xoc per a l’economia de les cures: pla de suport i cures de llarga durada; pla de modernització dels serveis socials; Espanya pais accessible. 5 Projectes: 1. Construcció places residencials per a persones amb necessitats cura de llarga durada. 2. Alberg per a persones sense llar. 3. Reforma de residències. 4. Centre de dia per a persones amb necessitat de cures de llarga durada. 5.Teleassistència avançada i noves tecnologies per a la promoció de l’autonomia. | J8: 43862412.57 | L8: =9095823.9+308079.09+2410104.4+138893.11 -> 11952900.5 | M8: =11201753.57+379407.75+2968108.86+171050.63 -> 14720320.81 | N8: =12446392.85+421564.16+3297898.74+190056.26+833279.25 -> 17189191.26 | R8: SI | T8: MR007 | U8: E04 | V8: =L8 -> 11952900.5 | W8: =M8 -> 14720320.81 | X8: =W8 -> 14720320.81 | AA8: =+L8+M8 -> 26673221.31 | AB8: Ministeri d’Afers Socials i Agenda 2030 | AC8: =J8/AD8 -> 1794053360 | AD8: =22003616.39/899988386.38 -> 0.02444877814 | AE8: Criteris de distribució: 1) Població: 90,0%, 2) Superficie: 5,0%, 3) Població dependent: 2,3%, 4) Dispersió: 1,5%, 5) Grans Urbes: 0,7%, 6) Insularitat: 0,5%. | AF8: 30/04/2021: Consell Territorial de Serveis Socials i del Sistema per a l’Autonomía i Atenció a la Dependència. Tenim certificat acord. Detall de projectes i fites de seguiment del Ministeri per línia i semestre. Realitzada generació de crèdit amb fons propis. Conveni signat. 30/09/2021: Ingrés Tresoreria. Acord només fa referència 2021. El conveni recull les quanties 2021-23. 01/08/2022: Aprobació i autorització CM import 2022 (no informació detallada). 26/10/2022: Acord d’aprovació (publicat BOE 279 de data 21/11/22). 02/01/2023: Ingrés Tresoreria. 02/10/2023: Aprobació de l’Addenda espanyola per la Comissió Europea. Modficació del termini d’execució per a l’objectiu CID 322: T1 del 2025; i per l’objectiu CID 323: T2 del 2026 15/11/2023: Aprovació acord CM repartiment fons C22.I1, I2 i I3 per l’any 2023 (veure doc. Carpeta conf. Sectorial Afers Socials). 30/11/2023: Acord del Consell Territorial de Serveis Socials. Resolució de repartiment de fons any 2023. | AG8: BOE conveni Illes Balears. Acord CS 2022: BOE 27/11/22 | AH8: Projecte 1 i 3: Conveni amb CIMa (Miquel Mir i Bonanova), CIME (Bintaufa) i CIEiv (Cas Serres) i licitacions Consorci Recursos Socioassistencials. . Projecte 2: Conveni amb CIEiv. Projecte 5: han demanat reconvertir una part en noves places. Sembla que el Ministeri no acceptarà. Es preveu concertar amb les empreses que ja ho fan. | AI8: 2026-06-30 | AJ8: Fites: Resolució de la Secretaria d’Estat de Drets Socials per la qual es publica el Conveni amb la CAIB pàg. 10 i 11. Objectiu CID 323 (Places residencials, no residencials i centres de dia): Centres residencials, no residencials i de dia, rehabilitats i/o construïts, amb la finalitat d'adaptar almenys 15 200 places al nou model de cures de llarga durada. Renovació o construcció de centres residencials, no residencials i de dia per a adaptar 22 360 places al nou model de cures de llarga durada. Objectius: Projecte 1: Construcció de 400 places residencials per persones amb necessitat de cures de llarga durada – 31/12/2023. Projecte 2: Construcció de un centre residencial i social polivalent de 56 places residencials (Sa Joveria: Eivissa). Projecte 3: Reforma de 264 places de residències públiques per persones dependents. 31/12/2023. Projecte 4: Construcció de 30 places de centre de dia per persones amb necessitat de cures de llarga durada. Ampliació del termini d’execució per a l’objectiu CID 323 fins al 30/06/2026. | AK8: 2023-12-31 | AL8: 1.er semestre 2022. I1: 1) Execució del 15 % d’obres de places residencials d’obra nova licitades al 2021. 2) Execució 15 % d’obres de reforma places residencials licitades en 2021. 3) Execució del 30 % d’obres altres instal·lacions no residencials licitacions en 2021. 4) Contractació o concertació del 20 % dels serveis tecnològics . 2n semestre 2022 I1: 1) Aprovació del projecte de 120 places residencials obra nova. 2) Licitació de 160 places residencials obra nova amb projecte aprovar a 2021. 3) Execució del 30 % de les obres de places residencials d’obra nova licitades a 2021. 4) Aprovació del projecte de reforma de 30 places residencials. 5) Licitació de reforma de 114 places residencials (34 de las quals con proyecto aprobado en 2021). 6) Ejecución del 30 % de las obras de reforma de plazas residenciales licitadas en 2021. 7) Licitación de 30 plazas proyecto reforma centro de día con proyecto aprobado en 2021. 8) Ejecución del 60 % de las obras de otras instalaciones no residenciales licitados en 2021. 9) Contratación o concertación del 60 % de los servicios tecnológicos. Seguimiento, control y evaluación del concierto o contrato. 1er semestre 2023 I1: 1) Ejecución del 50 % de las obras de plazas residenciales de obra nueva licitadas en 2021. 2) Ejecución del 15 % de las obras de plazas residenciales de obra nueva licitadas en 2022. 3) Ejecución del 50 % de las obras de reforma de plazas residenciales licitadas en 2021. 4) Ejecución del 15 % de las obras de reforma de plazas residenciales licitadas en 2022. 5) Ejecución del 70 % de las obras de otras instalaciones no residenciales licitados en 2021. 6) Ejecución del 15 % de las obras de centro de día licitados en 2022. 7) Seguimiento, control y evaluación del concierto o contrato. 2.º Semestre 2023 I1: 1) Licitación de 120 plazas residenciales de obra nueva. 2) Ejecución del 80 % de las obras de plazas residenciales de obra nueva licitadas en 2021. 3) Ejecución del 30 % de las obras de plazas residenciales de obra nueva licitadas en 2022. 4) licitación de reforma de 30 plazas residenciales con proyecto aprobado en 2021. 5) Ejecución del 30 % de las obras de reforma de plazas residenciales licitadas en 2022. 6) Ejecución del 100 % de las obras de reforma residenciales licitadas en 2021. Finalización obra. 7) Ejecución del 100 % de las obras en otras instalaciones no residenciales licitadas en 2021. Final de obra. 8) Ejecución del 30 % de las obras de centro de día licitadas en 2022. 9) Contratación o concertación del 100% de los servicios tecnológicos. Seguimiento, control y evaluación del concierto o contrato. | AO8: Institut Mallorquí d’Afers Socials (IMAS), Consell Insular de Menorca, Consell Insular d’Eivissa, Consell Insular de Formentera, i el Consorci de Recursos Sociosanitaris i Assistencials de les Illes Balears (CRSA) | AP8: Marta Thomas | AQ8: Projecte 1 i 3: amb l’Addenda, hi ha més fons i menys places com a fita. Es preveu poder complir la fita amb la resi Miquel Mir, Trepucó i les del Consorci. Consorci Recursos Socioassistencials: licitacions en marxa. Eivissa: es preveu que retornin la part de la residència Cas Serres perquè ho han fet amb fons propis i menors. Mallorca: residència Miquel Mir va bé; Bonanova, va quedar desert i han demanat canviar projecte per compra residència a Hermanitas de los Pobres. Com que no sortia la compra, han demanat al Ministeri i ha sol·licita més info per respondre i estan pendent del Consell. Preveuen redistribuir projectes d’acord amb els canvis en el conveni amb l’Estat. Projecte 2: Execucio finalitzada. Manca adaptació formal a MRR. Dubte que se pugui fer Projecte 5: han demanat reconvertir una part en noves places. Sembla que el Ministeri no acceptarà. Es preveu concertar amb les empreses que ja ho fan. No capacitat per executar tot. Es preveu devolució d’una part important. El Ministeri intenta amb la Comissió reprograma els terminis dels objectius 323 i 325 fins 2026.
A9: Conselleria de Famílies i Afers Socials | B9: Serveis socials | C9: Consell Territorial de Serveis Socials i del Sistema per a l’autonomia i atenció per a la dependència | D9: 2023-12-01 | E9: Aprovat/Acord de Conferència Sectorial definitiu | F9: Protecció social | G9: C22. | H9: C22.I02. | I9: C22.I02.P02.S01. Subprojecte fita 325. Pla de xoc per a l’economia de les cures: pla de suport i cures de llarga durada; pla de modernització dels serveis socials; Espanya pais accessible. 2 Projectes: 6. Sistema informació serveis socials + eina avaluació i seguiment entitats tercer sector. 7. Recursos i atenció a menors desprotegits i habitatge emancipació joves amb mesures de protecció. | J9: 13893195.48 | L9: =2064479.72+1794858.6 -> 3859338.32 | M9: =2542462.71+2210416.99 -> 4752879.7 | N9: =2824958.57+2456018.89 -> 5280977.46 | R9: SI | T9: MR007 | U9: E04 | V9: =J9 -> 13893195.48 | W9: =M9 -> 4752879.7 | X9: =W9 -> 4752879.7 | AA9: =+L9+M9 -> 8612218.02 | AB9: Ministeri d’Afers Socials i Agenda 2030 | AC9: =J9/AD9 -> 568257251.9 | AD9: =22003616.39/899988386.38 -> 0.02444877814 | AE9: Criteris: 1)Població: 90,0%, 2)Superficie: 5,0%, 3)Població dependent: 2,3%, 4)Dispersió: 1,5%, 5)Grans Urbes: 0,7%, 6)Insularitat: 0,5%. | AF9: 30/04/2021: Consell Territorial de Serveis Socials i del Sistema per a l’Autonomía i Atenció a la Dependència. Tenim certificat acord. Detall de projectes i fites de seguiment del Ministeri per línia i semestre. Realitzada generació de crèdit amb fons propis. Conveni signat. 30/09/2021: Ingrés Tresoreria. Acord només fa referència 2021. El conveni recull les quanties 2021-23. 01/08/2022: Aprobació i autorització CM import 2022 (no informació detallada). 26/10/2022: Acord d’aprovació (publicat BOE 279 de data 21/11/22). 02/01/2023: Ingrés Tresoreria. 02/10/2023: Aprobació de l’Addenda espanyola per la Comissió Europea. Modficació del termini d’execució per a l’objectiu CID 325: T4 del 2025 15/11/2023: Aprovació acord CM repartiment fons C22.I1, I2 i I3 per l’any 2023 (veure doc. Carpeta conf. Sectorial Afers Socials). Acord del Consell Territorial de Serveis Socials. Resolució de repartiment de fons any 2023. | AG9: BOE conveni Illes Balears. Acord CS 2022: BOE 27/11/22 | AH9: Projecte 7: Conveni amb CIME, IMAS, CIEv i Formentera – licitació Conselleria. Projecte 8: encàrrec gestió Fundació BIT i contracte Fundació Atenció a la Dependència | AI9: 2025-12-31 | AJ9: Fites: Resolució de la Secretaria d’Estat de Drets Socials per la qual es publica el Conveni amb la CAIB pàg. 10 i 11. Objectiu CID 324. Objectiu CID 325: Completar per part dels governs regionals la transformació tecnològica dels serveis socials, permetent la interoperabilitat amb altres sistemes que interactuen amb els serveis socials (ocupació, salut, tercer sector), i la modernització de les infraestructures i els serveis associats a la protecció residencial dels centres d'atenció a la infància i l'adolescència, en particular mitjançant una millor atenció a les necessitats de suport personalitzat (incloses les emocionals i educatives/professionals) i la formació de les famílies d'acolliment per a un pressupost total executat d'almenys 450.000.000€. Objectius: Projecte 6: Desenvolupament i implantació de la Història Social Única Electrònica . Projecte 7: Creació de places residencials i recursos d’atenció per menors d’edat en situació de desprotecció. | AK9: 2023-12-31 | AL9: 1er semestre 2023 I2: Sistema de información: 1) Ejecución de 50 % del total del proyecto a través del contrato para la implementación de la arquitectura HSUe y diseño tecnológico. Centro de acogida de 20 menores extranjeros en Mallorca: 2) Ejecución del 60 % de las obras. Vivienda de protección de 10 menores en Formentera: 3) Equipamiento y puesta en funcionamiento. Reforma y adecuación edificio para servicio para menores en Menorca: 4) Ejecución del 20 % de las obras. 2.º Semestre 2023 I2: Sistema de información: 1) Ejecución de 55 % del total del proyecto a través del contrato para la implementación de la arquitectura HSUe e integración tecnológica y el 45 % restante a 2023. Centro de acogida de 20 menores extranjeros en Mallorca: 2) Ejecución del 100 % de la obra Centro específico de atención personalizada para 15 jóvenes en Mallorca. 3) Ejecución 100 % de las obras 3. Compra de viviendas con 16 plazas para menores en Ibiza. 4) Adquisición de los 60 % de las viviendas. Adecuación y puesta en servicio del 60 %. 100 % de adjudicación de la vivienda. Reforma y adecuación edificio para servicio para menores en Menorca. 5) Ejecución del 100 % de las obras. Compra de viviendas con 15 plazas para menores en Mallorca: 6) Adquisición de los 60 % de las viviendas. Adecuación y puesta en servicio del 60 %. 100 % de adjudicación de la vivienda. Reforma de centro de preemancipación de menores en Ibiza. 7) Ejecución del 100 % de las obras. | AO9: Institut Mallorquí d’Afers Socials (IMAS), Consell Insular de Menorca, Consell Insular d’Eivissa, Consell Insular de Formentera, i el Consorci de Recursos Sociosanitaris i Assistencials de les Illes Balears (CRSA) | AP9: Marta Thomas | AQ9: Projecte 7: L’objectiu ara és despesa econòmica. Han de repensar projectes a executar. Eivissa no executarà i es preveu que retorni; Mallorca (Puntiró) difícil jurídicament l’interès general; els altres de IMAS (centre menors i habitatges, també van amb retard (Info nov 23); Menorca: just per teminis però intenció de fer-ho; Formentera: Tragsa farà l’obra; dificultats per increment de preus. Compra edificis per part de la conselleria; projecte en tramitacó Projecte 6: encàrrec gestió Fundació BIT + contracte serveis Fundació Atenció a la Dependència (contracte adjudicat a maig 2023: Ordre global 96L). El termini és just
A10: Conselleria de Famílies i Afers Socials | B10: Serveis socials | C10: Consell Territorial de Serveis Socials i del Sistema per a l’autonomia i atenció per a la dependència | D10: 2023-12-01 | E10: Aprovat/Acord de Conferència Sectorial definitiu | F10: Protecció social | G10: C22. | H10: C22. I03 | I10: C22.I03.P01.S03. Pla de xoc per a l’economia de les cures: pla de suport i cures de llarga durada; pla de modernització dels serveis socials; Espanya pais accessible. 1 Projectes: 8. Modernització d’entorns, productes i serveis per garantir l’accesibilitat universal. | J10: 964785.21 | L10: =268004.04 -> 268004.04 | M10: 330054.24 | N10: =366726.93 -> 366726.93 | R10: SI | T10: MR007 | U10: E04 | V10: 268004.04 | W10: =M10 -> 330054.24 | X10: =W10 -> 330054.24 | AA10: =+M10+L10 -> 598058.28 | AB10: Ministeri d’Afers Socials i Agenda 2030 | AC10: =J10/AD10 -> 39461489.83 | AD10: =22003616.39/899988386.38 -> 0.02444877814 | AE10: Criteris distribució: 1) 90% Població. 2) 5% Superficie. 3) 2,3% Població dependent. 4) 1,5% Dispersió. 5) 0,7% Grans Urbes. 6) 0,5% Insularitat. | AF10: 30/04/2021: Consell Territorial de Serveis Socials i del Sistema per a l’Autonomía i Atenció a la Dependència. Tenim certificat acord. Detall de projectes i fites de seguiment del Ministeri per línia i semestre. Realitzada generació de crèdit amb fons propis. Conveni signat. 30/09/2021: Ingrés Tresoreria. Acord només fa referència 2021. El conveni recull les quanties 2021-23. 01/08/2022: Aprobació i autorització CM import 2022 (no informació detallada). 26/10/2022: Acord d’aprovació (publicat BOE 279 de data 21/11/22). 02/01/2023: Ingrés Tresoreria. 02/10/2023: Aprobació de l’Addenda espanyola per la Comissió Europea. Modficació del termini d’execució per a l’objectiu CID 326: T1 del 2024 15/11/2023: Aprovació acord CM repartiment fons C22.I1, I2 i I3 per l’any 2023 (veure doc. Carpeta conf. Sectorial Afers Socials). 30/11/2023: Acord del Consell Territorial de Serveis Socials. Resolució de repartiment de fons any 2023. | AG10: BOE conveni Illes Balears. Acord CS 2022: BOE 27/11/22 | AH10: Convocatòria subvencions accessibilitat entitats locals. | AI10: 2024-03-31 | AJ10: Fites: Resolució de la Secretaria d’Estat de Drets Socials per la qual es publica el Conveni amb la CAIB pàg. 10 i 11. Objectiu CID 326: Finalització de les inversions per part dels municipis, els governs regionals i el govern central per a millorar l'accessibilitat i eliminar barreres amb un pressupost total d'almenys 178 milions d'euros, que hauria de centrar-se en: i. millorar l'accessibilitat cognitiva en la comunicació amb les autoritats públiques (inclosos els llocs web); ii. millorar l'accés físic als edificis i espais públics, inclosos els serveis de salut i els centres educatius; iii. millorar l'accessibilitat al transport públic; iv. l'execució d'obres d'adequació i la compra d'equips per part dels municipis, especialment en les zones rurals. v. Campanyes de comunicació i sensibilització, vaig veure. Projectes de recerca de IDI en l'àrea d'accessibilitat cognitiva. Realització d'almenys 277 projectes per les Administracions central i autonòmiques per a millorar l'accessibilitat i eliminar barreres. Objectius: Projecte 8: Promoció de l’adequació d’entorns, productes i serveis de corporacions locals a les exigències de qualitat i accessibilitat universal per millorar l’accés efectiu de les persones usuàries dels serveis públics i personal de l’Administració Pública. Ampliació del termini d’execució fins al 31/03/2024. | AK10: 2023-12-31 | AL10: JUSTIFICACIÓ: 1er semestre 2023 I3: 1) Justificació de l’any 2022; 2) Comprovació 3) Pagament import tercera anualitat. 2.º Semestre 2023 I3: 1) Seguiment tècnic de les actuacions; 2) Liquidació; 3) Informe de tancament per import de 964.785,21 euros. | AM10: 2023-06-30 | AO10: Institut Mallorquí d’Afers Socials (IMAS), Consell Insular de Menorca, Consell Insular d’Eivissa, Consell Insular de Formentera, i el Consorci de Recursos Sociosanitaris i Assistencials de les Illes Balears (CRSA) | AP10: Marta Thomas | AQ10: Convocatòria subvencions accessibilitat entitats locals. Publicada i resolta. Es preveu haver de reintegrar una part (no adjudicat i no justificat)
A11: Conselleria de Famílies i Afers Socials | B11: Serveis socials | C11: Consell Territorial de Serveis Socials i del Sistema per a l’autonomia i atenció per a la dependència | D11: 2021-12-11 | E11: Aprovat/Acord de Conferència Sectorial definitiu | F11: Protecció social | G11: C22. | H11: C22. I03 | I11: C22.I03.P01.S10. Desenvolupament d’actuacions de la inversió “nous projectes territorials per assegurar l’accessibilitat universal de l’habitatge a persones majors, amb discapacitat i/o en situació de dependència. | J11: 1100276.13 | L11: 1100276.13 | R11: SI | T11: MR066 | U11: E09 | X11: =AA11 -> 1100276.13 | Y11: 0 | AA11: =L11 -> 1100276.13 | AB11: Ministeri de Drets Socials i Agenda 2030 | AC11: 50000000 | AD11: =J11/AC11 -> 0.0220055226 | AE11: Criteris: a)Població potencialment dependent, b)Superfície, c)Dispersió, d)Insularitat e) Capacitat econòmica | AF11: 27/10/2021: Basat en acord CS. Acord Consell Territorial Criteris Distribució (21 octubre 2021). 10/12/2021: RD 1100/2021, concessió subvenció directa CAIB (BOE 296 de 11/12/2023) 07/01/2022: Ingrés Tresoreria. 21/02/2022: RD 119/2023 de modificació del RD 1100/2021. (BOE 45 de 22/02/2023). 15/11/2023: Aprovació acord CM repartiment fons C22.I1, I2 i I3 per l’any 2023 (veure doc. Carpeta conf. Sectorial Afers Socials). | AH11: Convocatòria subvencions accessibilitat immobles persones dependent. | AI11: 2023-03-01 | AJ11: Termini per justificar | AK11: 2023-06-30 | AL11: A) Memòria d’actuació justificativa del compliment de les condicions de la subvenció, indicant les activitats realitzades i els resultats obtinguts (fita 326, component 22). B) Relació de les despeses de l’activitat amb identificació del creditor i del document, import i data d’emissió i, si cal, data de pagament. Si la subvenció ha estat otorgada per un pressupost, indicar les desviacions. C) Factures i documents de valor provatori i justificants de pagament. D) Els tres pressuposts que ha d’haver sol·licitat el beneficiari (art. 31.3 de la Llei 38/2003, de 17 de novembre). | AM11: 2023-02-28 | AO11: Dirección General de Atención a la Dependencia | AP11: Marta Thomas | AQ11: Convocatòria subvencions accessibilitat immobles persones dependent. Publicada i resolta. Han sobrat quasi 300.000 €. Possibles reintegraments per incompliment DNSH i algun altre motiu.
A12: Conselleria de Famílies i Afers Socials | B12: Digitalització | C12: Conferència Sectorial de la Infància i Adolescència | D12: 2022-12-13 | E12: Aprovat/Acord de Conferència Sectorial definitiu | F12: Digitalització | G12: C19. | H12: C19.I01. | I12: C19.I01.P04.PROVISIONAL.S17. Competències Digitals per a la infància (CODI). Illes Balears. | J12: 1063200 | M12: 1063200 | R12: SI | T12: MR084 | U12: E06 | X12: 1063200 | AA12: 1063200 | AB12: Ministeri de Drets Socials i Agenda 2030 | AC12: 50000000 | AD12: 0.021264 | AE12: Criteris de distribució: a) El 58% del fons es distribueix d’acord amb el percentatge de població infantil en risc de pobresa. b) El 40% del fons es distribueix d’acord amb el percentatge de persones menors de 18 anys. c) El 2% del fons es distribueix en 5 regions (Navarra, Cantabria, La Rioja, Ceuta i Melilla) para assegurar un mínim d’inversió en el programa. | AF12: C19.I1. Basat en acord de CS de 13/12/2022 Conferencia Sectorial 13-12-2022. Data ingrés el 30/03/2023 | AH12: Acordar amb Educació. Plataforma estatal | AI12: 2024-12-31 | AJ12: 4.623 número mínim de nins formats. Fita 288. El programa ha estat disenyat per nins i nines de 10 a 13 anys i adolescents de 14 a 17 anys en situació de vulnerabilitat. Donat les necessitats específiques de lesi els joves ex tutelats es permetrà ampliar el rang d’edat per atendre a aquest grup poblacional. | AQ12: No iniciat. Pendent acordar forma d'execució, amb la col·laboració de la Conselleria d'Educació i pendents plataforma digital per formació que ha de posar a disposició l'Estat (es preveu que estigui el novembre)
A13: Conselleria d'Agricultura, Pesca i Medi Natural | B13: Agricultura i pesca | C13: Conferència Sectorial d’Agricultura i Desenvolupament Rural | D13: 2021-10-21 | E13: Aprovat/Acord de Conferència Sectorial definitiu | F13: Transició verda | G13: C03. | H13: C03.I04. | I13: C03.I04.P01.S13. Programa de suport a les inversions en explotacions agrícoles i ramaderes (Illes Balears). | J13: 679019 | L13: =233301+73794+69013+302911 -> 679019 | R13: SI | T13: MR060 | U13: E11 | V13: =L13 -> 679019 | W13: 0 | X13: 0 | Y13: 0 | Z13: 0 | AA13: =L13 -> 679019 | AB13: Ministeri d’Agricultura, Pesca i Alimentació | AC13: 102758752.7 | AD13: 0.00660789453 | AF13: 19/10/2021: Autoritzat pel CM. 21/10/2021: Aprovació CS (ndp CS Mº Agricult). També RD. EXECUTA FOGAIBA. 07/12/2021: Ingrés Tresoreria. 13/10/2022: Acord de CS. 10/11/2022: Resolució de transferència de fons programes de suport. (Acord transferencia fons entre programes 221116, BOE 275 de 16.11.2022). 17/05/2023: RD 367/2023 de modificació de dos reals decrets de bases reguladores d’ajudes i subvencions (BOE 117 de 17.05.2023). | AG13: C3.I04. Consta de 4 programes: 1. inversions en sistema de gestió de fems en ramaderia; 2. transformació integral i modernització d’hivernacles; 3. inversions en eficiència energètica i energies renovables (inclosa biomasa i biogàs); 4. Aplicació d’agricultura de precisió i tecnologies 4.0 en el sector agrícola i ramader. RD bases reguladores i quantia CAIB. Art 36. Fita 1: 2 mag 22: convoc. Fita 2: 2 nov 2022: compromès 60 % pressupost. Fita 3: 2 mag 23: 80 % pressupost compromès. Objectiu final: benefici 5.000 explotacions. | AH13: Convocatòria de subvencions per eficiència energètica. Publicada i pràcticament no sol·licituds. | AI13: 2026-04-30 | AJ13: 1ª conv. abans del 2/06/22. Resolució convoc: 6 meses des de la publicació. Presentació de sol·licituds fins 30 juny 2023. Termini execució per tercers: 18 meses des de concessió. Justificació: 3 meses des de finalització. CAIB : 6 meses per comprovar justificació i 6 més per pagar, sempre abans del 30/04/2026. 1. S’estableix com objectiu final de les ajudes a sostenibilitat i la competitivitat de l’ agricultura i la ramaderia, i la seva contribució a la millora del medi ambient mitjançant projectes d’inversió executats i dels que se beneficien al menys 5.000 explotacions agrícoles o ramaderes, a través de les actuacions previstes en el capítol II. Per aconseguir la seva consecució s’estableixen les fites intermedis: a) Fita nº 1: Als sis mesos des de la publicació del RD, realitzar les convocatòries per l’ import establert en l’annex VI, per les CCAA corresponent. b) Fita n.º 2: A l’any des de la publicació RD, haver utilitzat al menys el 60 % del pressupost inicialment signat en cada programa d’actuació. c) Fita nº 3: Als 18 mesos des de la publicació d’aquest RD, Aconseguir grau de compromís d’almenys del 80% total del pressupost distribuït a la CCAA per a cada programa. Estimació de la contribució al Objectiu 52 (O52 del CID) sobre 5,000 (per tota Espanya) i la contribució de Balears és de 44 , amb una estimació de 24 projectes (9 del Programa 1, 7 del Programa 3 i 8 del Programa 4) . | AL13: 1ª convocatòria abans del 2 de juny de 2022. | AM13: Pagaments realitzats abans del 30/04/2026. Fites i objectius verificats abans del 30/06/2026. | AN13: Els indicadors de resultat seran, per a cada any, els següents: a) El percentatge del pressupost utilitzat i compromès respecte de l’assignació inicial i, en el seu cas, les successives reassignacions. b) El nombre de sol·licituds rebudes i resoltes favorablement. | AO13: Fons de Garantia Agrària i Pesquera de les Illes Balears (FOGAIBA) | AP13: Gabi Servera
A14: Conselleria d'Agricultura, Pesca i Medi Natural | B14: Agricultura i pesca | C14: Conferència Sectorial d’Agricultura i Desenvolupament Rural | D14: 2022-10-13 | E14: Aprovat/Acord de Conferència Sectorial definitiu | F14: Transició verda | G14: C03. | H14: C03.I03. | I14: C03.I03.P01.S13. Inversions per a la millora de la bioseguretat en explotacions agrícoles de material vegetal de reproducció i en centres de neteja i desinfecció de mitjans de transport d'animals vius (Illes Balears). | J14: 347707.68 | L14: =119565.6+160293.36 -> 279858.96 | M14: 67848.72 | R14: SI | T14: MR044 | U14: E01 | V14: =L14 -> 279858.96 | X14: 67848.72 | Y14: 0 | AA14: =279858.96+67848.72 -> 347707.68 | AB14: Ministeri d’Agricultura, Pesca i Alimentació | AC14: =12600000+12700000 -> 25300000 | AD14: 0.01374338656 | AE14: Criteris de distribució: 2021) distribució territorial d’acord nº de centres de neteja I desinfecció ubicats al seu territori. Addicionalment distribució territorial de fons per construir un nou centre de neteja I desinfecció o una nova instal·lació contra insectes vectors a llocs de producció. 2022 i 2023) distribució territorial en funció de les sol·licituds presentades. | AF14: 19/10/2021: Autoritzat pel CM. 21/10/2021: Aprovat CS (ndp CS Mº Agricult). 03/11/2021: RD 949/2021 de 2.11.2021.Bases reguladores i import CCAA. (BOE 263 de 3.11.2021). 01/12/2021: Ingrés Tresoreria. 11/10/2022: Autorització CM. 18/11/2022: Ingrés Tresoreria. 17/05/2023: RD 367/2023 de modificació de dos reals decrets de bases reguladores d’ajudes i subvencions (BOE 117 de 17.05.2023). | AG14: C3.I03. Inclou dues línies d’inversió: per a la millora dels centres de neteja i desinfecció de vehicles de transport de bestiar o la creació de nous centres i per a les instal·lacions de protecció d’hivernacles envers insectes vectors RD estableix bases reguladores. | AH14: 2 convocatòries de subvencions (bioseguretat animal i vegetal). Publicada i pràcticament sense sol·licituds. No transferits a FOGAIBA perquè no hi ha demanda per aquest objecte de subvencions. | AI14: 2025-12-31 | AJ14: Resolució procediment: 6 mesos des de publicació de la convocatòria. Tercer, perceptor de l’ajuda té 1 any per executar i 6 mesos més per justificar. L’Administració té 6 mesos per revisar justificació i pagar. A) Fita nº 1: Als sis mesos des de la publicació d’aquest RD, realitzar les convocatòries per import de 12.600.000€. B) Fita n.º 2: A l’ any des de la publicació d’aquest RD, haver adjudicat les ajudes per import, al menys, de 12.600.000€. C) Fita n.º 3: A 31/12/23, haver adjudicat les ajudes per un import global de 38.000.000€. | AL14: B) Fita n.º 2: A l’ any des de la publicació d’aquest RD, haver adjudicat les ajudes per import, al menys, de 12.600.000 euros. | AM14: 2026-06-30 | AN14: A) 2021: la quantia del pressupost repartit a cada CCAA. B) 2022: la quantia de les sol·licituds rebudes i resoltes favorament, i el percentatge del pressupost utilitzat i compromès amb respecte a l’assignació 2021. C) 2023: el nombre de sol·licituds rebudes i resoltes favorablement en els tres anys i el percentatge del pressupost utilitzat i compromès amb respecte a les assignacions dels tres exercicis. | AO14: Fons de Garantia Agrària i Pesquera de les Illes Balears (FOGAIBA) | AP14: Gabi Servera
A15: Conselleria d'Educació i Universitats | B15: Educació | C15: Conferència Sectorial d’Educació | D15: 2023-06-07 | E15: Aprovat/Acord de Conferència Sectorial definitiu | F15: Educació | G15: C20. | H15: C20.I02. | I15: C20.I02.P02.S03. Conversió d’aules en espais de tecnologia aplicada – Illes Balears. | J15: 1005275.56 | L15: 275975.56 | M15: 399300 | N15: 330000 | R15: SI | T15: MR016 | U15: E06 | W15: =L15 -> 275975.56 | X15: =W15 -> 275975.56 | Y15: 399300 | Z15: 399426.5 | AA15: =275975.56+399300+330000 -> 1005275.56 | AB15: Ministeri d’Educació i Formació Professional | AC15: =12143584.5+13709300+16720000 -> 42572884.5 | AD15: 0.02361304788 | AE15: Criteris de distribució: 1) Nombre de centres públics que imparteixen formació professional. 2) Nombre d'alumnes matriculats a tots els nivells de Formació Professional a centres públics, en modalitat presencial i distància. 3) Nombre de municipis menors de 10.000 habitants. 4) Coeficient per bretxa de gènere en títols de famílies tecnològiques i industrials. 5) Alumnat matriculat a cicles formatius de FPB i GM, modalitat presencial. 6) Dispersió geogràfica de les administracions públiques. | AF15: 2021: Acord CM 8/06/2021. 21/07/2021: Resolució Acord Conferència Sectorial 18/10/2021: Publicació resolució distribució. (BOE 249). 11/02/2022: Publicació Acord CS de 20.12.2021 1/09/2021: Ingrés Tresoreria 2021 2022: Acord de CM 17/05/2022. 23/06/2022: Acord CS (Publicat al BOE 19/07/22). 28/07/2022: Ingrés Tresoreria 2022 03/05/2023: Acord de CM. 03/05/2023: Certificat de CM (distribució, criteris). 07/06/2023: Acord de CS. 21/06/2023: Resolució Acord de CS (BOE 157 de 03.07.2023). 28/07/2023: Ingrés Tresoreria anualitat 2023. | AG15: Justificació mitjançant costos simplificats, aplicant un mòdul de 55.000 € per aula. | AH15: Previsions de despesa: licitacions + despeses funcionament centres | AI15: 2024-12-31 | AJ15: Anualitat 2021: *Objectiu: 5 aules de tecnologia aplicada. Període actuacions: 1/09/2021 a 31/12/2021.Termini execució: 31/12/2022. Justificació: 31/03/2023. Anualitat 2022: * Objectiu: 6 aules de tecnologia aplicada. Període actuacions: 1/09/2022 a 31/12/2023. Termini execució: 31/12/2023. Justificació: 31/03/2024. Anualitat 2023: * Objectiu: 6 aules de tecnología aplicada. Termini execució: 1/09/2023 a 31/12/2024. Justificació: 31/03/2025. | AK15: 2023-12-31 | AL15: Conversió 6 aules de tecnologia aplicada. Aportaci´o de document resumit que justifiqui degudament com es va complir satisfactòriament l’objectiu. | AM15: 2025-03-31 | AP15: Pilar Cortès | AQ15: Ordre global 36L, 122L i 35AI. 2 Tenim dues licitacions, de les quals una es troba adjudicada i l’atra publicada (21.06.2022). Els dos contractes permeten complir la fita assignada per a cada anualitat: 5 i 7 aules per al 2021 i 2022, respectivament
A16: Conselleria d'Educació i Universitats | B16: Educació | C16: Conferència Sectorial d’Educació | D16: 2023-07-05 | E16: Aprovat/Acord de Conferència Sectorial definitiu | F16: Educació | G16: C21. | H16: C21.I03. | I16: C21.I03.P01.S04. Unitats acompanyament: creació d’unitats d’acompanyament i orientació personal i familiar de l’alumnat especialment vulnerable, en els serveis educatius o psicopedagògics situats en zones i districtes escolars – UAO Illes Balears. | J16: 3504960 | L16: 842735 | M16: 1096100 | N16: 1566125 | R16: SI | T16: MR019 | U16: E06 | W16: =L16+M16 -> 1938835 | X16: =W16 -> 1938835 | Y16: 1252775 | Z16: 1252775 | AA16: =+L16+M16+N16 -> 3504960 | AB16: Ministeri d’Educació i Formació Professional | AC16: =29616800+38521000+55039400 -> 123177200 | AD16: 0.0284546166 | AE16: Criteris de distribució: 1) 50% Nivell d'estudis de població 25-64 anys per comunitat autònoma. 2) 35% Abandonament educació i la formació per comunitat autònoma. 3) 15% Dispersió de la població, s'inclou la població completa de les illes següents: Eivissa, Formentera, Menorca, Lanzarote, Fuerteventura, La Gomera, El Hierro i La Palma. 4) Alumnat matriculat a Educació bàsica i Batxillerat. Ensenyaments de Règim General per titularitat/finançament del centre, sexe, comunitat autònoma/província i ensenyament. | AF16: 15/04/2021: Comisió General d’Educació. 13/07/2021: Autorització distribució crèdits Consell Ministres. 22/07/2021: Aprovat per CS. 13/08/2021: Resolucio SE concessió. 30/08/2021: Ingrés Tresoreria anualitat 2021. 23/09/2021: Resolució de d’acord de CS (BOE 228 de 23.09.2021). 05/04/2022: Autorització CM import 2022. 28/07/2022: Ingrés Tresoreria anualitat 2022. 21/07/2022: Resolució de CS de 23.07.2022. BOE 185 de data 03.08.2022. 09/05/2023: Acord de CM distribució de fons. 07/06/2023: Acord de CS. 05/07/2023: Resolució Acord de CS (BOE 170, de 18/07/2023). 07/07/2023: Ingrés Tresoreria anualitat 2023. | AG16: Programa nou de l’MRR. Es financien professionals de la intervenció socioeducativa als centres educatius i als equips d'orientació Resolucio SE Educacio que aprova distribucio crèdits (inclou 2021 a 2023) | AH16: En marxa: nòmines de personal docent o especialista. Ordre global 38AI, amb un import executat de 2.436.293,91€. | AI16: 2024-08-31 | AJ16: Objectiu (CID 311) any 2021: 18 unidades d’orientació. El termini d’execució del Programa d’Unitats d’Acompanyament i Orientació personal i familiar de lalumnat educativament vulnerable corresponent al pressupost de l'any 2021 serà des de l'1 de setembre del 2021 fins al 31 d'agost del 2024. Objectiu (CID 311) any 2022: 23 unitats d’orientació. El termini dexecució del Programa d’Unitats d’Acompanyament i Orientació personal i familiar de lalumnat educativament vulnerable corresponent al pressupost de l'any 2022 està previst que sigui des de l'1 de setembre del 2022 fins al 31 d'agost de l'any 2024. Objectiu (CID 311) any 2023: 33 unitats d’orientació. El termini dexecució del Programa d’Unitats d’Acompanyament i Orientació personal i familiar de lalumnat educativament vulnerable corresponent al pressupost de l'any 2023 està previst que sigui des de l'1 de setembre del 2023 fins al 31 de desembre de l'any 2024. | AK16: 2024-08-31 | AL16: Propera fita, el 31/08/2024 amb 18 unitats d’orientació del pressupost de 2021 i 23 unitats d’orientació del pressupost de 2022. La justificació haurà de ser presentada en els tres mesos següents a la finalització del termini per a la realització de les actuacions, és a dir, abans de 30 de novembre de 2024 per als fons transferits l'any 2021, 2022 i 2023. | AM16: 2024-11-30 | AP16: Pilar Cortès | AQ16: Despesa efectuada (ordre global seguiment execució 38AI), però no informació relativa al compliment de les fites i objectius.
A17: Conselleria d'Educació i Universitats | B17: Educació | C17: Conferència Sectorial d’Educació | D17: 2023-06-07 | E17: Aprovat/Acord de Conferència Sectorial definitiu | F17: Educació | G17: C20. | H17: C20.I03. | I17: C20.I03.P03.S04. Oferta bilingüe: Creació i/o conversió dels cicles formatius de grau mig i grau superior en bilingües. | J17: 11610000 | L17: 2700000 | M17: 3402000 | N17: 5508000 | R17: SI | T17: MR017 | U17: E06 | W17: =L17 -> 2700000 | X17: =W17 -> 2700000 | Y17: 4838000 | Z17: 4838000 | AA17: =+L17+M17+N17 -> 11610000 | AB17: Ministeri d’Educació i Formació Professional | AC17: =93285000+89100000+120609000 -> 302994000 | AD17: 0.03831759045 | AE17: Criteris de distribució: 1) Coeficient per nº d’alumnes matriculats a CFGM i CFGS. 2) Coeficient per nº de centres que imparteixen cicles formatius de GM i GS. 3) Coeficient per bretxa de gènere. Alumnat matriculat en cicles formatius de GM i GS. 4) Coeficient per taxa d’abandonament educatiu primerenc. 5) Coeficient per taxa de risc de pobresa. 6) Coeficient per dispersió demogràfica (taxa habitant per km2). 7) Coeficient per dispersió geogràfica de les Administracions Públiques. | AF17: 08/06/2021: Acord de CM. 21/07/2021: Acord de CS. 07/10/2021: Resolució de CS publicada al (BOE 249 de 18.10.2021). 06/09/2021: Ingrés Tresoreria. No executat tot el pressupost de 2022. Parcialment pressupostat el 23. 17/05/2022: Acord de CM. 23/06/2022: Acord de CS (Publicat al BOE 19/07/22). 28/07/2022: Ingrés Tresoreria anualitat 2022. 03/05/2023: Acord de CM. 03/05/2023: Certificat de CM (distribució, criteris). 07/06/2023: Acord de CS. 21/06/2023: Resolució Acord CS (BOE 157 de 03.07.2023). 18/07/2023: Ingrés Tresoreria anualitat 2023. | AG17: Justificació mitjançant costos simplificats, aplicant un mòdul de 81.000 € per grup presencial creat (grup s’entén que oferta 30 places). La resta de depeses es justificarà a cost real, condicionat al compliment de la creació o transformació de cicles acreditable com a formació permanent del professorat. Per crear cicles: 1.620.000 €; per a despeses complementàries condicionades a la creació de grups: 1.080.000 €. Import pressupostat el 2022 no es va executar del tot (Ordenat: 920.859,47 €) | AH17: Nòmines + convocatòria/contracte de serveis per ajuts a estades a l’estranger | AI17: 2024-12-31 | AJ17: Objectiu 2021 (CID 301): crear 20 cicles bilingües. Període actuacions: 1/9/21 a 31/12/22. (Veure sistema costos a informació addicional). Objectiu 2022 (CID 301): crear 42 cicles formatius de grau mitjà i superior en bilingües Objectiu 2023 (CID 301): crear 68 cicles formatius de grau mitjà i superior en bilingües | AK17: 2023-06-30 | AL17: Els objectius OA 301.1, han de estar assolits el Q2 de 2022, OA 301.2 al Q2 de 2023 i OA 301.3, amb compliment al Q2 de 2024. | AM17: 2025-03-31 | AN17: Comunicar al MEFP l’estat d’execució indicant les quanties totals de compromisos de crèdits, obligacions reconegudes i pagaments realitzats. La justificació dels crèdits se presentaran a la PLATAFORMA ULISES. | AP17: Pilar Cortès | AQ17: Convoca`toria/contracte per a l’estada a l’estranger feta el 20222 i el 2023 + nómines. Primera convoca`toria: 90 participants. Manca informació sobre nombre de cicles creats
A18: Conselleria d'Educació i Universitats | B18: Educació | C18: Conferència Sectorial d’Educació | D18: 2023-12-13 | E18: Aprovat/Acord de Conferència Sectorial definitiu | F18: Educació | G18: C20. | H18: C20.I03. | I18: C20.I03.P02.S04. Oferta FP: Redimensionament de l’oferta de formació professional – Illes Balears. | J18: 11596875 | L18: =2812500+562500 -> 3375000 | M18: 3534375 | N18: 4687500 | R18: SI | T18: MR015 | U18: E06 | W18: 2821500 | X18: =L18 -> 3375000 | Y18: 3534375 | Z18: 4607992.73 | AA18: =2812500+3534375+562500 -> 6909375 | AB18: Ministeri d’Educació i Formació Professional | AC18: =72729375+103890000+6159371+143398125 -> 326176871 | AD18: 0.03555394644 | AE18: Criteris de distribució: 1) Nº alumnes matriculats en tots els nivells de FP a centres públics, modalitat presencial i distància. 2) Nº alumnes que finalitzan l’escolaritat obligatòria a centres públics. 3) Taxa d’abandonament educatiu primerenc. 4) Alumnes matriculats a Cicles Formatius de FPB i Cicles Formatius Grau Mitjà en centres públics, modalitat presencial. 5) Nº de centres que imparteixen Cicles Formatius de FPB i Cicles Formatius de GM, modalitat presencial i distància, a centres públics. 6) Nº de centres públics que ofereixen FP Dual. 7) Nº d’empreses tecnològiques i industrials. 8) Nº d’empreses participants en FP Dual. 9) Coeficient per bretxa de gènere a títols de families tecnològiques e industrials. 10) Alumnes matriculats a cicles formatius de FPB i GM, modalitat presencial. 11) Taxa de risc de pobresa. 12) Dispersió geogràfica de les Administracions Públiques. | AF18: 8/06/2021: Acord de CM. 21/07/2021: Acord de CS. 06/09/2021: Ingrés Tresoreria. 7/10/2021: Resolució d’assignació a IB (BOE 249 de 18.10.2021). 20/12/2021: Acord de CS. 11/02/2022: Resolució distribució a IB i increment de places (BOE 45 de 22.02.2022). 17/05/2022: Acord de CM. 23/06/2022: Acord CS (Publicat al BOE 19/07/22). 28/07/2022: Ingrés Tresoreria. FONS ADDICIONALS 7/12/2021: Autorització distribució de crèdits CM. 20/12/2021: Acord de CS. 11/02/2022: Resolució distribució a IB i increment de places (BOE 45 de 22.02.2022). 29/11/2021: Ingrés Tresoreria. 02/10/2023: Aprobació de l’Addenda espanyola per la Comissió Europea. Modficació del termini d’execució per a l’objectiu CID 302: T4 del 2025. 07/11/2023: Acord de CM. 02/10/2023: Aprobació de l’Addenda espanyola per la Comissió Europea. Modficació del termini d’execució per a l’objectiu CID 302: T4 del 2025. 13/12/2023: Acord de CS. BOE 28, de 1/02/2024. | AG18: Justificació mitjançant costos simplificats, aplicant els mòduls següents: 56.250 € per a la creació d’un nou grup (30 places) i 1.875 €/plaça per places d’oferta modular o a distància (sense tenir en compte la configuració de grups). Estimació inicial quadre seguiment Component 20 DG Pressuposts 23/05/22. | AH18: Previsions des despesa: nòmines+ transferències centres concertats | AI18: 2025-12-31 | AJ18: Objectiu (CID 300 i 302) 2021: crear 1.500 (+300 de l’ampliació publicada al BOE 45 de 22 de febrer de 2022) noves places d’oferta presencial, modular i a distància amb els recursos assignats. Període actuacions 1/9/21 a 31/12/22. Veure sistema costos a informació addicional. Objectiu (CID 300 i 302) 2022: 1.885 places assumides abans del 31/12/2023. Segons l’Acord de CM, a les Illes Balears: creació de 2.500 places de FP fins a finals de 2024. Ampliació del termini d’execució. Compromisos Illes Balears 2023: 2.500 places. | AK18: 2023-12-31 | AL18: 31/12/2022: Creació de 1.800 noves places d’oferta presencial, modular i a distància amb els recursos assignats. 31/12/2023: 1.885 places. . FONS ADDICIONALS REBUTS EL 2021: Aprovat el programa i rebuts els fons per a la financiació, les CCAA enviaran al MEFP tres informes de seguiment de l’actuació, de conformitat amb el model disponible a ULISES, en el que es detallen les dates quantitatives de l’execució de l’actuació. Aquests informes es carregaran dins l’aplicació ULISES, a l’apartat habilitat a l’efecte a les dates següents: 28 de febrer de 2022, 30 de juny de 2022 i 30 de novembre de 2022. | AM18: 2023-03-31 | AN18: L’indicador de seguiment serà el número de noves places creades certificat per les CCAA mitjançant document resum que justifiqui el compliment. Aquesta justificació s’haurà de presentar en els tres mesos següents a la finalització del termini per a la realització de les actuacions, es a dir, abans del 31 de març de 2023. | AP18: Pilar Cortès | AQ18: Ordre global 34AI. No informació sobre compliment de fites, només execució pressupostària
A19: Conselleria d'Educació i Universitats | B19: Educació | C19: Conferència Sectorial d’Educació | D19: 2023-07-05 | E19: Aprovat/Acord de Conferència Sectorial definitiu | F19: Educació | G19: C21. | H19: C21.I02. | I19: C21.I02.P01.S04. PROA+ (Programa d’Orientació, Avanç i Enriquiment Educatiu en centres d’especial complexitat educativa) – Illes Balears. | J19: 10413244 | L19: 2591502 | M19: 3910871 | N19: 3910871 | R19: SI | T19: MR018 | U19: E06 | W19: =L19+M19 -> 6502373 | X19: =W19 -> 6502373 | Y19: 3910871 | Z19: 3910871 | AA19: =L19+M19+N19 -> 10413244 | AB19: Ministeri d’Educació i Formació Professional | AC19: =78184140+118184140+118184140 -> 314552420 | AD19: 0.03310495592 | AE19: Criteris de distribució: 1) 60% Nivell d’estudis de la població de 25 a 64 anys. 2) 30% Taxa d’idoneitat (complementari als 15 anys. 3) 10% Dispersió de la població i insularitat. | AF19: 15/04/2021: Proposta Comisión General Educación. 14/07/2021: Autorització distribució crèdits Consell Ministres. 21/07/2021: Aprovat per CS. Hi ha una part addicional amb càrrec a PGE no inclosa aquí, no tot és MRR. 21/07/2021: Resolució d’acord de CS inclou la distribució per a 2022 i 2023. Publicat al BOE 185 de 3.08.2022. 11/08/2021: Resolució transferència 2021. 30/08/2021: Ingrés Tresoreria anualitat 2021. 07/06/2022: Autorització CM import 2022. 23/06/2022: Acord de CS. 28/07/2022: Ingrés Tresoreria anualitat 2022. 09/05/2023: Acord distribució de fons CM. 07/06/2023: Acord de CS. 09/05/2023: Acord distribució de fons CM. 05/07/2023: Publicació resolució Acord de CS (BOE 170, de 18/07/23). 07/07/2023: Ingrés Tresoreria anualitat 2023. | AG19: Es financen professionals d'atenció a la diversitat i plans per a la inclusió educativa als centres educatius. Obligacions reconegudes el 2022: 3.670.780,03 € | AH19: En marxa: nòmines de personal docent o especialista | AI19: 2024-12-31 | AJ19: Objectiu 2021 (CID 310): 64 contractes entre els centres i administració educativa. Termini d’execució de 1/09/2021 a 31/08/2023. Objectiu 2022 (CID 310): 107 contractes entre els centres i l’administració educativa. Objectiu 2023 (CID 310): 107 contractes programa entre els centres i l’administració educativa. | AK19: 2023-08-31 | AL19: Termini d’execució dels 64 contractes entre els centres i administració educativa finalitza el 31/08/2023. S’ha de presentar justificació abans del 30/11/2022 pels fons del 2021, 30/11/2023 pels fons del 2022. Per als fons de l’any 2023 la justificació es farà abans del 30/11/2024. Ordre global 37AI, formalitzat amb altres instruments per despeses i nòmines. L’import mobilitzat i executat és de 4.002.216,69€. No tenim informació relativa al grau de compliment dels contractes programa realitzats. | AM19: 2023-11-30 | AN19: La UE ha establert, entre d'altres, els indicadors següents a assolir: - L'alumnat de 15 anys amb baix rendiment en comprensió lectora, matemàtiques i ciències ha de ser menor del 15% el 2030. - L'alumnat de 15 anys amb baix rendiment en competència digital ha de ser menor del 15% el 2030. - L'alumnat amb Abandonament Primerenc de l'Educació ha de ser menor del 9% el 2030. | AP19: Pilar Cortès | AQ19: La informació relativa al compliment de l’objectiu anual no la tenim
A20: Conselleria d'Educació i Universitats | B20: Educació | C20: Conferència Sectorial d’Educació | D20: 2022-08-03 | E20: Aprovat/Acord de Conferència Sectorial definitiu | F20: Digitalització | G20: C19. | H20: C19.I02. | I20: C19.I02.P09.S03. Accions de formació per a l’adquisició de la competència digital de docents i mentorització per al disseny i implementació del Pla Digital de Centre als centres de les Illes Balears. | J20: 7453141 | L20: 299922 | M20: 7153219 | R20: SI | T20: MR011 | U20: E06 | V20: 51000 | W20: 7397070 | X20: 7397070 | Y20: 3722617 | Z20: 6124384.46 | AA20: =M20+L20 -> 7453141 | AB20: Ministeri d’Educació i Formació Professional | AC20: =11947200+284741600 -> 296688800 | AD20: 0.02512107299 | AE20: Criteris de distribució: 1) 70% coeficient estimat Nº de profesors d’ensenyament no universitari. 2) 25% coeficient estimat Nº de centres d’ensenyament no universitari. 3) 5% coeficient estimat per dispersió de la població e insularitat. | AF20: 21/07/2021; Acord de CS. 12/08/2021: Resolució SE concessió per a l’any 2021, però inclou l’import de l’any 2022 en l’annex de distribució. 25/08/2021: Ingrès Tresoreria. (Abans teníem 7.148.148€, segons info de 2021, per a l’anualitat 2022. Xifra revisada amb l’Acord CM 07/04/2022.) 23/06/2022: Acord de CS. 21/07/2022: Resolució Acord de CS (Publicació BOE acord CS: 03/08/22). 28/07/2022: Ingrès Tresoreria. 02/10/2023: Aprobació de l’Addenda espanyola per la Comissió Europea. Modficació del termini d’execució per a l’objectiu CID 290: T4 del 2025. 26/12/2023: Resolució de 19/12/2023 Acord de CS. Ampliació de terminis d’execució dels crèdits gestionats per CCAA destinats al programa de cooperació territorial per a la millora de la competència digital educativa (BOE 308 de 26/12/2023). | AG20: Execució pressupostària 2021 i 2022: 51.000 € + 1.277.756,54 € | AH20: Es financen assessors de formació de l'IBSTEAM per a la formació dels docents en competència digital: despeses de nòmines, publicitat i d’altres | AI20: 2025-12-31 | AJ20: Objectiu CID 289 i 290: Realització d’accions per a la transformació digital de l’educació a través de la certificació de les competències digitals de, al menys, el 80% de 700.000 docents i el desenvolupament i revisió dels Plans Digitals de Centre de, al menys 22.000 centres. L’indicador de compliment serà el nombre de docents certificats per les CCAA en un determinat nivell i nombre de centres amb Pla Digital de Centre. A les Illes Balears del 2021-2024: 456 centres i 14.476 professors. Fita intermèdia: a data 30/06/23: 228 centres i 12.482 docents (fixada als efectes de fixar una previsió del grau d’execució de la despesa i avanç del compliment de les fites i objectius). Ampliació del termini d’execució fins al 31/12/2025. | AK20: 2023-06-30 | AL20: 30/06/2023: 228 centres certificats i 12.482 professors formats. 30/06/2024: 228 centres certificats i 1994 professors formats. Aquesta justificació de les accions del PCT ha de ser presentada els tres mesos següents a la finalització del termini per a la realització de les actuacions. Es a dir, abans del 30 de noviembre de 2025. (Ampliat termini d’execució objectiu CID 290 fins al 31/12/2025). El termini d’execució per a aquest Programa de Cooperació Territorial serà de l’1/01/2021 fins al 31/08/2025). A l’excel de seguiment i previsions (altres instruments) s’ha executat a 31/05/23: 2.435.309,74€ (Ordre global 2AI) . No tenim més informació. | AM20: 31/11/2025 | AP20: Pilar Cortès | AQ20: Demanar a Educació nombre professors formats. Objectiu és molt alt.
A21: Conselleria d'Educació i Universitats | B21: Educació | C21: Conferència Sectorial d’Educació | D21: 2023-12-19 | E21: Aprovat/Acord de Conferència Sectorial definitiu | F21: Educació | G21: C21. | H21: C21.I01. | I21: C21.I01.P01.S08. INFANTIL 0 - 3 ANYS - Illes Balears. | J21: 24644704 | L21: =3015375+4408081 -> 7423456 | M21: =3421945+8816530 -> 12238475 | N21: 4982773 | R21: SI | T21: MR002 | U21: E06 | V21: 1571948 | W21: =5851508+M21 -> 18089983 | X21: 18089983 | Y21: 13441003 | Z21: 16516458.24 | AA21: =L21+M21+N21 -> 24644704 | AB21: Ministeri d’Educació i Formació Professional | AC21: =200790000+323337155+142464043 -> 666591198 | AD21: 0.03697124126 | AE21: Criteris de distribució: 1) 50% pel nivell estudis població 25/64 anys; 2) 60% tasa escolarització 0/2 anys, 3) 20% dispersió població; 4) Població 0-2 anys. | AF21: 16/11/2021: Aprovat per CM. 25/11/2021: Aprovat CS. L’acord inclou la distribució per a 2022 i 2023. 23/12/2021: Resolució Acord de CS (BOE 312 de 29.12.2021). 28/12/2021: Ingrés Tresoreria 2021. 13/12/2022: Aprovat CS. 28/12/2022: Resolució Acord de CS (BOE 5 de 6.01.2023). El pressupost de 2022 no es va executar en la seva totalitat (OP 21+22: 1.047.165,53 +1.525.461,20 €) 09/01/2023: Ingrés Tresoreria assignació 2022. 02/10/2023: Aprobació de l’Addenda espanyola per la Comissió Europea. Modficació del termini d’execució per a l’objectiu CID 309: T4 del 2025. 07/11/2023: Acord de CM 26/12/2023: Resolució Acord de CS de 19/12/2023. Proposta de distribució territorial (BOE 308 de 26/12/2023). 28/12/2023: Ingrés Tresoreria 2023. | AG21: Import figura a l’assignació de 2021 Ampliació convocatòria de subvencions publicada al BOIB BOIB 22.06.21; NdP adjudicacio places escoletes Publicada la resolució de concessió de les subvencions el 7/12/21. S’han concedit ajuts per a la creació i consolidació de 1.614 places. Import MRR: 11.420.093 € (ampliada fins a 17.886.240 € per increment costos). Convocatòria 2022: 84.000: Convocatòria març 23: 4.536.000 € € | AH21: Convocatòries de subvencions (3) + Encàrrec de gestió a TRAGSATEC per ajudes en espècie + Convenis ajuntaments per gratuïtat escoletes 0-3 + despeses de personal. Ja concedides subvencions de dues convocatòries (excel seguiment ordre global 3S i 25S). | AI21: 2025-12-31 | AJ21: Objectiu (CID: 308 i 309) pels anys 2021 a 2023: creació de 2.418 places noves. Creant cada any 806 places. Objectiu CID 309: Promoció del primer cicle d'escolarització de l'Educació Infantil mitjançant la creació completa de noves places de titularitat pública (noves construccions i/o reformes/rehabilitacions i equipaments en almenys 60.000 places en comparació amb finals de 2020, i d'aquestes despeses de funcionament fins a un màxim de 40.000 places fins a 2025). Termini d’execució 2021: de l’1 de gener de 2021 fins al 31 de desembre de 2025 (el termini inicial era fins 31/12/22, després es va modificar al 2023). Termini d’execució 2022: de l’1 de gener de 2023 fins al 31 de desembre de 2025. (Concedides subvencions per a 1.614 places) Convocatòria publicada 30.03.23: 400 noves places). Termini d’execució 2023: de l’1 de gener de 2024 fins al 31 de desembre de 2025. Termini d’execució ampliat fins al 31/12/2025 | AK21: 2025-12-31 | AL21: La justificació ha de ser presentada abans del 31 de marzo de 2026 per als fons transferits dels anys 2021, 2022 i 2023. Tota la documentació justificativa i el progrès dels indicadors dels objectius crítics assignats ha de figurar dins la plataforma comú de fons europeus (CoFFEE) abans del 31/01/2026. Objectiu OA 309: Certificació de les noves places de titularitat pública creades amb mapa i acreditació d’ocupació l’any 2025. Certificat de final d’obra o de reforma/rehabilitació i equipament de les noves places (publicació de llista d’edificis i excel amb el nom del projecte, referència del certificat de finalització, tipus i categoria del projecte i descripció del projecte. Certificació del Ministeri. | AM21: 2024-12-15 | AN21: Realització d’avaluació qualitativa i quantitativa amb els següents indicadors: - nº places públiques creades. - augment del nombre de municipis amb places públiques de 1r cicle d’educació infantil. | AP21: Pilar Cortès | AQ21: Import mobilitzat fons: 24,03 m € (31.05.23)
A22: Conselleria d'Educació i Universitats | B22: Educació | C22: Conferència Sectorial d’Educació | D22: 2021-08-11 | E22: Aprovat/Acord de Conferència Sectorial definitiu | F22: Digitalització | G22: C19. | H22: C19.I02. | I22: C19.I02.P07.S03. Dotació de 300.000 dispositius portàtils per a la reducció de la bretxa digital a les Illes Balears. | J22: 3174614 | L22: 3174614 | R22: SI | T22: MR008 | U22: E06 | W22: =J22 -> 3174614 | X22: 3174614 | Y22: 926918 | Z22: 1240767.8 | AA22: =L22 -> 3174614 | AB22: Ministeri d’Educació i Formació Professional | AC22: 149238000 | AD22: 0.02127215589 | AE22: Criteris de distribució: 1) Nombre d’alumnes. 2) Llars sense dispositius. 3) Taxa de risc de pobresa per CCAA 2019. 4) Dispersió de la població i insularitat, segons les xifres oficials de població dels municipis espanyols. | AF22: 15/04/2021: Comisión General Educación. 13/07/2021: Autorització distribució crèdits Consell Ministres. 22/07/2021: Aprovat per CS. 11/08/2021: Resolució SE concessió. 30/08/2021: Ingrés Tresoreria. 23/06/2022: Acord de CS EcoDigEdu. 21/07/2022: Resolució acord de CS (BOE 185, 03.08.2022). | AG22: Contracte licitat el 2022 i previsió nou 2023. Es pressuposta el 2023 perquè el 2022 se va ordenar 1.933.846,20 | AH22: Previsió fer licitacions | AI22: 2025-03-31 | AJ22: Fita 31/03/2023: Actuació 1: 2.106 dispositius a les Illes Balears. Fita 31/03/2024: Actuació 1: 4.212 dispositius a les Illes Balears. Fita 31/03/2025: Actuació 1: 6.382 dispositius a les Illes Balears. Termini d’execució: 1/01/2021 fins al 31/03/2025. | AK22: 2024-03-31 | AL22: Fita 31/03/2023: Actuació 1: 2.106 dispositius a les Illes Balears. Fita 31/03/2024: Actuació 1: 4.212 dispositius a les Illes Balears. S’han fet dues licitacions publicades en data 08/08/2022 i 20/03/2023. Ambdues ja s’han adjudicat per import 2.080.188,80€. Ordre global 20L (6.340 dispositius) i 90L. | AN22: - Nombre de dispositius i connectivitat entregats que haurà de certificar la CCAA. | AP22: Pilar Cortès
A23: Conselleria d'Educació i Universitats | B23: Educació | C23: Conferència Sectorial d’Educació | D23: 2021-08-11 | E23: Aprovat/Acord de Conferència Sectorial definitiu | F23: Digitalització | G23: C19. | H23: C19.I02. | I23: C19.I02.P08.S03. Instal·lació, actualització i manteniment de sistemes digitals interactius (SDI) en aules de centres educatius que imparteixen ensenyaments oficials diferents de les universitàries - Illes Balears. | J23: 18896352 | L23: 18896352 | R23: SI | T23: MR009 | U23: E06 | W23: =J23 -> 18896352 | X23: 18896352 | Y23: =X23 -> 18896352 | AA23: =L23 -> 18896352 | AB23: Ministeri d’Educació i Formació Professional | AC23: 821000000 | AD23: 0.02301626309 | AE23: Criteris de distribució: 1) Nº alumnes. Ponderació 50%. 2) Nº centres. Ponderació 15%. 3) Nº unitats. Ponderació 30%. 4) Dispersió de la població i insularitat. Ponderació 5%. | AF23: 15/04/2021: Comisión General Educación. 13/07/2021: Autorització distribució crèdits Consell Ministres. 21/07/2021: Aprovat per CS. 11/08/2021: Resolució SE concessió. No executada despesa 2022. Pressupostat tot de nou el 2023. 21/07/2022: Resolució acord de CS (BOE 185, 03.08.2022). | AG23: Instal·lació, actualització i manteniment de sistemes digitals interactius (SDI) a aules de centres educatius. No es va executar el 2022 i l’import es pressuposta el 2023 | AH23: Licitació | AI23: 2025-03-31 | AJ23: Fita 31/03/2023: Actuació 2: 1.822 nombre d’aules digitals a les Illes Balears. Fita 31/03/2024: Actuació 2: 3.643 aules digitals a les Illes Balears. Fita 31/03/2025: Actuació 2: 5.520 aules digitals a les Illes Balears. Termini d’execució: 1/01/2021 fins al 31/03/2025. | AK23: 2024-03-31 | AL23: Fita 31/03/2023: Actuació 2: 1.822 nombre d’aules digitals a les Illes Balears. Fita 31/03/2024: Actuació 2: 3.643 aules digitals a les Illes Balears. S’ha realitzat licitació publicada en data 10/08/2022 i adjudicada per un import de 18.826.269,00€. Segons excel de seguiment i previsions. (Ordre global 50L: es liciten 5.520 aules digitals). | AN23: ‐ Nombre d’aules digitalitzades ha de certificar la CCAA. | AP23: Pilar Cortès
A24: Conselleria d'Educació i Universitats | B24: Educació | C24: Conferència Sectorial d’Educació | D24: 2021-08-11 | E24: Aprovat/Acord de Conferència Sectorial definitiu | F24: Digitalització | G24: C19. | H24: C19.I02. | I24: C19.I02.P10.S03. Formacions impartides per a capacitació i suport per a Aules Digitals Interactius (SDI) a les aules dels centres educatius – Illes Balears. | J24: 436089 | L24: 436089 | R24: SI | T24: MR009 | U24: E06 | W24: =J24 -> 436089 | X24: 436089 | Y24: =X24 -> 436089 | AA24: =L24 -> 436089 | AB24: Ministeri d’Educació i Formació Professional | AC24: 18947000 | AD24: 0.02301625587 | AE24: Criteris de distribució: 1) Nº alumnes. Ponderació 50%. 2) Nº centres. Ponderació 15%. 3) Nº unitats. Ponderació 30%. 4) Dispersió de la població i insularitat. Ponderació 5%. | AF24: 15/04/2021: Comisión General Educación. 13/07/2021: Autorització distribució crèdits Consell Ministres. 21/07/2021: Aprovat per CS. 11/08/2021: Resolució SE concessió. No executada despesa 2022. Pressupostat tot de nou el 2023. 21/07/2022: Resolució acord de CS (BOE 185, 03.08.2022). | AG24: Capacitació tècnica del professorat en el funcionament de les dotacions que rebin els centres educatius. | AH24: previsió de més assessors en formació IBSTEAM | AI24: 2025-03-31 | AJ24: Fita 31/03/2024: Actuació 3: 177 capacitació i suport a les Illes Balears. Fita 31/03/2025: Actuació 3: 354 capacitació i suport a les Illes Balears. Termini d’execució: 1/01/2021 fins al 31/03/2025. | AK24: 2024-03-31 | AL24: Fita 31/03/2024: Actuació 3: 177 capacitació i suport a les Illes Balears. No tenim informació relativa a aquesta fita. | AN24: ‐ Nombre de centres que reben la capacitació per al funcionament de les dotacions que ha de certificar la CCAA. | AP24: Pilar Cortès | AQ24: No info execució, però el termini és llunyà
A25: Conselleria d'Educació i Universitats | B25: Educació | C25: Conferència Sectorial d’Educació | D25: 2023-06-07 | E25: Aprovat/Acord de Conferència Sectorial definitiu | F25: Digitalització | G25: C19. | H25: C19.I01. | I25: C19.I01.P01.S03. Reforma/Adaptació de Centres de Capacitació Digital a centres de FP de la Xarxa Nacional de Competències Digitals, per a la millora de les capacitats digitals – Illes Balears. | J25: 1901043.16 | M25: 955400 | N25: 945643.16 | R25: SI | T25: MR082 | U25: E11 | W25: 955400 | X25: 955400 | Y25: 945643.16 | Z25: 955400 | AA25: =+M25+N25 -> 1901043.16 | AB25: Ministeri d’Educació i Formació Professional | AC25: =29505000+29301107.88 -> 58806107.88 | AD25: 0.03232730797 | AE25: Criteris de distribució: 1) 10% coeficient nombre de centres d’educació de persones adultes. 2) 15% coeficient per alumnes atesos en centres d’educació de persones adultes. 3) 65% coeficient estimat per població major de 16 anys amb nivell de formació d’ESO o inferior. 4) 10%, coeficient per dispersió geogràfica de les Administracions Públiques. | AF25: 15/11/2022: Acord CM. 02/12/2022: Acord CS. 05/12/2022: Resolució Acord de CS de data 2.12.2022 (Publicació al BOE 14/12/22). 02/01/2023: Ingrés Tresoreria anualitat 2022. 03/05/2023: Acord CM. 07/06/2023: Acord de CS. 21/06/2023: Resolució Acord de CS (BOE 157 de 03.07.2023). 18/07/2023: Ingrés Tresoreria anualitat 2023. | AI25: 2024-12-31 | AJ25: Fita del CID 286 al Q4 de l’any 2023. A les Illes Balears l’objectiu per assumir son 34 centres. Aquesta mesura té assignada l’objectiu CID OA 286.1, amb acompliment al Q4 de 2022. Fita del CID 287 al Q4 de l’any 2024. A les Illes Balears l’objectiu per assumir són 1.740 persones a capacitar. Per a l’exercici pressupostari 2023, el compromís de les CCAA és mantenir els centres finançats amb la distribució de crèdit de l’exercici 2022. Es podran crear addicionalment fins a un 30% de nous centres com a conseqüència de la no necessitat de financiació addicional per qualque centres creats al 2022 o de la necessitat de creació de nous per substitució de centres creats al 2022 i que no puguin donar continuïtat a l’activitat. A les Illes Balears 34 centres i 1722 persones a capacitar. (Objectiu CID 286 i 287). | AK25: 2023-12-31 | AL25: Fita 31/12/2023: 34 centres de Capacitació Digital a Centres de FP de la Xarxa de Competècies Digitals. Fita 31/12/2024: 34 centres de Capacitació Digital a Centres de FP de la Xarxa de competències Digitals i 1722 persones a capacitar. Abans de 31/03/2025 les CCAA han de remetre al Ministeri d’Educació i FP, l’estat d’execució indicant les qüanties totals de compromisos de crèdits, obligacions reconegudes I pagaments realitzats. | AM25: 2024-03-31 | AP25: Pilar Cortès
A26: Conselleria d'Educació i Universitats | B26: Educació | C26: Conferència Sectorial d’Educació | D26: 2023-06-07 | E26: Aprovat/Acord de Conferència Sectorial definitiu | F26: Educació | G26: C20. | H26: C20.I01. | I26: C20.I01.P01.S03. Evaluació i acreditació de competències professionals – Illes Balears. | J26: 23227806.87 | L26: 4636206.87 | M26: 11240160 | N26: 7351440 | R26: SI | T26: MR012 | U26: E06 | W26: =L26 -> 4636206.87 | X26: 4636206.87 | Y26: 6371606 | Z26: 6371606 | AA26: =L26+M26+N26 -> 23227806.87 | AB26: Ministeri d’Educació i Formació Professional | AC26: =115710882.36+ 179631120+129692640 -> 425034642.4 | AD26: 0.05464920869 | AE26: Criteris de distribució per avaluació i acreditació de les competències adquirides per la experiència laboral i vies no formals de formació: • Coeficient de treballadors sense titulació professional per CCAA. • Coeficient per persones desocupades. • Coeficient por taxa de risc de pobresa. • Coeficient per dispersió població activa i correcció km2 per superfici CCAA. • Coeficient per dispersió geogràfica de les Administracions Públiques. | AF26: 08/06/2021: Acord de Consell de Ministres. 21/07/2021: Acord de CS (Publicat al BOE 249 de 18.10.2021). 31/01/2022: Resolució convocatòria de procediment per avaluar competències (BOIB 26 de 17.02.2022). 30/08/2021: Ingrés Tresoreria anualitat 2021. 17/05/2022: Acord de Consell de Ministres. 23/06/2022: Acord CS (Publicat al BOE 19/07/22). 28/07/2022: Ingrés Tresoreria anualitat 2022. 17/03/2023: Resolució procediment per avaluar competències professionals (BOIB 51 de 22.04.2023). 03/05/2023: Acord de CM. 03/05/2023: Certificat de CM (distribució, criteris). 07/06/2023: Acord de CS. 21/06/2023: Resolució acord de CS (BOE 157 de 03.07.2023). 18/07/2023: Ingrés Tresoreria anualitat 2023. 02/10/2023: Aprobació de l’Addenda espanyola per la Comissió Europea. Modficació del termini d’execució per a l’objectiu CID 297: T4 del 2025. | AG26: Justificació mitjançant costos simplificats, aplicant un mòdul de 240 € per candidat acreditat en dues fases (organització, difusió i inscripció: 72 € i assessorament/avaluació, 168€ per unitat de competència avaluada i assessorada). Inclou una part (336.147,39 € per assistència tècnica; la resta, és per a acreditacions). | AH26: Convocatòria sempre oberta. Previsions despesa: personal propi, minutes i publicitat. Publicació diverses convocatòries BOIB d’acreditació competències. Despesa és capítol 2 (minutes) sobretot. | AI26: 2025-12-31 | AJ26: Objectiu CID 297: Registre (matrícula), avaluació i acreditació de 2.000.000 d’unitats de competència del Catàleg Nacional de Qualificacions Professionals adquirides a través de pràctiques i itineraris formatius no formals (abans de l’aprovació de l’Addenda, eren 3.000.000 d’unitats). 2021 Illes Balears Objectiu CID 297: 17.917 acreditacions de competències professionals. Període actuacions: 1/9/21 a 31/12/22. 2022 Illes Balears Objectiu CID 297: 46.834 acreditacions de competències professionals assumides. Període actuacions: 1/9/2022 a 31/12/2023. 2023 Illes Balears Objectiu CID 297: 30.631 acreditacions de competències professionals assumides. Període actuacions: 1/09/2023 a 31/12/2024. Actuació global: 31/12/2025 (Ampliació de termini) | AK26: 2023-12-31 | AL26: 2021: assumir 17.917 acreditacions de competències professionals abans de 31/12/2022. 2022: assumir 46.834 acreditacions de competències professionals abans de 31/12/2023. 2023: assumir 30.631 acreditacions de competències professionals abans de 31/12/2024. A l’excel de seguiment i previsions consten diferents publicacions amb el procediment per avaluar i acreditar les competències professionals. L’ordre global de les diferents convocatòries són: 3AI, 8AI,9AI,10AI, 30AI,44AI,45AI,60AI, 61AI i 67AI. L’import executat és de 2.792.712,38€. No tenim dades relatives al nº de persones acreditades. | AM26: 2025-03-31 | AN26: Aportar document justificatiu del compliment de l’objectiu CID 297. Excel de càlcul amb la relació de les unitats de competències registrades, avaluades i acreditades desglosades per àrees d’especialització amb el DNI de la persona avaluada i acreditada. | AP26: Pilar Cortès | AQ26: Demanar a Educació nombre competències acreditades
A27: Conselleria d'Educació i Universitats | B27: Educació | C27: Conferència Sectorial d’Educació | D27: 2021-06-08 | E27: Aprovat/Acord de Conferència Sectorial definitiu | F27: Educació | G27: C20. | H27: C20.I02. | I27: C20.I02.P01.S03. Formació digital i verda aplicada als sectors productius, per a docents de FP – Illes Balears. | J27: 70352.25 | L27: 70352.25 | R27: SI | T27: MR013 | U27: E06 | W27: =L27 -> 70352.25 | X27: 70352.25 | Y27: 0 | AA27: =L27 -> 70352.25 | AB27: Ministeri d’Educació i Formació Professional | AC27: 2431547.4 | AD27: 0.02893311889 | AE27: Criteris de distribució: 1) Nombre de docents de FP de centres públics d’ESO, batxillerat i FP. 2) Nombre d’alumnes matriculats a tots els nivells de FP a centres públics (presencial i distància). 3) Coeficient per bretxa de gènere a títols de families tecnològiques i industrials. Alumnat matriculat a families profesionals industrials i tecnológiques, a tots els nivells de FP, modalitat presencial. 4) Dispersió geogràfica de les Administracions Públiques. 5) Dispersió de població activa i correcció km2 per superficie CCAA. 6) Taxa de risc de pobresa. | AF27: 08/06/2021: Acord de Consell de Ministres. 21/07/2021: Acord CS. 07/10/2021: Resolució Acord CS (BOE 249, 18.10.2021). 19/08/2021: Ingrés Tresoreria. | AG27: Justificació mitjançant costos simplificats, aplicant un mòdul de 98,89 € per docent format, amb un mínim de 30 hores de formació acreditable com a formació permanent del professorat. | AH27: Previsions de despesa: minutes de professionals. | AI27: 2024-12-31 | AJ27: Objectiu: format 711 docents. Període actuacions: 1/9/21 a 31/12/22. Veure sistema costos a informació addicional. S’ha permès incorporar a l’exercici següent tenint en compte tota la vigència programa (Informació Educació) | AK27: 2022-12-31 | AL27: 711 docents formats. D’acord amb excel Seguiment i previssions hi ha una firma de data 31/12/2022 i consta un import mobilitzat i executat de 3.600€ el 2022 (Ordre global 32AI) La informació relativa al nombre de docents formats, no consta. | AM27: 2023-03-31 | AN27: - Nombre de professors formats. | AP27: Pilar Cortès | AQ27: Modificat termini execució perquè a COFFEE figura 2024. Confirmar amb Educació
A28: Conselleria d'Educació i Universitats | B28: Educació | C28: Conferència Sectorial d’Educació | D28: 2023-06-07 | E28: Aprovat/Acord de Conferència Sectorial definitiu | F28: Educació | G28: C20. | H28: C20.I02. | I28: C20.I02.P03.S03. Creació d’aules d’emprenedoria a centres de FP – Illes Balears. | J28: 520000 | L28: 115000 | M28: 205000 | N28: 200000 | R28: SI | T28: MR014 | U28: E06 | W28: =115000+205000 -> 320000 | X28: =115000 -> 115000 | Y28: 205000 | Z28: =205000+20000 -> 225000 | AA28: =115000+205000+200000 -> 520000 | AB28: Ministeri d’Educació i Formació Professional | AC28: =4765000+6635000+6375000 -> 17775000 | AD28: 0.02925457103 | AE28: Criteris de distribució: 1) Nombre de centres públics que imparteixen formació professional. 2) Nombre d’alumnes matriculats a tots els nivells de FP a centres públics, modalitat presencial i a distancia. 3) Nombre d’empreses de treball autònom o fins 9 assalariats. 4) Nombre de municipis de menys de 10.000 habitants. 5) Coeficient per bretxa de gènere en títols de famílies tecnològiques i industrials. 6) Alumnat matriculat a cicles formatius de FPB i GM, modalitat presencial. 7) Dispersió geogràfica de les administracions públiques. 8) Taxa de risc de pobresa. | AF28: 2021: Acord CM 8/06/2021. 21/07/2021: Resolució Acord de Conferència Sectorial. 18/10/2021: Publicació resolució distribució. (BOE 249). 11/02/2022: Publicació Acord CS de 20.12.2021 1/09/2021: Ingrés Tresoreria anualitat 2021. 2022: Acord de Consell de Ministres 17/05/2022. 23/06/2022: Acord CS (Publicat al BOE 19/07/22). 22/07/2022: Ingrés Tresoreria anualitat 2022. 03/05/2023: Acord de CM. 03/05/2023: Certificat de CM (distribució, criteris). 07/06/2023: Acord de CS. 21/06/2023: Resolució Acord de CS (BOE 157 de 03.07.2023). 18/07/2023: Ingrés Tresoreria anualitat 2023. | AG28: Justificació actuació: 5.00 €/aula, centre i any, durant un període màxim de 3 anys | AH28: Despeses funcionament centres escolars. Despeses menors | AI28: 2024-12-31 | AJ28: 2021: Objectiu: crear 14 aules d’emprenedoria i mantenir les 9 aules ja creades amb els recursos assignats. Termini execució: 1/09/2021 a 31/12/2022. Veure sistema costos a informació addicional. 2022: Objectiu: 41 aules Termini d’execució: 1/09/2022 a 31/12/2023. 2023: Objectiu: 40 aules. Termini d’execució: 1/09/2023 a 31/12/2024. | AK28: 2024-12-31 | AL28: 2021: 14 aules d’emprenedoria i mantenir les 9 aules ja creades amb els recursos assignats per al 31/12/2022. 2022: 41 aules assumides per al 31/12/2023. 2023: 40 aules assumides per al 31/12/2024. No informació fites D’acord amb excel Seguiment i previsions a 31/05/2023 import executat de 235.000,00€. Ordre global 33AI. | AM28: 2025-03-31 | AP28: Pilar Cortès | AQ28: Demanar a Educació com van de compliment objectius
A29: Conselleria d'Educació i Universitats | B29: Educació | C29: Conferència Sectorial d’Educació | E29: Aprovat/Acord de Conferència Sectorial definitiu | F29: Educació | G29: C20. | H29: C20.I01. | I29: C20.I01. C20.I02 . C20.I03. Pla de formació professional per al creixement econòmic i social i l’empleabilitat : programes formació digital, aules d’emprenedoria, de tecnologia, acreditació i competències i oferta FP. | J29: 10722936 | K29: 10722936 | R29: SI | S29: 3400149.17 | T29: 21129 | U29: E06 | AB29: Ministeri d’Educació i Formació Professional | AF29: Inicialment eren fons ordinaris. Reetiquetats com a MRR. Són els mateixos programes del component 20 per a 2021 i següents, excepte oferta bilingüe | AG29: L’import no executat 2021 se pot passar a l’exercici 2022. | AH29: Previsions de despesa: personal (nòmines professorat addicional); formació; fons als centres per crear aules, per dotar-les per convertir-les en espais de tecnologia; minutes de professionals. (execució quasi 6 milions) convocatòria BOIB 17/02/2022) | AI29: 2021-12-31 | AP29: Pilar Cortès
A30: Conselleria de Turisme, Cultura i Esports | B30: Cultura | C30: Conferència Sectorial de Cultura | D30: 2022-04-07 | E30: Aprovat/Acord de Conferència Sectorial definitiu | F30: Cultura | G30: C24. | H30: C24.I03. | I30: C24.I03.P08.S18. Descripció i digitalització de fons documentals de titularitat estatal i gestió autonòmica. Illes Balears. | J30: 59638.89 | L30: 19457.73 | M30: 20090.58 | N30: 20090.58 | R30: SI | T30: MR026 | U30: E01 | W30: =J30 -> 59638.89 | X30: =W30 -> 59638.89 | Y30: 24226 | Z30: 24226 | AA30: =19457.73+20090.58+20090.58 -> 59638.89 | AB30: Ministeri de Cultura i Esport | AC30: =484250+1000000 -> 1484250 | AD30: 0.0401811622 | AE30: Criteris de distribució: 1) 21% del fons del projecte a parts iguals, prorratejant-se les quantitats corresponents a cada CCAA. 2) 79 % del fons del projecte percentualment, prorratejada la quantitat corresponent a cada CCAA. | AF30: 12/05/2021: Informació de reunió. Més concreta la reunió de data 22/06/2021. 13/07/2021: Autorització distribució de fons per Acord CM. 23/07/2021: Aprovació CS 2021. 11/10/2021: Ingrés Tresoreria anualitat 2021. 05/04/2022: Autorització de CM. 07/04/2022: Aprovació distribució de Fons de CS Educació (NdP). 22/06/2022: Ingrés Tresoreria anualitat 2022. 06/04/2023: Ingrés Tresoreria anualitat 2023. | AH30: Contractació | AI30: 2023-12-31 | AJ30: Fites semestral 2021: abans de transferència de crèdit comunicar al Ministeri de Cultura i Esport cronograma anual. 2n semestre 2021 licitar contractes: - Contractes de prestacions de serveis: Publicació a la Plataforma de Contractació. - Contractes menors de serveis: Comunicació de l’aprobació del compromís de despesa i memòria justificativa. 2n quincena de desembre 2021: Comunicació dels resultats obtinguts i remissió de la primera mostra de registres i imatges digitals al Servei de Reproducció de Documents. A més dels acords entre el Ministeri i les CCAA, es realitzaran les transferències de crèdit corresponents per a cada CCAA. A les Illes Balears: A) 2.365 registres; B) 88.005 imag.; C) 688 registres + 22.482 imatges. 1er semestre de 2022: - Contractes de prestació de serveis: Publicació a la Plataforma de Contractació. - Contractes menors de serveis: Comunicació de la aprovació del compromís de despesa i memoria justificativa. Abril 2022: Enviament de mostres de registres e imatges al SRD. Juliol 2022: Enviament de mostres de registres e imatges al SRD i comunicació dels resultats obtinguts fins a aquesta data. 2n semestre 2022: - Contractes de prestació de serveis: Publicació a la Plataforma de Contractació del sector públic de les licitacions i dels contractes subscrits durant aquest període. Desembre 2022: Enviament de mostres de registres e imatges al SRD. Primer semestre de 2023: - Contractes de prestació de serveis: Publicació a la Plataforma de Contractació. - Contractes menors de prestació de serveis: Comunicació d’aprovació del compromís de despesa i memòria justificativa. Enero 2023: Comunicació de resultats obtinguts fins juliol 23. Segundo semestre 2023: - Contractes de prestació de serveis: Publicació a la Plataforma de Contractació. - Contractes menors de prestació de serveis: Comunicació de aprovació del compromis de despesa i memòria justificativa. Desembre 2023: Comunicació de resultats obtinguts fins desembre de 2023. Primer trimestre 2024: Entrega de la copia de todos los materiales producidos e Informe final del Proyecto. A les Illes Balears: A) 2.365 registres descripció arxivística. B) 88.005 imatges de digitalització documents. C) 688 registres i 22.482 imatges descripció documental i digitalització de documents. | AK30: 2023-07-30 | AL30: Comunicació de resultats obtinguts fins juliol 23. Contractes adjudicats 31-12-21. 31/12/2023 executat. Pendent confirmar per l’òrgan gestor que a assolit la fita de les Illes Balears (A) 2.365 registres descripció arxivística. B) 88.005 imatges de digitalització documents. C) 688 registres i 22.482 imatges descripció documental i digitalització de documents. ) Ordre global: 52L (licitació adjudicada) i 7AI (transferència). Import mobilitzat i executat de 59.635,34€. L’import assignat per l’any 2021, 2022 i 2023 era de 59.638,88€.
A31: Conselleria de Turisme, Cultura i Esports | B31: Cultura | C31: Conferència Sectorial de Cultura | D31: 2022-04-07 | E31: Aprovat/Acord de Conferència Sectorial definitiu | F31: Cultura | G31: C24. | H31: C24.I03. | I31: C24.I03.P03.S09. Digitalització de l’inventari del patrimoni de l’Església catòlica, documentació dels béns declarats BIC que pertanyen a altres administracions o persones privades i digitalització de béns que pertanyen al patrimoni històric espanyol de titularitat privada titularitat privada. Illes Balears. | J31: 180000 | L31: 30000 | M31: 90000 | N31: 60000 | R31: SI | T31: MR042 | U31: E01 | V31: 30000 | W31: 90000 | X31: =W31 -> 90000 | Y31: 60000 | Z31: 60000 | AA31: =30000+90000+60000 -> 180000 | AB31: Ministeri de Cultura i Esport | AC31: =600000+1794000+1076400 -> 3470400 | AD31: 0.05186721992 | AF31: 12/05/2021 i 22/06/2021: Reunions Comisió. 13/07/2021: Acord Consell de Ministres. 23/07/2021: Aprovat per CS. 11/10/2021: Ingrés tresoreria anualitat 2021. 05/04/2022: Autorització CM. 07/04/2022: CS. 20/06/2022: Ingrés Tresoreria anualitat 2022. 22/12/2022: CS. 05/04/2023: Ingrés Tresoreria anualitat 2023. | AH31: Contractació | AI31: 2023-12-31 | AJ31: Objectiu 2021: 631 unitats documentals. 55.654 documents digitalitzats; 3.786 unitats documentals. Objectiu 2022: 55.654 documents digitalitzats i 3.786 unitats documentals digitalitzades (període 2021 – 23). Fites 2022: 26,738 documents i 1.819 unitats; Fites 2023: 19.640 documents i 1.336 unitats. Als 6 mesos transferència fons 2022: publicació contractes plataforma contractació, a contractes menors comunicació de l ’aprovació del compromís de despesa i memòria justificativa. Juny 2022 comunicació de resultats obtenguts fins a la data. Segon semestre 2022: publicació en la plataforma de contractació. A desembre 2022, comunicació resultats obtinguts a la data. Sis mesos des de la transferència dels fons de l’exercici 2023: publicació en la plataforma de contractació o comunicació de l’aprovació del compromís de despesa i memòria justificativa. Juny 2023: comunicació de resultats obtinguts fins la data. Segon semestre 2023: publicació en la plataforma de contractació. Desembre 2023: comunicació de resultats obtinguts fins la data. Desembre 2023/`primer trimestre de 2024: entrega de la còpia de tots els materials produïts, el termini final d’execució és el 31/12/2023 | AK31: 2023-12-31 | AL31: Publicació contractes plataforma contractació, a contractes menors comunicació de l ’aprovació del compromís de despesa i memòria justificativa. 31/12/2023 comunicació de resultats obtenguts fins a la data.
A32: Conselleria d'Economia, Hisenda i Innovació | B32: Digitalització | C32: Conferència Sectorial per a la Transformació Digital | D32: 2021-12-17 | E32: Aprovat/Acord de Conferència Sectorial definitiu | F32: Digitalització menys 2022 i 24 | G32: C15. | H32: C15.I03. | I32: C15.I03.P01.S13. Bons de connectivitat per a PIMES i col·lectius vulnerables. Illes Balears. | J32: 351360 | L32: 142000 | M32: 142000 | N32: 67360 | R32: SI | T32: MR063 | U32: E11 | Y32: 351360 | AA32: =L32+M32 -> 284000 | AB32: Ministeri d’Afers Econòmics i Transformació Digital | AC32: =10000000+10000+4750000 -> 14760000 | AD32: 0.02380487805 | AE32: Criteris de distribució: Població en risc de pobresa (dades INE). Un 17,5% no se reparteix ara: fons per a distribució per èxit | AF32: Comisión Sectorial de Telecomunicaciones y Audiovisual. Proposta. 05/10/2021: Autorització CM. 06/10/2021: Acord de CS. 16/11/2021: Aprovació RD 989/2021 (BOE 275 de 17.11.2021). 17/12/2021: Resolució concessió. 30/12/2021: Ingrés Tresoreria. 23/12/2022: Ingrés Tresoreria. 02/10/2023: Aprobació de l’Addenda espanyola per la Comissió Europea. Modficació del termini d’execució per a l’objectiu CID 239: T4 del 2024. 10/01/2024: RD 1134/2023, de 19/12/2023 por le que se modifica el RD 989/2021, de 16/11/2021. BOE 9 de 10/01/2024. | AG32: Inversió 3. Bono de caràcter social per a col·lectius vulnerables: ajuda de 240 €/any per a persones físiques o unitat familiar (criteri vulnerabilitat: CCAA). CCAA pot complementar amb fons. Haurà registre de operadors/colaboradors del programa del bono social. Fita: 1.464 bonos amb les 3 anualitats dels fons. | AH32: Subvencions | AI32: 2024-12-31 | AJ32: Objectiu CID 239: Almenys 125.000 bons de connectivitat per a persones o famílies identificades com a «vulnerables» (per a adquirir un paquet de connexió de banda ampla amb la tecnologia més adequada) i almenys 11.000 bons de connectivitat per a pimes concedits (els bons constaran de dos elements diferents, connectivitat a 100 Mbps i un conjunt de serveis de valor afegit, VPN, ciberseguretat). Illes Balears: 1.464 bons de connectivitat per a persones o famílies qualificades de vulnerables per a l’adquisició d’un paquet de connexió de banda ampla amb la tecnologia més adequada. Termini màxim d’execució: 31-des-2024. El saldo no executat ni compromès a 31-des-2024 s’haurà de reintegrar. Se considera que el pressupost queda compromès amb la convocatòria i registre de sol·licituds i executat mitjançant l’acceptació de la justificació de la concessió dels bons digitals. | AK32: 2024-12-31 | AP32: Toni Vaquer | AQ32: Fet: s’ha resolt i adjudicat la convocatòria 2022, per un import de 1.440 €. Es van presentar 11 sol·licituds, amb 6 adjudicacions i 5 denegacions. No ha hagut cap execució. Previsió: la CCAA volia retornar els doblers i així ho va comunicar al Ministeri per no haver de pagar interessos, però, atès que s’ha ampliat el termini d’execució, el Ministeri ha contactat les CCAA perquè no ho faci i a totes les ha demanat opinió sobre ajusts a fer en el Reial Decret que regula les subvencions perquè tenguin més èxit.
A33: Conselleria de Turisme, Cultura i Esports | B33: Cultura | C33: Conferència Sectorial de Cultura | D33: 2022-04-07 | E33: Aprovat/Acord de Conferència Sectorial definitiu | F33: Cultura | G33: C24. | H33: C24.I02. | I33: C24.I02.P01.S09. Ajudes per ampliar i diversificar l’oferta cultural en àrees no urbanes. Illes Balears. | J33: 296459.92 | M33: 148229.96 | N33: 148229.96 | R33: SI | T33: MR056 | U33: E01 | Y33: 148230 | Z33: 296459.96 | AA33: =+M33+N33 -> 296459.92 | AB33: Ministeri de Cultura i Esport | AC33: 19844754 | AD33: 0.01493895666 | AE33: Criteris de distribució: 80% nombre de municipis d’entre 501 i 5.000 habitants a cada Comunitat Autònoma 20% baixa densitat de població. índice corrector para paliar el incremento de costes de transporte y locomoción que afecta a la programación cultural en los territorios insulares una aportación inicial de 30.000€ a las Comunidades Autónomas de Illes Balears y Canarias. | AF33: 13/07/2021: Autoritzada la previsió de repartiment per CM. 23/07/2021: Aprovada la previsió per CS. 05/04/2022: Autoritzacio CM 07/04/2022: Autorització CS. 20/06/2022: Ingrés Tresoreria. 05/04/2023: Ingrés Tresoreria. | AH33: Se farà una transferència als consells insulars perquè ells facin la convocatòria. Previsió de fer una transferència de l’import de les 2 anualitats el 2022. | AI33: 2023-12-31 | AJ33: Objectiu CID 359: a les Illes Balears dinamitzar, com a mínim 6 iniciatives culturals i creatives d’organitzacions amb ànim de lucre i sense ànim de lucre en àrees no urbanes. Grau de cofinançament: 80% del pressupost. El 20 % restant amb recursos propis i altres fonts de finançament públic o privat. | AL33: Termini d’execució de les activitats previstes serà de l’1 de gener de 2022 fins al 30 de novembre de 2023. Les despeses subvencionables seràn les d’aquest període. Publicacions convocatòries: 2022 i/o 2023. Resolucions convocatòries: Abans del 30/09/2023. Dates execució projectes subvencionats: de l’1/01/2022 al 30/11/2023. Informes trimestrals de l’estat de la tramitació dels expedients. Informe justificatiu final a efectes de liquidació. | AQ33: Consell Insular d’Eivissa diu que no arriba i que haurà de reintegrar la seva part
A34: Conselleria de Turisme, Cultura i Esports | B34: Cultura | C34: Conferència Sectorial de Cultura | D34: 2022-04-07 | E34: Aprovat/Acord de Conferència Sectorial definitiu | F34: Cultura | G34: C24. | H34: C24.I01. | I34: C24.I01.P01.PROVISIONAL.S04. Suport a les acceleradores culturals. Illes Balears. | J34: 298415.7 | M34: 177639.03 | N34: 120776.67 | R34: SI | T34: MR010 | U34: E01 | Y34: 298417 | Z34: 298417 | AA34: =177639.03+N34 -> 298415.7 | AB34: Ministeri de Cultura i Esport | AC34: 24708057.8 | AD34: 0.01207766723 | AF34: 13/07/2021: Autorització i p`revisió de repartiment pel CM. 23/07/2021: Aprovació de la previsió per CS. 05/04/2022: Autoritzacio distribució territorial CM. 07/04/2022: Aprovació CS. 20/06/2022: Ingrés Tresoreria. 31/03/2023: Ingrés Tresoreria. | AG34: Els projectes es financen ffins al 80% del pressupost. Termini execució actuacions: 1/1/20-30/09/23 | AH34: S’ha fet una transferència a l’ICIB el maig de 2023, per import de89.525 € perquè faci la convocatòria de subvencions | AI34: 2023-12-30 | AJ34: Objectiu CID 354: adquisició d’habilitats emprenedores i financeres per part dels/de les professionals del sector de la cultura i la creació. A les Illes Balears, 3 projectes d’acceleració finalitzats a finals de 2026. | AK34: 2023-06-30 | AL34: 2022: 2 projectes d’acceleració. 2023: 1 projecte d’acceleració. 30/09/2023: les ajudes han d’estar atorgades i finalitza el termini d’execució de les activitats. No actuacions iniciades | AQ34: Les ajudes han d’estar concedides i les actuacions dels beneficiaris executades a 30/9/23 i no publicada convo
A35: Conselleria d'Economia, Hisenda i Innovació | B35: Digitalització | C35: Conferència Sectorial per a la Transformació Digital | D35: 2021-12-17 | E35: Aprovat/Acord de Conferència Sectorial definitiu | F35: Digitalització menys 2022 i 23 | G35: C15. | H35: C15.I02. | I35: C15.I02.P01.S15. Accions de reforç de la connectivitat en polígons i centres logístics (UNICO – Indústria i empreses). Illes Balears. | J35: 1617000 | L35: 490000 | M35: 490000 | N35: 637000 | R35: SI | S35: =505706.84+M35+N35 -> 1632706.84 | T35: MR062 | U35: E11 | V35: 490000 | Y35: 0 | AA35: =L35 -> 490000 | AB35: Ministeri d’Afers Econòmics i Transformació Digital | AC35: 82500000 | AD35: 0.0196 | AE35: Criteris de distribució: 50% superfície CCAA i 50% núm. empreses. Un 17,5% no se reparteix ara: fons per a distribució per èxit. | AF35: Comissió Sectorial de Telecomunicacions i Audiovisual. Proposta. 05/10/2021: Autorització CM. 06/10/2021: Acord de CS. 16/11/2021: RD aprovació de subvenció CCAA. 17/12/2021: Resolució concessió. 30/12/2021: Ingressat import 2021. 31/01/2023: Data de devolució. Import retornat 505.706,84€. 02/10/2023: Aprobació de l’Addenda espanyola per la Comissió Europea. Modficació del termini d’execució per a l’objectiu CID 238: T4 del 2024. 10/01/2024: RD 1136/2023, de 19/12/2023 de modificació del RD 988/2021 de 16/11/2021. BOE 9 de 10/01/2024. | AG35: Inversió 2. Connectivitat i desplegament d’infraestructures en xarxa de polígons industrials i centres logístics, especialment en àmbits rurals i zones afectades pel repte demogràfic. Inversió per a incorporar Gigabit. Inclou 3 actuacions. Seran subvenciones a operadors mitjançant concurrència competitiva o concessions directes a titulars de centres o gestos dinamitzadors del polígon. | AH35: Subvencions | AI35: 2024-12-31 | AJ35: Objectiu: 26 actuacions (CID 238). Fites: 1. 18/11/2022 (als 12 mesos publicació RD): haver registrat sol·licituds pel nombre d’actuacions a realitzar. 2. 18/05/2023 (als 18 mesos de la publicació del RD): haver dictat resolucions de concessió pel nombre d’actuacions a realitzar. Termini d’execució ampliat al quart trimestre de 2024. | AK35: 2024-12-31 | AL35: Ampliació del termini d’execució. | AP35: Toni Vaquer | AQ35: Reintegrament. S’ha renunciat al projecte. Devolució ingressos 505.706,84€ (26/01/2023) i s’ha renunciat a la resta (1.127.000€)
A36: Conselleria de Turisme, Cultura i Esports | B36: Cultura | C36: Conferència Sectorial de Cultura | D36: 2022-04-07 | E36: Aprovat/Acord de Conferència Sectorial definitiu | F36: Cultura | G36: C24. | H36: C24.I02. | I36: C24.I02.P05.S18. Ajudes per a la modernització d’infraestructures d’arts escèniques i música. Illes Balears. | J36: 1245172.62 | L36: 720889.41 | M36: 524283.21 | R36: SI | T36: MR023 | U36: E01 | V36: 720889.41 | W36: =M36 -> 524283.21 | X36: =W36 -> 524283.21 | Y36: 0 | AA36: =720889.41+524283.21 -> 1245172.62 | AB36: Ministeri de Cultura i Esport | AC36: =22000000+16000000 -> 38000000 | AD36: 0.03276770053 | AE36: Criteris de distribució: un únic criteri per a la distribució territorial dels fons, que és el nombre d’infraestructures –teatres i auditoris- existents actualment a cada Comunitat i Ciutat Autònoma. | AF36: 12/05/2021 i 22/06/2021: Proposta de la Comisió. 13/07/2021: Autoritzada previsió repartiment CM. 23/07/2021: Aprobació per CS. 14/10/2021: Ingrés Tresoreria. 05/04/2022: Autorització CM. 07/04/2022: CS 03/06/2022: Ingrés Tresoreria. | AG36: Per a espais escènics i musicals públics i privats. Les ajudes cobriran la inversió dedicada a la transició verda i transformació dels espais, que impulsin un creixement intel·ligent i sostenible de la seva gestió; Màx. 80% cost elegible. | AH36: Convocatòries subvencions.. Publicada la convocat. de subv per donar suport als projectes d’inversió en infraestructures escèniques i musicals IB, BOIB 30/12/21 | AI36: 2023-12-31 | AJ36: Subvencions 30/12/21: Termini sol·licitud: 28/02/2022. Termini actuacions: des de la publicació fins al 31/12/2021. Nombre mínim infraestructures beneficiades: 6 (3 el 2021 i 3 al 2022). Fites: publicació convocatòria: segon semestre 2022. | AK36: 2023-12-31 | AL36: Publicació convocatòria. El termini d'execució d'activitats previstes a executar amb càrrec a aquests crèdits han d'estar finalitzades abans del 31 de desembre de 2022. Ordre global: 11S i 61S. Dues convocatòries de subvencions una publicada el 30/12/2021 i ja concedida amb un import executat de 720.889,41€ i una altra convocatòria publicada el 29/12/2022 encara en procès de concessió (import mobilitzat de 524.283,21€) La fita de la data de publicació està assolida. Pendent la resolució de concessió de la subvenció de 2022 que ha d’estar resolta abans de 31/12/2023. | AN36: 6 infraestructures modernitzades i millorades (3 a l’any 2021 i 3 a l’any 2022). | AP36: Cristina Llambias
A37: Conselleria de Turisme, Cultura i Esports | B37: Cultura | C37: Conferència Sectorial de Cultura | D37: 2022-04-07 | E37: Aprovat/Acord de Conferència Sectorial definitiu | F37: Cultura | G37: C24. | H37: C24.I02. | I37: C24.I02.P02.S19. Actuacions sobre el patrimoni de les comunitats autònomes, corporacions locals i persones privades. Illes Balears. | J37: 693089.85 | M37: 693089.85 | R37: SI | T37: MR024 | U37: E01 | W37: =M37 -> 693089.85 | X37: =W37 -> 693089.85 | Y37: 0 | AA37: 693089.85 | AB37: Ministeri de Cultura i Esport | AC37: 51000000 | AD37: 0.01358999706 | AF37: 12/05/2021: Informació de reunió. 22/06/2021: Import confirmat amb quadre resum reunió. 13/07/2021: Autoritzada previsió repartiment CM. 23/07/2021: Acord de CS. 05/04/2022: Autorització CM. 07/04/2022: Acord de CS. 29/06/2022: Ingrés Tresoreria. 02/10/2023: Aprobació de l’Addenda espanyola per la Comissió Europea. Modficació del termini d’execució per a l’objectiu CID 356: T4 del 2025 | AG37: Inversió directa CCAA -2022. | AI37: 2025-12-31 | AJ37: Objectiu CID 356: Llocs culturals secundats amb mesures de conservació, restauració i posada en valor del patrimoni cultural espanyol: almenys 19 llocs en almenys 15 regions, de conformitat amb les Orientacions tècniques «No causar danys significatius» (2021/C58/01) mitjançant l'ús d'una llista d'exclusió i el requisit de compliment de la legislació mediambiental nacional i de la UE pertinent. Objectiu: 1 actuació de conservació/restauració de patrimoni BIC. Termini actual 30/11/2023. Prevista ampliació de termini fins al 30/11/2025 segons mail enviat des del Ministeri de Cultura (guardat dins G/05/03). Pendent de rebre el Document Rector amb la confirmació de l’ampliació. Ampliació de termini fins al 31/12/2025. | AK37: 2025-12-31 | AL37: Ordre global: 22AI (Transferència justificable a favor del Consell Insular de Formentera per a actuacions sobre el patrimoni), 25AI (Transferència a favor del Consell Insular de Menorca per a actuacions sobre el patrimoni. Restauració) i 28AI (Transferència justificable a favor del Consell Insular de Mallorca, i es proposa el pagament per a l’execució dels fons europeus del projecte C24.I2.P3.1 (actuacions a Bellpuig)). Import executat de 541.296€.
A38: Conselleria d'Economia, Hisenda i Innovació | B38: R+D+I | C38: Consell de Política Científica, Tecnològica i d’Innovació | D38: 2022-04-26 | E38: Aprovat/Acord de Conferència Sectorial definitiu | F38: Ciència | G38: C17. | H38: C17.I01. | I38: C17.I01.P02.S19. Plans complementaris basats en l’execució dels programes d’I+D+i en l’àrea d’astrofísica i física d’altes energies. | J38: 1000000 | M38: 1000000 | R38: SI | T38: MR073 | U38: E01 | X38: 1000000 | Y38: 0 | AA38: =M38 -> 1000000 | AB38: Ministeri de Ciència i Innovació | AF38: Previsió signatura d’un protocol general de col·laboració amb CCAA implicades (no té contingut econòmic) i que E faci RD subvenció directa per transferència fons. Autorització Consell de Ministres 19/04/2022. Publicat RD BOE 22/04/22. Import ingressat CAIB: 18/07/22 | AG38: CAIB hauria d’aportar el mateix import; RD 287/2022 concesion subvencion directa CCAA Planes Complementarios I+D+I | AI38: 2025-09-30 | AJ38: Fita 258 (firma convenios E-CCAA)
A39: Conselleria d'Economia, Hisenda i Innovació | B39: Digitalització | C39: Conferència Sectorial per a la Transformació Digital | D39: 2021-12-17 | E39: Aprovat/Acord de Conferència Sectorial definitiu | F39: Digitalització menys 2022 i 25 | G39: C15. | H39: C15.I04. | I39: C15.I04.P01.S08. Adaptació d’infraestructures per a telecomunicacions en edificis (UNICO-edificis). Illes Balears. | J39: 1696200 | L39: 514000 | M39: 1028000 | N39: 154200 | R39: SI | T39: MR064 | U39: E11 | Y39: 1696200 | Z39: 1696200 | AA39: =L39+M39 -> 1542000 | AB39: Ministeri d’Afers Econòmics i Transformació Digital | AC39: =20000000+60000000 -> 80000000 | AD39: 0.0212025 | AE39: Criteris de distribució: Nombre d’edificis per CCAA sense ICTs. Un 17,5% no se reparteix ara: fons per a distribució per èxit. | AF39: Inversió 4. Comisión Sectorial de Telecomunicaciones y Audiovisual. 05/10/2021: Proposta. Autorització CM. 16/11/2021: RD 990/2021, subvenció concessió directa (BOE 275, de data 17/11/2021). 17/12/2021: Resolució concessió. 30/12/2021: Ingrés Tresoreria. Previsió que la despesa sigui del 2023 (pagament subvencions prèvia justificació). 09/09/2022: Ingrés Tresoreria. 02/10/2023: Aprobació de l’Addenda espanyola per la Comissió Europea. Modficació del termini d’execució per a l’objectiu CID 240: T4 del 2024. 10/01/2024: Publicació RD 1137/2023, de 19 de desembre de modificació del RD 990/2021, de 16 de novembre. BOE 9 de 10/01/2024. | AG39: Inversió 4. Millora equipament per infraestructures de telecomunicacions en edificisi desplegament xarxes NGA sostenibles amb aspectes urbanistics i contribuint a un menor consum d’energia (entre 3-35 habitatges). Aportación del 50% cost (estimació 5.882,35 € subv per cost de 12.000 €). 3 actuacions. | AH39: Acord CCAA- E + subvencions. | AI39: 2024-12-31 | AJ39: Objectiu CID 240: Obres finalitzades en almenys 7 700 edificis per a millorar la seva infraestructura de xarxa de connectivitat comuna a nivell de xarxes de molt alta capacitat. A les Illes Balears: 288 actuacions. Art 8.6: Saldo no executat ni compromès a 31.12.2024 haurà de reintegrar-se. El pressupost queda compromès amb la convocatòria i registre de sol·licituds i executat amb les resolucions de concessió. Art 18.6: Termini màxim resolució: 6 mesos des de presentació sol·licitud. Art 21.1: En el termini de 3 mesos des de finalització actuació els destinataris han de justificar. Art 21.2: Comprovada l'execució la CAIB ordenarà el pagament. | AK39: 2024-12-31 | AP39: Toni Vaquer | AQ39: Fet: s’ha resolt la convocatòria 2022, però no s’ha presentat cap sol·licitud. Import executat 0 €. Previsió: la CCAA volia retornar els doblers i així ho va comunicar al Ministeri per no haver de pagar interessos, però, atès que s’ha ampliat el termini d’execució, el Ministeri ha contactat les CCAA perquè no ho faci i a totes les ha demanat opinió sobre ajusts a fer en el Reial Decret que regula les subvencions perquè tenguin més èxit.
A40: Conselleria d'Economia, Hisenda i Innovació | B40: R+D+I | C40: Consell de Política Científica, Tecnològica i d’Innovació | D40: 2022-07-27 | E40: Aprovat/Acord de Conferència Sectorial definitiu | F40: Ciència | G40: C17. | H40: C17.I01. | I40: C17.I01.P01.S24. Plans complementaris basats en l’execució dels programes d’I+D+i en l’àrea de ciències marines. | J40: 1066267 | M40: 1066267 | R40: SI | T40: MR080 | U40: E01 | Y40: 0 | AA40: 1066267 | AB40: Ministeri de Ciència i Innovació | AF40: RD 633/2022 de concessio directa de subvencions, publicat el 27/07/22. Pagament: 10/11/22 | AG40: RD 633/2022 de concessio directa de subvencions | AI40: 2025-09-30 | AJ40: Fita 258
A41: Conselleria d'Economia, Hisenda i Innovació | B41: R+D+I | C41: Consell de Política Científica, Tecnològica i d’Innovació | D41: 2022-04-26 | E41: Aprovat/Acord de Conferència Sectorial definitiu | F41: Ciència | G41: C17. | H41: C17.I01. | I41: C17.I01.P02.S22. Plans complementaris basats en l’execució dels programes d’I+D+i en l’àrea de biodiversitat. | J41: 2682404 | M41: 2682404 | R41: SI | T41: MR074 | U41: E01 | X41: 2682404 | AA41: =M41 -> 2682404 | AB41: Ministeri de Ciència i Innovació | AD41: =J41/AC41 ->  | AF41: Previsió signatura d’un protocol general de col·laboració amb CCAA implicades (no té contingut econòmic) i que E faci RD subvenció directa per transferència fons. Autorització Consell de Ministres 19/04/2022. Publicat RD BOE 22/04/22. Import ingressat CAIB: 18/07/22 | AG41: CAIB hauria d’aportar 2.317.000 €; https://boe.es/boe/dias/2022/04/22/pdfs/BOE-A-2022-6556.pdf | AI41: 2025-09-30 | AJ41: Fita 258 (firma convenios E-CCAA)
A42: Conselleria de Turisme, Cultura i Esports | B42: Cultura | C42: Conferència Sectorial de Cultura | D42: 2021-07-23 | E42: Aprovat/Acord de Conferència Sectorial definitiu | F42: Cultura | G42: C25. | H42: C25.I01. | I42: C25.I01.P02.PROVISIONAL.S04. Ajudes a la difusió i explotació en sales d’exhibició a través de les CCAA. Illes Balears. | J42: 371381.49 | L42: 371381.49 | R42: SI | T42: MR022 | U42: E01 | W42: =L42 -> 371381.49 | X42: =W42 -> 371381.49 | Y42: 0 | AA42: =L42 -> 371381.49 | AB42: Ministeri de Cultura i Esport | AC42: 17000000 | AD42: 0.02184597 | AE42: Criteris de distribució: 1) Barem d'ajuda per sala i nombre de pantalles de la línia de suport a sales d'exhibició europees Europa Cinemas del Programa MEDIA. 2) Sales d'exhibició beneficiàries de les ajudes extraordinàries per fer front a l'impacte de la COVID-19 atorgades per l'Institut de Cinematografia i Arts Audiovisuals (ICAA) el 2020: 513 sales i complexos dels 758 inscrits al Registre Administratiu d'Empreses Cinematogràfiques de l'ICAA. Un 67,7% de les sales existents. 3) El total de la dotació per als ajuts, 17.000.000 € s'ha establert a partir de multiplicar la mitjana d'ajuts d'Europa Cines, 34.400 €, pel percentatge de les sales registrades que es vol arribar a ajudar, 492 ,7 sales (un 65%). Segons la qual cosa: 34.400 € X 492,7 sales = 16.948.880 €. La fórmula per a la distribució dels fons atén al criteri objectiu d'aplicar al cens complet de sales registrades al país la quantia del paràmetre 1 per sala i nombre de pantalles, fins a un màxim de 10 pantalles. Com que la suma superava els 17.000.000€ previstos de manera que la dotació assignada a cada autonomia s'ha prorratejat proporcionalment per tancar la distribució en aquesta xifra. | AF42: 12/05/2021: Al C25.I1 la proposta inicial era de 385.737,44 €. La proposta del mes de juny de la Comisió Interterritorial de Cinematografia i Audiovisual es inferior i s’ha actualitzat. 13/07/2021: Acord de CM. 23/07/2021: Aprovat per CS. 22/07/202: Resolució del president de l’Institut d’Indústries Culturals de les Illes Balears de 22 de juliol de 2022 per la qual s’aprova la convocatòria pública de subvencions per donar suport a les sales d’exhibició cinematogràfica de les Illes Balears (BOIB 98 de 28.07.2022). 23/02/2023: Resolució de concessió (BOIB 24 de 23.02.2023). Concessió de subvenció a 5 beneficiaris per un import total de 172.200,00 €. 29/10/2021: Ingrés Tresoreria. | AG42: Seran ajudes per a les sales d’exhibició gestionades per les CCAA. 2021. hito: 10-11 salas de cine y 1 PIME han de resultar beneficiarias | AH42: Convocatòria subvencions. | AI42: 2023-09-30 | AJ42: Objectiu CID 10 i 11: minim 1 PIME beneficiària 31/07/2022: Les administracions de les autonomies han de realitzar la convocatòria d’ajudes a les sales d’exhibició cinematogràfica abans del 31 de juliol de 2022. 2023: Implementació de mesures pels titulars de les sales d’exhibició. Els beneficiaris hauran de presentar, des de 2021 fins 2023: - “Projecte detallat” de les mesures que implementaran, resultats esperats, dates previstes i cost, als sis mesos de la recepció de l’ajuda. - “Informe d’activitats” realitzades, en el segons trimestre de 2023. - “Justificació de les despeses” realitzades, en el darrer trimestre de 2023. - “Informe de resultats” obtinguts, en el primer semestre de 2024. Objectiu quantitatiu individualitzat mínim a assolir: arribar a donar suport entre el 60 i el 65% projectes d'innovació, funcionament digitalitzat i sostenible, creació i fidelització de públics i adaptació als nous hàbits de consum audiovisual de les sales d'exhibició registrades. | AK42: 2022-07-31 | AL42: Publicació de la convocatòria d’ajudes abans del 31/07/2022. Aquesta fita està assolida ja que la publicació es va realitzar el 28/07/2022. En data 23/02/2023 publicada resolució de concessió amb un total de 5 beneficiaris i per un import de 172.200,00€. Ordre global 30S amb un import mobilitzat de 371.381,49€, no consta l’import executat. | AM42: 2023-12-31 | AQ42: Convocatòria subvencions. No concedit tot: sobren uns 120.000 € 22/07/202: Resolució de 22.07.2022 convocatòria pública de subvencions per donar suport a les sales d’exhibició cinematogràfica de les Illes Balears (BOIB 98 de 28.07.2022). 23/02/2023: Resolució de concessió (BOIB 24 de 23.02.2023). Concessió de subvenció a 5 beneficiaris per un import total de 172.200,00 €.
A43: Conselleria de Turisme, Cultura i Esports | B43: Cultura | C43: Conferència Sectorial de Cultura | D43: 2021-07-23 | E43: Aprovat/Acord de Conferència Sectorial definitiu | F43: Cultura | G43: C24. | H43: C24.I02. | I43: C24.I02.P04.S19. Dotació de fons per a les biblioteques públiques. Illes Balears. | J43: 258414.45 | L43: 258414.45 | R43: SI | T43: MR025 | U43: E01 | W43: =L43 -> 258414.45 | X43: =W43 -> 258414.45 | Y43: 0 | AA43: =L43 -> 258414.45 | AB43: Ministeri de Cultura i Esport | AC43: 9999987.75 | AD43: 0.02584147666 | AF43: 12/05/2021 i 22/06/2021: Reunions Comissió. 13/07/2021: Acord CM. 23/07/2021: Aprovat per CS. 11/10/2021: Ingrés Tresoreria. 02/10/2023: Aprobació de l’Addenda espanyola per la Comissió Europea. Modficació del termini d’execució per a l’objectiu CID 358: T4 del 2024 | AG43: Inversió directa CCAA. Import mínim per biblioteca: 1.500 €. Despesa elegible: compra de llibres. Fita: 11.629 llibres incorporats al catàleg 24 mesos des de la transferència de crèdit. Beneficiaris: CAIB o altra administració. | AI43: 2024-12-31 | AJ43: Objectiu CID 358: Llibres en paper comprats i transferits a biblioteques públiques (almenys 450.000 a nivell estatal) 18 mesos des de la transferència per adquirir llibres . Nombre mínim llibres adquirits a les Illes Balears: 11.629 | AK43: 2024-12-31 | AL43: Abans del 31/12/2023 els llibres han d’estar incorporats al catàleg. Ampliació del termini fins al 31/12/2024. Ordre global: 59L (licitació parcialment adjudicada), 4AI, 5AI, 6AI, 26AI i 29AI (altres instruments). L’import mobilitzat i executat és de 258.413,95€.
A44: Conselleria d'Economia, Hisenda i Innovació | B44: Digitalització | C44: Conferència Sectorial per a la Transformació Digital | D44: 2021-12-17 | E44: Aprovat/Acord de Conferència Sectorial definitiu | F44: Digitalització | G44: C15. | H44: C15.I02. | I44: C15.I02.P01.S18. Accions de reforç de la connectivitat en centres de referència i serveis públics (UNICO- Serveis públics). Illes Balears. | J44: 3660000 | L44: 3660000 | R44: SI | T44: MR061 | U44: E11 | Y44: 3660000 | AA44: =L44 -> 3660000 | AB44: Ministeri d’Afers Econòmics i Transformació Digital | AC44: 150000000 | AD44: 0.0244 | AE44: Criteris de distribució: Població 2020. | AF44: Comisión Sectorial de Telecomunicaciones y Audiovisual. Proposta. 05/10/2021: Autorització CM. 06/10/2021: Acord de CS. 16/11/2021: RD Estableix les quanties; RD 987/2021 (BOE 275 de 17.11.2022). 17/12/2021: Resolució concessió. 30/12/2021: Ingrés Tresoreria. 02/10/2023: Aprobació de l’Addenda espanyola per la Comissió Europea. Modficació del termini d’execució per a l’objectiu CID 238: T4 del 2024. 10/01/2024: RD 1136/2023, de 19/12/2023 de modificació del RD 987/2021 de 16/11/2021. BOE 9 de 10/01/2024. | AG44: Centres públics de referència, que permeten accedir a serveis essencials, assistencials i socials (centres de salut, educatius, de formació, hospitals i altres que prestin serveis públics). 2 actuacions: 1. Inversió en infraestructures de connectivitat velocitat de mínim 300 Mbps i 2. Instal·lació xarxa de comunicacions electròniques d’alta velocitat. S’executarà en col·laboració amb les CCAA i entitats locals amb un marc de col·laboració previ (conveni o altre) que permeti identificar els objectius de l’actuació. | AH44: Acord CCAA- E + Contractació + subvencions | AI44: 2024-12-31 | AJ44: Objectiu CID 238: Nombre d'entitats que han aconseguit una velocitat de connectivitat d'1 Gigabit: - almenys 9 000 centres i serveis públics, com a centres de salut pública, centres d'educació i formació i centres de recerca i desenvolupament; - almenys 1 600 petites zones industrials i comercials; - Almenys 5 500 connexions previstes per a projectes de digitalització (salut, agroalimentació, mobilitat, turisme, indústria, comerç, etc.). A les Illes Balears : 240 actuacions a realitzar. Finançables actuacions iniciades 1/02/2020. Saldo no executat ni comprom`ès 31/12/2023, reintegrament. Se considera compromès amb formalització de contracte o instrument jurídic. Se considera executat amb aprovació, certificacions o documents de conformitat. Termini d’execució ampliat al quart trimestre de 2024. | AK44: 2024-12-31 | AL44: Fins el 31/12/2023: Programa d’ajudes per al reforç de la conectivitat a centres públics de referència. Fins al 31/12/2023: termini de la CAIB per concedir ajudes. Ampliació del termini d’execució al 31/12/2024. | AP44: Toni Vaquer | AQ44: Fet: s’ha resolt la convocatòria 2022. S’han presentat molt poques sol·licituds. 8 sol·licituds (Aj. Manacor, Andratx, Marratxí, Pollença, Puigpunyent, Ses Salines, Campos i Santa Margalida) amb un total de 23 actuacions per un import de 119.349,18€. D’aquests ajuntaments 5 han renunciat quedant només Pollença, Marratxí i Ses Salines i 8 actuacions. L’import subvencionat és de 23.057,70€. S’ha adjudicat contracte menor per a la instal·lació duna nova xarxa cablejat a la Biblioteca Pública de Palma Can Sales per import de 15.250€. Total compromès: 134.599,18€. Previsió: la CCAA volia retornar els doblers i així ho va comunicar al Ministeri per no haver de pagar interessos, però, atès que s’ha ampliat el termini d’execució, el Ministeri ha contactat les CCAA perquè no ho faci i a totes les ha demanat opinió sobre ajusts a fer en el Reial Decret que regula les subvencions perquè tenguin més èxit.
A45: Conselleria d'Economia, Hisenda i Innovació | B45: Digitalització | C45: Conferència Sectorial per a la Transformació Digital | D45: 2021-10-06 | E45: Aprovat/Acord de Conferència Sectorial definitiu | F45: Digitalització | G45: C19. | H45: C19.I01. | I45: C19.I01.P04.PROVISIONAL.S02. Capacitació digital de la ciutadania. Illes Balears. | J45: 3464525 | L45: 3464525 | R45: SI | T45: MR069 | U45: E11 | Y45: 3464525 | AA45: =L45 -> 3464525 | AB45: Ministeri d’Afers Econòmics i Transformació Digital | AC45: 140000000 | AD45: 0.02474660714 | AE45: % població CCAA sense habilitats digitals bàsiques (dades INE) | AF45: Autorització Consell de Ministres 05/10/2021. CS 6/10/2021. Ingressat 28/12/21 02/10/2023: Aprobació de l’Addenda espanyola per la Comissió Europea. Modficació del termini d’execució per a l’objectiu CID 288: T2 del 2026. | AG45: S’han d’impartir programes formatius en competències digitals a la ciutadania, amb cursos d’almenys 7,5 hores per a l’exercici de la ciutadania digital. Inclou diferents tipus d’accions. | AH45: Pendent de determinar. (es planteja encomana de gestió) | AI45: 2026-06-30 | AJ45: Objectiu CID 288: 2.600.000 ciutadans formats en competències digitals, segons les accions de la mesura. Les capacitacions tindran una durada mínima de 7,5 hores. A les Illes Balears: donar formació a mínim 16.498 ciutadans formats (7,5 hores). Fites: 75% pressupost compromès abans 4t trimestre 2023. Formació se pot impartir fins 2025. Ampliació del termini d’execuci´o fins al 30/06/2026. | AK45: 2023-12-31 | AL45: El 75% del pressupost ha d’estar compromès. | AN45: Mínim ciutadans a formar: 16.498 | AP45: Toni Vaquer | AQ45: En tramitació una encomana de gestió a la FUEIB
A46: Conselleria d'Economia, Hisenda i Innovació | B46: Digitalització | C46: Conferència Sectorial d’Administració Pública | D46: 2022-09-22 | E46: Aprovat/Acord de Conferència Sectorial definitiu | F46: Digitalització | G46: C11. | H46: C11.I03. | I46: C11.I03. Transformació Digital i Modernització del Ministeri de Política Territorial i Funció Pública i de les Administracions de les Comunitats Autònomes i de les Entitatls Locals. | J46: 8621815.33 | L46: 2919000.35 | M46: 4185346.84 | N46: 1517468.14 | R46: SI | T46: MR067 | U46: E11 | X46: 2919000.35 | Y46: 4436470 | Z46: 4436470 | AA46: =2919000.35+4185346.84+1517468.14 -> 8621815.33 | AB46: Ministeri d’Hisenda i Funció Pública | AC46: =118227745+230372255 -> 348600000 | AD46: 0.02473268884 | AE46: Criteris de distribució: Al 2020 Població. Al 2021 Població (línia 1-5). | AF46: Comissió sectorial de Telecomunicacions: tenim nota informativa del Ministeri de Política Territorial relativa a la proposta de repartiment enviada amb posterioritat a la reunió. Hi ha 6 línies i la 6a és de salut. 01/12/2021: Autorització CM. 21/12/2021: Acord CS. 15/12/2021: Publicacio Acord CS al BOE. Publicació BOE resolució . 28/12/2021: Ingrés Tresoreria. 01/08/2022: Autorització CM. 22/09/2022: Acord CS (BOE 228, de 22/09/22). 07/10/2022: Ingrés Tresoreria. 17/02/2023: Ingrés Tresoreria. 22/12/2023: Resolució d’acord de CS de 05/12/2023 de moficiació de l’acord de 1/12/2021 i 7/12/2022. (BOE 305 de 22/12/2023) | AG46: Línies d’actuació: administració orientada a la ciutadania, operacions intel·ligents, govern de les dades, infraestructures digitals i ciberseguretat | AH46: Veure projectes línies 1 a 5 a carpeta CS corresponent. Transferit a DGMAD. Licitacions i conveni | AI46: 2026-06-30 | AJ46: Crèdits compromesos abans de 31/12/21. Fita H 167: Cada CCAA ha completat al menys un projecte en una de les cinc línies estratègiques i el 60% dels tràmits digitals de les administracions autonòmiques permeten el seu ús per m`obil. La data prevista de compliment de l’objectiu serà el quart trimestre de 2023. Objectiu O 168. La data prevista de compliment serà el segon trimestre de 2025. Fita H 169: La data prevista de compliment serà el segon trimestre de 2026: O 168.1. informe de situació amb el nombre de projectes adjudicats i la despesa compromesa dels projectes de suport a la transformació digital, segon trimestre de 2024. Execució d’almenys un projecte abans del 31/12/2023 (fita 167). Acreditar que el 60% dels tràmits digitals de les administracions autonòmiques permetin el seu ús per mòbil ( 4TR 2023). Publicació al DOUE de qualquna de les actuacions financiables (abans del 30/06/25). Certificar la recepció o conformitat de l’objecte dels contractes adjudicats (abans del 30/06/26, fita 169) D’acord amb la modificació de l’Acord de CS publicat el 22/12/2023 al BOE: Els crèdits han d’estar compromesos abans del 30 de juny de 2025 i totalment executats abans del 30/06/2026. Els projectes executats abans de juny de 2024 s’han de reflectir a l’informe de seguiment de situació de l’objectiu 168.1 amb la documentació per tal de verificar el compliment de l’objectiu 169. | AK46: 2025-06-30 | AL46: Cada CCAA ha completat al menys un projecte en una de les cinc línies estratègiques i el 60% dels tràmits digitals de les administracions autonòmiques permeten el seu ús per m`obil. | AQ46: Fet: - Publicada licitació implantació sistema de robotització (RPA), per import de 864.781,56 € - Publicada licitació implantació lloc de feina intel·ligent, per import de 3.446.110,47 €. Previsió: - Pendent de licitar el reforç de la ciberseguretat AAPP Balears integració xarxa nacional (SOC), amb pressupost total de 2.854.170,30 €. Per la seva dificultat tècnica s’està plantejant fer múltiples contractes individuals. - Pendent de licitar l’adequació de la CAIB a l’Esquema Nacional de Seguretat (ENS), amb pressupost total de 500.000 €. Anirà incorporant contractes conforme calgui per avançar en l’adequació a l’ENS. - Pendent de licitar i pendent de formalitzar conveni previ amb la UIB la implantació d’IA i Big Data al GOIB, amb un pressupost total de 956,753 €. Data prevista de licitació 31/10/23. D’altra banda, la UIB està estudiant l’esborrany del conveni.
A47: Conselleria d'Agricultura, Pesca i Medi Natural | B47: Medi ambient | C47: Conferència Sectorial per al Repte Demogràfic | D47: 2022-09-01 | E47: Aprovat/Acord de Conferència Sectorial definitiu | G47: C04. | H47: C04.I04. | I47: C04.I04. Pla de suport a la bioeconomia en territoris en situació de repte demogràfic. | J47: 753491 | M47: 753491 | R47: SI | T47: MR081 | U47: =+VLOOKUP(T47,[1]Full1!$A$2:$B$120,2,0) ->  | AA47: 753491 | AB47: Ministeri per a la Transició Ecològica i el Repte Demogràfic | AC47: 40000000 | AD47: 0.018837275 | AF47: Tenim nota informativa de la DG Relacions Exteriors a la Conselleria de Medi Ambient. Autorització Cministres: 30/08/2022. Import lleugerament inferior al previst a la nota de la DG Relacions Exteriors (760.876 €). Aprovació CS: 01/09/22. Pagament: 10/11/22 | AG47: Tipus de projectes: impuls a les produccions primàries, promoció forestal com a actiu turístic i de l’emprenedoria lligada al desenvolupament de projecte de turisme sostenible; promoció de la capacitació en l’àmbit forestal, etc. | AH47: Encàrrec de gestió TRAGSA | AI47: 2026-05-31 | AJ47: Finalització de les actuacions: 31/05/2026. Fita intermèdia: compromís de despesa a 31/12/2023 | AK47: 2023-12-31 | AL47: Compromís de despesa
A48: Conselleria de la Mar i del Cicle de l'Aigua | B48: Medi ambient | C48: Conferència Sectorial de Medi Ambient | D48: 2022-07-29 | E48: Aprovat/Acord de Conferència Sectorial definitiu | G48: C05. | H48: C05.I02. | I48: C05.I02.P03.PROVISIONAL. S14. Pla d’actuacions de protecció i adaptació al risc d’inundació i integració ambiental en nuclis urbans de la Comunitat Autònoma de les Illes Balears. | J48: 1554740 | M48: 1554740 | R48: SI | T48: MR078 | U48: =+VLOOKUP(T48,[1]Full1!$A$2:$B$120,2,0) ->  | W48: =+M48 -> 1554740 | X48: =+W48 -> 1554740 | AA48: =+X48 -> 1554740 | AB48: Ministeri per a la Transició Ecològica i el Repte Demogràfic | AC48: 74500000 | AD48: 0.02086899329 | AF48: Acord CM: 14/06/2022. Acord CS: 20/06/22. Resolució de formalització compromisos financers: 29/07/22. Data ingrés 2022 el dia 18/08/22 | AG48: Actuacions que es poden realitzar, directament o mitjançant convocatòries de subvencions a les administracions competents: obras de recuperación ambiental y mejora del estado de cauces y riberas, actuaciones de recuperación hidrológica forestal y estabilización de laderas, o actuaciones asociadas a la implantación de los distintos mecanismos de protección civil recogidos en los PGRI y planes autonómicos de protección civil | AI48: 2026-06-01 | AJ48: Objectiu (CID77): s’han de restaurar 1 km. de cabal. Actuacions d’1 de febrer de 202a a 1 juny 2026
A49: Conselleria de la Mar i del Cicle de l'Aigua | B49: Medi ambient | C49: Conferència Sectorial de Medi Ambient | D49: 2022-07-29 | E49: Aprovat/Acord de Conferència Sectorial definitiu | G49: C05. | H49: C05.I03. | I49: C05.I03.P01.PROVISIONAL.S14. PERTE de digitalització del cicle de l’aigua a la Comunitat Autònoma de les Illes Balears. | J49: 3975900 | M49: 3975900 | R49: SI | T49: MR079 | U49: =+VLOOKUP(T49,[1]Full1!$A$2:$B$120,2,0) ->  | W49: =+M49 -> 3975900 | X49: =+W49 -> 3975900 | AA49: =+X49 -> 3975900 | AB49: Ministeri per a la Transició Ecològica i el Repte Demogràfic | AC49: 100000000 | AD49: 0.039759 | AE49: Una part (40 milions): Superfície de demarcació (40%) i població a la demarcació (60%); Segona part (60 milions): població, població a municipis menors de 20.000 hab., superfície CA, % pèrdues a la xarxa, abocaments autoritzats | AF49: Acord CM: 14/06/2022. Acord CS: 20/06/22. Resolució de formalització compromisos financers: 29/07/22. Data ingrés 2022 el dia 18/08/22 | AG49: Actuacions a realitzar: mejora, a través de la digitalización, de los procesos administrativos y mejora del conocimiento en materia de gestión del dominio público hidráulico, las actuaciones relativas a la mejora de la información hidrológica y control de los usos del agua y el apoyo a la digitalización de las infraestructuras hidráulicas existentes de titularidad pública; Una part se destinarán a impulsar la digitalización de las administraciones hidráulicas de las comunidades autónomas y entidades locales, en especial de los municipios menores de 20.000 habitantes | AI49: 2026-06-01
A50: Conselleria d'Agricultura, Pesca i Medi Natural | B50: Medi ambient | C50: Conferència Sectorial de Medi Ambient | D50: 2022-06-20 | E50: Aprovat/Acord de Conferència Sectorial definitiu | F50: Transició verda | G50: C04. | H50: C04.I02. | I50: C04.I02. Conservació de la biodiversitat marina. | J50: 6421956 | M50: 6421956 | R50: SI | T50: MR051 | U50: =+VLOOKUP(T50,[1]Full1!$A$2:$B$120,2,0) ->  | W50: 6421956 | X50: 6421956 | AA50: =+M50 -> 6421956 | AB50: Ministeri per a la Transició Ecològica i el Repte Demogràfic | AC50: 30000000 | AD50: 0.2140652 | AE50: Criteris de distribució: 1) Km. de línia de costa (2/3) i 2) Superfície marina protegida (1/3 ponderació). | AF50: 26/05/2022: A la CS s’han consultat els criteris de repartiment i la distribució territorial de crèdits. 14/06/2022: Autorització CM. 20/06/2022: Acord CS (no tenim documentació). 28/07/2022: Ingrés Tresoreria. | AG50: En el termini de 2 mesos des de la CS les CCAA han de remetre les seves actuacions. | AI50: 2026-06-30 | AJ50: Objectiu CID 67: Contribució a la consecució d’àrea marina protegida mínim 15% del territori espanyol a desembre de 2023. Objectiu CID 68: Contribució a la consecució d’àrea marina mínim 18% del territori espanyol a desembre de 2025. Objectiu CID 69: 50.000 ha. amb «Acciones de conservación de la biodiversidad» al mes de juny de 2026. Aquest objectiu a les Illes Balears consisteix en actuacions a 642 hectàrees protegides.
A51: Conselleria d'Empresa, Ocupació i Energia | B51: Medi ambient | C51: Conferència Sectorial de Medi Ambient | D51: 2022-06-20 | E51: Aprovat/Acord de Conferència Sectorial definitiu | F51: Transició verda | G51: C12. | H51: C12.I03. | I51: C12.I03.P01.S04. Suport a la implementació de la normativa de residus. Illes Balears. | J51: 22408899.98 | L51: 15876840.19 | M51: 6532059.79 | R51: SI | T51: MR006 | U51: =+VLOOKUP(T51,[1]Full1!$A$2:$B$120,2,0) ->  | V51: 23475 | W51: 15853366 | X51: 16134859.37 | Y51: 9509653 | Z51: 9509653 | AA51: =15876840.19+6532059.79 -> 22408899.98 | AB51: Ministeri per a la Transició Ecològica i el Repte Demogràfic | AC51: =416250000+175000000 -> 591250000 | AD51: 0.03790088792 | AE51: Criteris de distribució: 1) 45% Volum de generació de residus municipals a cada territori (45%). 2) 45% Situació de cada CA i Ciutat amb Estatut d’Autonomía respecte del cumpliment de l’objetiu comunitari del 55% de preparació per a la reutilització i reciclatge dels residus municipals l’any 2025. 3) 10% Densitat de població. | AF51: 15/06/2021: Acord de CS. 08/06/2021: Ingrés Tresoreria. 07/06/2022: Autorització CM. 20/06/2022: Aprovació CS. 09/09/2022: Ingrés Tresoreria. | AG51: En la CS 15/06/2021, a instàncies Comisió europea, l’activitat 4.3 Bases reguladores ja no es finançable amb MRR. Ho podrà ser amb PIMA. Autorització CM: 07/06/2022. En el mateix Acord hi ha una part, no inclosa en aquestes xifres, amb càrrec al pressupost del Ministeri. Segons Acord CM, bases són molt semblants a la convocatòria de 2021. | AH51: 2022: Convocatòria subvencions: Es preveu fer una línia de subvencions a entitats locals. Convocatòria 98%. 2% per a despeses de personal com a projecte d’inversións. 2023: Convocatòries de subvencions. | AI51: 2026-05-31 | AJ51: Objectiu 187: actuacions realitzades i finalitzades abans de 2023 d’aquest component. Objectiu 188: 30% de recollida separada de residus municipals al 2n trimestre de 2026 amb dades de 2024. Realitzar convocatòria d’ajudes: 15 mesos des de CS de data 14/07/2022 i CS de data 20/09/2023. A data 31/12/2023: La totalitat dels fons han d’estar adjudicats o reintegrament per redistribució entre la resta de CCAA. Termini d’execució: 1/01/20 a 31/05/26 | AK51: 2023-12-31 | AL51: 31/12/2023: Adjudicació de la totalitat dels fons. Convocatòria 2022: concedida nim una convocatòria de subvencions concedida 100% i projecte d’inversió relatiu a despeses de personal pagat. Publicada convocatòria de subvencions 2023 en data 22/04/2023. Import mobilitzat: 22.113.453,52€; Import executat (31.05.23): 15.761.808,12€. Ordre global 16S, 70S i 31AI. | AP51: Marina Aramburu | AQ51: No se n’observen. Manca saber si amb la convocatòria s’assolirà l’objectiu del 30% recolllida separada.
A52: Conselleria d'Agricultura, Pesca i Medi Natural | B52: Medi ambient | C52: Conferència Sectorial de Medi Ambient | D52: 2021-07-09 | E52: Aprovat/Acord de Conferència Sectorial definitiu | F52: Transició verda | G52: C04. | H52: C04.I02. | I52: C04.I02. Conservació de la biodiversitat terrestre i marina (projecte de control i en el seu cas erradicació de diferents espècies invasores en diferents hàbitats i localitzacions geogràfiques; restauració d’ecosistemes i infraestructura verda; senyalització d’espais naturals protegits i Xarxa Natura 2000). | J52: 1309743 | L52: 1309743 | R52: SI | T52: MR028 | U52: =+VLOOKUP(T52,[1]Full1!$A$2:$B$120,2,0) ->  | W52: =J52 -> 1309743 | X52: =W52 -> 1309743 | AA52: =L52 -> 1309743 | AB52: Ministeri per a la Transició Ecològica i el Repte Demogràfic | AC52: 82000000 | AD52: 0.01597247561 | AE52: Criteris de distribució: repartiment proporcional al a superfície forestal (50%) i d’espais protegits amb la mateixa ponderació (50%). | AF52: 15/06/2021: CS s’han consultat els criteris de repartiment i la distribució territorial dels crèdits. 06/07/2021: Autorització CM 09/07/2021: ratificació CS del primer import de 2021. 06/09/2021: Ingrés Tresoreria. 14/12/2021: CM Referencies CdM. 15/12/2021: Acord de CS. Es reajusten les inversions i el que era I3 passa a I2. 28/12/2021: Ingrés Tresoreria. | AG52: Projectes: erradicació d’especies invasores, senyalització espais naturals, maquinària forestal, millora boscos i prevenció incendis. El 2021 arriben inicialment 2.135.959 € (CS juliol) i després la resta (CS desembre). | AH52: Transferència COFIB per erradicació espècies i contracte senyalització espais | AI52: 2026-06-30 | AJ52: Objectius I2 2021(CID 69): 270 ha (Illes Balears) amb “Accions de conservació de la biodiversitat”. Termini consecució de la fita 31/06/2026. Totes les actuacions s’iniciaren entre 01/01/2021 i 31/12/2023. El 31/12/2023 és la data límit de compromisos de despesa. El termini d’execució finalitzarà com a tard el 30/06/2026. | AK52: 2023-12-31 | AL52: 31/12/2023: compromisos de despesa. 30/06/2026: objectiu CID 69, nº hectàreas conservació biodiversitat. A les Illes Balears el compromís és de 78 ha per l’any 2021 i 76 per l’any 2022.
A53: Conselleria de la Mar i del Cicle de l'Aigua | B53: Medi ambient | C53: Conferència Sectorial de Medi Ambient | D53: 2021-04-14 | E53: Aprovat/Acord de Conferència Sectorial definitiu | F53: Transició verda | G53: C05. | H53: C05.I01. | I53: C05.I01.P01.S09. Actuacions de depuració, sanejament i reutilització en municipis de menys de 5000 habitants. Illes Balears. | J53: 755465 | L53: 755465 | R53: SI | T53: MR004 | U53: =+VLOOKUP(T53,[1]Full1!$A$2:$B$120,2,0) ->  | W53: 755465 | X53: =W53 -> 755465 | Y53: 743607 | Z53: 755465 | AA53: 755465 | AB53: Ministeri per a la Transició Ecològica i el Repte Demogràfic | AC53: 100000000 | AD53: 0.00755465 | AE53: Criteris de distribució: 1) Nº aglomeracions urbanes amb procediment d’infracció de la Directiva 91/271/CEE. 2) Inversions en mesures per aglomeracions urbanes amb procediment d’infracció de la Directiva 91/271/CEE. 3) Nº aglomeracions urbanes no conformes amb la Directiva 91/271/CEE sense procediment d’infracció. 4) Inversions en mesures per aglomeracions urbanes sense procediment d’infracció de la Directiva 91/271/CEE. 5) Nº de mesures amb projecte redactat o en licitació per aglomeracions urbanes no conformes amb la Directiva 91/271/CEE i procediment d’infracció. | AF53: 14/04/2021: CS aprovació de criteris de repartiment i distribució. 28/05/2021: Ingrés Tresoreria. | AG53: La financiació màxima corresponent als fons regulats no excederà el 80% del cost total del projecte. | AH53: Transferència ABAQUA, que licitarà l’obra. | AI53: 2026-08-31 | AJ53: Objectius I1 2021. Fita d’execució total: nº d’actuacions construides amb la subvenció i població equivalent beneficiada. Termini d’execució: actuacions iniciades després de l’1/03/2020 i finalitzades 31/08/2026. Fita d’execució parcial: executat el 50% de l’inversió a 31/12/2023. | AK53: 2023-12-31 | AL53: Fita d’execució parcial: executat el 50% de l’inversió a 31/12/2023. (Licitada la redacció del projecte (ordre global 56L); previsió licitació obres 4T 2023). | AM53: 2023-06-01 | AQ53: Adjudicada la redacció del projecte. Fita d’execució 50% obres a 31/12/»3 no s’assolirà. Cost obra: 2 M€, molt superior a import assignat. Intenció sol·licitar més fons.
A54: Conselleria d'Agricultura, Pesca i Medi Natural | B54: Medi ambient | C54: Conferència Sectorial de Medi Ambient | D54: 2021-04-14 | E54: Aprovat/Acord de Conferència Sectorial definitiu | F54: Transició verda | G54: C04. | H54: C04.I02. | I54: C04.I02. Correcció d'esteses elèctriques per evitar danys a l'avifauna. | J54: 864863.82 | L54: 864863.82 | R54: SI | T54: MR003 | U54: =+VLOOKUP(T54,[1]Full1!$A$2:$B$120,2,0) ->  | Y54: 303000 | Z54: 864863.82 | AA54: 864863.82 | AB54: Ministeri per a la Transició Ecològica i el Repte Demogràfic | AC54: 60000000 | AD54: 0.014414397 | AE54: Criteris de distribució: 1) 30% Valor ambiental relatiu a la riquesa d'espècies l'amenaça de la seva supervivència és l'electrocució i col·lisió amb esteses elèctriques. 2) 30% Mortalitat entre l’any 2015-2019. 3) 40% Nº de suports dins Zones de Protecció. | AF54: 14/04/2021: CS amb els criteris de repartiment i la distribució territorial de crèdits. 28/05/2021: Ingrés Tresoreria. 27/04/2023: Ordre 14/2023. Bases reguladores i convocatòria de subvencions (BOIB 54 de data 27.04.2023). 18/04/2023: Extracte convocatòria subvenció (BOIB 54 de data 27.04.2023). | AH54: Convocatòria de subvencions (exel seguiment: 72S) | AI54: 2026-05-31 | AJ54: Objectiu d’obligat compliment: 288 suports corregits per a les Illes Balears (31/05/2026). Obres iniciades entre 01/01/2021 i 31/12/2023. Obres finalitzades 31/05/2026 | AK54: 2023-12-31 | AL54: Obligatòria la correcció d’un 70% del número mínim de suports (31/12/2023). Ordre global 72S, per ara, no hi ha import executat, només publicació de la convocatòria de subvenció 27/04/2023, que estableix com a fita de correccions mínima 288 suports. | AN54: Aquest valor puntual de correcció de suports es transformarà en superfície de la qual s'han eliminat els perills d'electrocució per a avifauna, contribuint a l'assoliment dels objectius de “Superfície objecte d'actuacions de conservació de biodiversitat previstos (ha)” previstos al component 4. | AQ54: Convocatòria publicada. Fita intermèdia, dubte si compliment.
A55: Conselleria d'Agricultura, Pesca i Medi Natural | B55: Medi ambient | C55: Conferència Sectorial de Medi Ambient | D55: 2021-12-15 | E55: Aprovat/Acord de Conferència Sectorial definitiu | F55: Transició verda | G55: C04. | H55: C04.I04. | I55: C04.I04. Gestió forestal sostenible (millora de la resistència i resiliència de les masses forestals; actuacions preventives en punts estratègics de gestió i renovació i modernització de maquinària forestal). | J55: 2885000 | L55: 2885000 | R55: SI | T55: MR028 | U55: =+VLOOKUP(T55,[1]Full1!$A$2:$B$120,2,0) ->  | W55: =L55 -> 2885000 | X55: =W55 -> 2885000 | AA55: 2885000 | AB55: Ministeri per a la Transició Ecològica i el Repte Demogràfic | AC55: 180000000 | AD55: 0.01602777778 | AE55: Criteris de distribució: repartiment proporcional al a superfície forestal (50%) i d’espais protegits amb la mateixa ponderació (50%). | AF55: 15/06/2021: CS s’han consultat els criteris de repartiment i la distribució territorial dels crèdits. 06/07/2021: Autorització CM 09/07/2021: ratificació CS del primer import de 2021. 06/09/2021: Ingrés Tresoreria. 14/12/2021: CM Referencies CdM. 15/12/2021: Acord de CS. Es reajusten les inversions i el que era I3 passa a I2. 28/12/2021: Ingrés Tresoreria. | AG55: Maquinària forestal, millora boscos i prevenció incendis. | AH55: Ordre global 14L i 15L de dues licitacions adjudicades amb MEPROs a Tragsa (904.911,63€ i 919.545,56€). Transferència a IBANAT (licitació publicada en data 2/04/2023 i ordre global 91L li adjudiquen 1.050.000 per adquisició de vehicles., que era la quantitat inicial. Sobraran 10.000 €. Actualment en procés d’avaluació). Licitació publicada 8/03/2023 amb ordre global 80L, suspesa temporalment. | AI55: 2023-06-30 | AJ55: Objectiu I4 - ACCIÓ FORESTAL SOSTENIBLE (CID 73): Termini consecució de la fita: 30/06/23. Nou CID 425: 30/06/2026 | AK55: 2023-06-30 | AL55: 30/06/2023: finalització d’actuacions i renovació de vehicles d’extinció d’incendis. Millora dels boscos, planificació de pràctiques adaptatives de gestió forestal sostenible i enriquiment d’especies. | AQ55: Encàrrec Tragsa executat. Compra vehicles no (una part quedarà deserta), però la fita a nivell estatal està complida. Amb l’addenda i per Acord CS s’ha introduït unan nova fita (425). Pendent confirmar amb Ministeri si amb la nova fita poden tornar a licitar vehicles que varen quedar deserts perquè entrarien dins el nou termini
A56: Conselleria de la Mar i del Cicle de l'Aigua | B56: Medi ambient | C56: Conferència Sectorial de Medi Ambient | D56: 2021-07-09 | E56: Aprovat/Acord de Conferència Sectorial definitiu | F56: Transició verda | G56: C05. | H56: C05.I01. | I56: C05.I01.P02.S14. Millora de l’eficiència i reducció de pèrdues en l’ús de l’aigua a les xarxes de distribució en municipis de menys de 20.000 habitants de les Illes Balears. | J56: 2658926 | L56: 2658926 | R56: SI | T56: MR027 | U56: =+VLOOKUP(T56,[1]Full1!$A$2:$B$120,2,0) ->  | W56: =L56 -> 2658926 | X56: =W56 -> 2658926 | Y56: 700000 | Z56: 1085779.06 | AA56: 2658926 | AB56: Ministeri per a la Transició Ecològica i el Repte Demogràfic | AC56: 100000000 | AD56: 0.02658926 | AE56: Criteris de distribució: 1) 60% Població de municipis menors de 20.000 hab. 2) 15% Densitat de població. 3) 25% Percentatge de perdues reals a la red. rcentaje de pérdidas reales en la red. | AF56: 15/06/2021: CS s’han consultat els criteris de repartiment i la distribució territorial dels crèdits. 06/07/2021: Autorització CM 09/07/2021: Ratificació CS. 10/08/2021: Ingrés Tresoreria. | AG56: L’execució pot ser directament per la CAIB; convenis amb entitats locals o convocatòries de subvencions a entitats locals; 80% cost elegible (pot ser 60%, majors de 15.000 hab.) | AH56: Ordre global: 17S, línia de subvenció publicada el 9/04/2022. Concedida per un import 2.578.234,09€. Realitzat projecte temporal amb un import executat de 69.856,35€. | AI56: 2025-06-01 | AJ56: Actuacions iniciades 1/02/2020 i finalitzades l’1/06/2025. 31/12 2023: 50% inversió realitzada. En cas de convocatòria a entitats locals, adjudicada en 12 mesos des d’aprovació de distribució crèdits. | AK56: 2023-12-31 | AL56: Fita parcial 31/12/2023: 50% inversió realitzada. 01/06/2026: verificació de la fita final amb l’execució total i els tres objectius considerats (nº d’actuacions construides, població beneficiada i percentatge de reducció en perdues reals). Abans de 1 de juny de cada any, informe justificatiu relatiu al grau d’execució de la despesa i l’avanç del compliment de les fites i objectius establerts a la Secretaria d’Estat de Medi Ambient. Un cop finalitzat el projecte, en tres mesos des de la recepció, informe justificatiu final de l’actuació. | AM56: 2025-08-31 | AN56: A les Illes Baleats els indicadors d’objectius a assolir amb aquesta subvenció seran 40 actuacions construides, 200.000 habitants beneficiats i un 20 % mitjà de reducció damunt les perdues reals existents abans de l’actuació. | AQ56: Risc baix.
A57: Conselleria d'Agricultura, Pesca i Medi Natural | B57: Medi ambient | C57: Conferència Sectorial de Medi Ambient | D57: 2021-07-09 | E57: Aprovat/Acord de Conferència Sectorial definitiu | F57: Transició verda | G57: C04. | H57: C04.I02. | I57: C04.I02. Actuacions d’execució directa a parcs nacionals (Cabrera). | J57: 5564800 | L57: 5564800 | R57: SI | T57: MR031 | U57: =+VLOOKUP(T57,[1]Full1!$A$2:$B$120,2,0) ->  | W57: =L57 -> 5564800 | X57: =W57 -> 5564800 | AA57: 5564800 | AB57: Ministeri per a la Transició Ecològica i el Repte Demogràfic | AC57: 74000000 | AD57: 0.0752 | AF57: 15/06/2021: CS, criteris de repartiment i la distribució territorial dels crèdits. 06/07/2021: Autorització CM 09/07/2021: Ratificació CS. 02/11/2021: Ingrés Tresoreria. | AI57: 2026-05-31 | AJ57: Objectiu: indicador de compliment: 50.000 ha. Fites: Inici actuacions abans de 31/12/2023 (crèdit compromès) i 50% executat 31/12/2023. Finalització del termini d’execució: 31/05/2026. | AK57: 2023-12-31 | AL57: Crèdit compromès i execució del 50%. | AP57: Maria Francesca López
A58: Conselleria d'Agricultura, Pesca i Medi Natural | B58: Medi ambient | C58: Conferència Sectorial de Medi Ambient | D58: 2021-07-09 | E58: Aprovat/Acord de Conferència Sectorial definitiu | F58: Transició verda | G58: C04. | H58: C04.I02. | I58: C04.I02. Actuacions a les àrees d’influència socioeconòmica dels parcs nacionals (Cabrera). | J58: 3890000 | L58: 3890000 | R58: SI | T58: MR032 | U58: =+VLOOKUP(T58,[1]Full1!$A$2:$B$120,2,0) ->  | W58: =L58 -> 3890000 | X58: =W58 -> 3890000 | AA58: =J58 -> 3890000 | AB58: Ministeri per a la Transició Ecològica i el Repte Demogràfic | AC58: 50000000 | AD58: 0.0778 | AF58: 15/06/2021: A La CS s’han consultat els criteris de repartiment i la distribució territorial dels crèdits. 06/07/2021: Autorització CM. 09/07/2021: Ratificació CS. 02/11/2021: Ingrés Tresoreria. 06/05/2023: Ordre 15/2023 estableix les bases i aprova la convocatòria de subvencions per a l’any 2023 per a actuacions en l’àrea d’influència socioeconòmica del Parc Nacional Maritimoterrestre de l’Arxipèlag de Cabrera (BOIB 58 de 6/05/2023). 06/05/2023: Extracte de convocatòria (BOIB 58 de 6/05/2023). | AG58: Actuacions de conservació del patrimoni naturals, de modernització d’infraestructures i serveis, d’eliminació d’impactes sobre els valors naturals o culturals del parc. Se poden fer convocatòries de subvencions. | AI58: 2026-05-31 | AJ58: Objectiu: indicador de compliment: 428 ha cobertes per actuacions efectives de conservació de la biodiversitat terrestre. Fites: Inici actuacions abans de 31/12/2023 (crèdit compromès) i 50% executat 31/12/2023. | AK58: 2023-12-31 | AL58: Crèdit compromès i execució del 50% | AM58: Informe inicial, anual (o periodicitat que s’estableixi) i final. | AN58: Indicadors de gestió: 1) % d’ajudes compromeses. 2) % de pressupost executat. | AP58: Maria Francesca López
A59: Conselleria d'Agricultura, Pesca i Medi Natural | B59: Medi ambient | C59: Conferència Sectorial de Medi Ambient | D59: 2021-07-09 | E59: Aprovat/Acord de Conferència Sectorial definitiu | F59: Transició verda | G59: C04. | H59: C04.I02. | I59: C04.I02. Actuacions a reserves de la biosfera (Menorca). | J59: 755383 | L59: 755383 | R59: SI | T59: MR033 | U59: =+VLOOKUP(T59,[1]Full1!$A$2:$B$120,2,0) ->  | W59: =L59 -> 755383 | X59: =W59 -> 755383 | AA59: =L59 -> 755383 | AB59: Ministeri per a la Transició Ecològica i el Repte Demogràfic | AC59: 50000000 | AD59: 0.01510766 | AF59: 15/06/2021: A La CS s’han consultat els criteris de repartiment i la distribució territorial dels crèdits. 06/07/2021: Autorització CM. 09/07/2021: Ratificació CS. 02/11/2021: Ingrés Tresoreria. | AG59: Actuacions de conservació del patrimoni natural, de modernització d’infraestructures i serveis, d’eliminació d’impactes sobre els valors naturals o culturals del parc. Se poden fer convocatòries de subvencions. | AI59: 1/01/2021 – 31/5/2026 | AJ59: 50% inversió realitzada a 31/12/2023; si se fa convocatòria, adjudicada en 12 mesos des d’aprovació de distribució crèdits. | AM59: Informe inicial, anual (o periodicitat que s’estableixi) i final | AN59: Indicador de compliment: aconseguir al menys 50.000 ha. cubertes per actuacions efectives de conservació de la biodiversitat terrestre pel mes de juny del 2026.
A60: Conselleria d'Habitatge, Territori i Mobilitat | B60: Mobilitat | C60: Conferència Nacional de Transports | D60: 2022-08-30 | E60: Aprovat/Acord de Conferència Sectorial definitiu | F60: No catalogat | G60: C06. | H60: C06.I04. | I60: C06.I04. Digitalització de les administracions públiques o empreses operadores de transport de caràcter públic. | J60: 2715860 | L60: 1172758 | M60: 1543102 | R60: SI | T60: MR065 | U60: =+VLOOKUP(T60,[1]Full1!$A$2:$B$120,2,0) ->  | Z60: 2715860 | AA60: =1172758+1543102 -> 2715860 | AB60: Ministeri de Transports, Mobilitat i Agenda Urbana | AC60: =47500000+62500000 -> 110000000 | AD60: 0.02468963636 | AE60: Criteri de distribució poblacional. | AF60: 27/09/2021: Informació presentada a la Comisión de Directores Generales de Transportes. 19/10/2021: Autoritzat CM. 05/11/2021: Aprovat per Conferencia Nacional de Transportes. Es va establir l’import de 2022 com a orientatiu. 17/12/2021: Ingrés Tresoreria. 06/07/2022: A la Conferencia Nacional de Transporte s’estableix un import lleugerament superior. 30/08/2022: Ingrés Tresoreria (import inicialment previst). | AG60: Mateix projecte que fila anterior; és la previsió d’anualitat següent. Previsió que l’Estat aprovi un RD per concedir a les CCAA l’ajuda perquè puguin fer les convocatòries. | AI60: 2026-06-30 | AJ60: General: Indicador de importe de inversión licitado: a 30 septiembre 2023 se deberá haber licitado por un valor de al menos el 100% de la cuantía recibida (2.715.860 €). Indicador de inversión adjudicada en licitaciones y compras: a 30 de junio de 2024 se deberá haber adjudicado por valor del importe total de la cuantía recibida. Por otra parte, se exigirá justificar la finalización de los proyectos a fecha 30 de junio de 2026 (acta recepción del contrato). Balears: Veure detall pàgina 48 Certificat Acord CS 5/11/21. Entrada en servicio actuación prevista: Proyecto business intelligence: 12/2024; Implantación sistemas digitales públicos de información en tiempo real servicios transporte ferroviario: 10/2024; solución tecnológico modernización servicio taxi y transporte a la demanda: 06/2023; Nuevas herramientas tecnológicas para el impulso MaaS: 12/2024. | AK60: 2023-09-30 | AL60: Indicador d’import d’inversió licitat: a 30 de setembre de 2023 s’haurà d’haver licitat per un valor de mínim el 100% de de quantia rebuda. A data 31/12/2024 hauran d'adjudicar, almenys, els contractes equivalents a 80%, almenys, dels metres quadrats que han quedat compromesos en les actuacions en fase 2. Aportar amb periodicitat mensual: • Pressupost licitat. • Prsesupost adjudicat. • Pressupost executat. • N.º de projectes finalitzats. Informes justificativos semestrales. 30/06/2026: acta recepción. | AN60: Indicador d’import d’inversió licitat.
A61: Conselleria d'Habitatge, Territori i Mobilitat | B61: Habitatge | C61: Conferència Sectorial d’Habitatge, Urbanisme i Sòl | D61: 2022-09-13 | E61: Aprovat/Acord de Conferència Sectorial definitiu | F61: Transició verda | G61: C02. | H61: C02.I01. | I61: C02.I01.P02.PROVISIONAL.S04. Programes de rehabilitació residencial en el marc del PRTR en la Comunitat Autònoma d'Illes Balears. | J61: 62509400 | L61: 28326110 | M61: 34183290 | R61: SI | T61: MR036 | U61: =+VLOOKUP(T61,[1]Full1!$A$2:$B$120,2,0) ->  | V61: 28326110 | W61: 17091645 | X61: 17091645 | Y61: 17900000 | Z61: 45167121 | AA61: =28326110+17091645 -> 45417755 | AB61: Ministeri de Transports, Mobilitat i Agenda Urbana | AC61: =1151000000+1389000000 -> 2540000000 | AD61: 0.02461 | AE61: Nombre de llars de l’enquesta contínua de llars (INE) referit a l’any 2020. | AF61: 19/05/2021: Comissió. 26/05/2021: Conferència sectorial sobre criteris repartiment. 13/07/2021: Acord C. Ministres. 21/07/2021: Aprovació definitiva Conf. Sectorial. 05/10/2021: Publicacio RD regulacio programes al BOE. 29/11/2021: Ingrés Tresoreria anualitat 2021. Continuació dels programes de 2021. Tenim document inicial i nota de premsa de l’Estat sobre criteris de repartiment. Condicionat a l’execució de l’anualitat de 2021. 23/08/2022: Acord CM. 13/09/2022: Aprovació Conferència Sectorial. 23/12/2022: Ingrés per part de Tresoreria de part de l’anualitat del 2022, pendent d’ingrés 17.091.645€. 02/10/2023: Aprobació de l’Addenda espanyola per la Comissió Europea. Modficació del termini d’execució per a l’objectiu CID 27: T4 del 2024. | AG61: Distribució dels fons 2021 amb quantia lleugerament superior a la comunicada per la Conselleria. Import inclou total dels 5 programes rehabilitació residencial; Repartiment entre línies és lliure, excepte mínim per actuacions de barri 30%. Import 2022 i següents: 1.819MEUR a repartir entre CCAA condicionat a excució de la 1a part. 1. programa d’ajudes per rehabilitació a nivell de barri; 2. programa d’ajudes a oficines de rehabilitació; 3. programa d’ajuda a actuacions de rehabilitació a nivell d’edifici; 4. programa de foment de la eficiència energètica en habitatges; 5. programa d’ajuda a l’elaboració del llibre de l’edifici existent par a la rehabilitació i la redacció de projectes de rehabilitació. | AH61: Dues convocatòries de subvencions, d’acord amb les bases estatals i amb nº d’ordre global 45S i 52S sense import executat en aquests moments. Realitzats 5 convenis amb un import executat de 925.942€. Novembre 2021: PROTOCOL AMB amb la degana del Col·legi Oficial d’Arquitectes, amb el president del Col·legi d’Aparelladors de Mallorca, Menorca, Eivissa i Formentera i amb el president del Col·legi d’Administradors de Finques de Balears, per dur a terme de forma conjunta la tramitació d’ajudes de Fons Europeus destinades a la rehabilitació dels habitatges: https://www.caib.es/govern/sac/fitxa.do?codi=4985222&coduo=199&lang=ca | AI61: 2026-06-30 | AJ61: Objectiu: número d’actuacions (habitatges únics): 3.938; Objectiu CID 27: finalització de les actuacions de renovació d’habitatges, amb un estalvi mitja d’un 30 % d’energia primaria el quart trimestre de 2024. Objectiu CID 28: Hectàrees a zones o barris renovades amb un estalvi mitjà d’un 30 % d’energia primària, al segon trimestre de 2026. Objectiu CID 29: finalització de les actuacions de renovació d’habitatges amb un estalvi mitjà del 30 % d’energia primària, al segon trimestre de 2026. | AK61: 2023-11-30 | AL61: 30/11/2023: Els fons han d’estar compromesos per a rehabilitar 3.938 habitatges únics. 31/12/2024: finalització de les actuacions de renovació d’habitatges, amb un estalvi mitja d’un 30 % d’energia primaria. 31/12/2026: Data de finalització de les actuacions finançades amb fons d’aquest Programa. | AM61: 2026-12-31 | AO61: D.G. d’Habitatge i Arquitectura | AP61: Óscar Canalis
A62: Conselleria d'Habitatge, Territori i Mobilitat | B62: Habitatge | C62: Conferència Sectorial d’Habitatge, Urbanisme i Sòl | D62: 2022-09-13 | E62: Aprovat/Acord de Conferència Sectorial definitiu | F62: Protecció social | G62: C02. | H62: C02.I02. | I62: C02.I02.P02.S03. Programa d'habitatge social en el marc del PRTR en la Comunitat Autònoma d'Illes Balears. | J62: 24610000 | L62: 0 | M62: 12305000 | N62: 12305000 | R62: SI | T62: MR058 | U62: =+VLOOKUP(T62,[1]Full1!$A$2:$B$120,2,0) ->  | X62: 12305000 | Y62: 12305000 | Z62: 12305000 | AA62: =12305000+12305000 -> 24610000 | AB62: Ministeri de Transports, Mobilitat i Agenda Urbana | AC62: =500000000+500000000 -> 1000000000 | AD62: 0.02461 | AE62: Criteris distribució no especificats. En principi nombre habitatges (CAIB: 2,45% de 1000MEUR). No quantia 2021. 2022: 500 MEUR. Per al 2023 i següents, 500MEUR per a totes CCAA (estimació CAIB: 12.250.000 €). | AF62: 19/05/2021: Comissió. 26/05/2021: Acord de CS. 30/03/2022: Ingrés Tresoreria. 23/08/2022: Import 2023 autorització CM. 13/09/2022: Aprovació CS. 17/03/2023: Ingrés Tresoreria. | AG62: Mitjançant acord de Comissió Bilateral s’identificaran terrenys de titularitat pública i característiques de la promoció. Límits ajuda: 60% de la inversió; 50.000 € habitatge i 500 €/m² superfície útil. Per sector públic i privat. | AI62: 2026-06-30 | AJ62: Objectivo Nª31 CID: nous habitatges construits per a lloguer social o preus assequibles i amb criteris d’eficiència energètica: X habitatges per a les Illes Balears, 2n semestre de 2026. NO TENIM XIFRA PER A BALEARS. | AM62: 2026-12-31 | AO62: IBAVI
A63: Conselleria d'Habitatge, Territori i Mobilitat | B63: Habitatge | C63: Conferència Sectorial d’Habitatge, Urbanisme i Sòl | D63: 2021-07-21 | E63: Aprovat/Acord de Conferència Sectorial definitiu | F63: Transició verda | G63: C02. | H63: C02.I05. | I63: C02.I05.P01.S06. Pla d’impuls a la rehabilitació d’edificis públics (PIREP Autonòmic Illes Balears). | J63: 11851200 | L63: 11851200 | R63: SI | T63: MR034 | U63: =+VLOOKUP(T63,[1]Full1!$A$2:$B$120,2,0) ->  | X63: =AA63 -> 11851200 | AA63: =L63 -> 11851200 | AB63: Ministeri de Transports, Mobilitat i Agenda Urbana | AC63: 480000000 | AD63: 0.02469 | AF63: 18/05/2021: Acord de CS criteris repartiment. 13/07/2021: Acord CM. Quantia lleugerament inferior a la comunicada per la Conselleria. 21/07/2021: Aprovació segona CS. Preveu presentar projectes juliol, signar convenis i transferència a partir de setembre. 08/04/2022: Pagament anticipat. Ingrés Tresoreria. | AG63: Les obres d’eficiència energètica han de disminuir el consum un 30% energia no renovable. 5 tipus d’actuacions. La A (eficiència energètica) se pot finançar al 100%. Resta 85%. 4.05.2023: Acord de Consell de Govern de 2.05.2023. Inversió d’interès autonòmic Edifici Mateu Orfila (PIREP). (BOIB 57 de 4.05.2023). 4.05.2023: Acord de Consell de Govern de 2.05.2023. Inversió d’interès autonòmic Edifici Ramon Llull (PIREP). (BOIB 57 de data 4.05.2023). | AH63: Conveni amb l’Estat i posteriorment licitació obres, diferents entitats executores. Dos edificis són de la UIB i s’ha declarat la inversió d’interès autonòmic: edifici Ramon Llull i Mateu Orfila. | AI63: 2024-09-30 | AJ63: Les actuacions finançables s’han d’executar entre l’1 de febrer de 2020 i el 30 de setembre de 2024 per a les actuacions de adscrites només a la Fase 1 o fins el 31 de marrç de 2026 per a les de la Fase 2. | AK63: 2024-09-30 | AL63: A data de 31 de desembre de 2022, hauran d'estar adjudicats els contractes equivalents al 80%, almenys, dels metres quadrats que han quedat compromesos en les actuacions en fase 1. Finalització i recepció, abans del 30 de setembre de 2024, de les obres corresponents a les actuacions que es proposen per a la fase 1 a l'annex I del Conveni, amb una reducció mitjana d'almenys un del 30% del consum de energia primària no renovable (almenys 290.000 metres quadrats). La finalització i recepció, abans del 31 de març de 2026, de les obres corresponents a les actuacions que es proposen per a la fase 2 a l'annex I a aquest conveni, amb una reducció mitjana d'almenys un 30% del consum de energia primària no renovable (almenys 1.230.000 metres quadrats). | AO63: D.G. d’Habitatge i Arquitectura | AP63: Nerea Uriarte / Imma Alcolecha | AQ63: L’obra del centre de salut de Felanitx finalment no es durà a terme atès que s’ha detectat (octubre 2023) que part de les actuacions (plaques fotovoltaiques) les executava també l’IBE amb fons del PRTR. Se substituirà per al centre de salut de Son Rullan, previst com a reserva. Per altra banda, l’hospital Joan March, que estava a la fase 2, tampoc no s’executarà atès que amb la resta d’edificis compleixen la fita de metre quadrats rehabilitats i amb els fons que alliberen d’aquest projecte i la diferència del que costava Felanitx respecte de Son Rullan (cost menor) ho destinaran a altres obres del conveni que tenen un cost elevat i no es finançaven íntegrament. Es preveu aprovar aquesta modificació a una Comissió Bilateral el 13/12/23 i fer una Addenda al conveni
A64: Conselleria d'Habitatge, Territori i Mobilitat | B64: Mobilitat | C64: Conferència Nacional de Transports | D64: 2021-11-05 | E64: Aprovat/Acord de Conferència Sectorial definitiu | F64: Transició verda | G64: C01. | H64: C01.I01. | I64: C01.I01. Creació de zones de baixes emissions a les ciutats i àrees metropolitanes: priorització de transport públic, creació d’aparcaments dissuasius, carrils bici o millores de transport ferroviari urbà/metropolità. | J64: 22220675 | L64: 22220675 | R64: SI | T64: MR048 | U64: =+VLOOKUP(T64,[1]Full1!$A$2:$B$120,2,0) ->  | V64: 22220675 | AA64: =L64 -> 22220675 | AB64: Ministeri de Transports, Mobilitat i Agenda Urbana | AC64: 900000000 | AD64: 0.02468963889 | AE64: població | AF64: 27/09/2021: Informació presentada a la Comisión de Directores Generales de Transportes. 19/10/2021: Autoritzat CM. 05/11/2021: Aprovat per Conferencia Nacional de Transportes. 24/11/2021: Resolució S.E. Transportes. 17/12/2021: Ingrés Tresoreria. No import 2022. | AG64: Finançables 100% costos elegibles. Veure en l’acord CS Projectes concrets (pgs. 47 i 48). | AI64: 2025-12-31 | AJ64: Balears: veure detall pàgina 47 i 48 Certificat Acord CS 5/11/21. Entrada en servei actuació prevista: Ampliació línia de metro Parc Bit (03/2023); implantació sistemes digitals públics estació Palma (05/2022); nou baixador a l’hospital comarcal d’Inca (03/2023); Obres noves aturades i millora xarxa autobús urbà a Mallorca, Menorca i Eivissa (10/2024); implantació sistemes digitals públics en les aturades d’autobusos de Menorca i Eivissa (05/2024). | AK64: 2023-12-31 | AL64: 31/12/2022: hauran d'estar adjudicats els contractes equivalents a 80%, almenys, dels metres quadrats que han quedat compromesos en les actuacions en fase 1. 31/12/2025: Inversions finalitzades aportació acta de recepció. Fites: realització d’informes justificatius semestrals. 30/03/2023: 100 % licitat. 31/12/2023: inversió adjudicada. 30/06/2025: justificació finalització de projectes (acta de recepció del contracte). 31/12/2025: Acta recepció. | AM64: 2025-12-31 | AN64: Amb periodicitat mensual: • Pressupost licitat. • Pressupost adjudicat. • Pressupost executat. • Nº de projectes finalitzats. Indicador import inversió licitat: 100% licitat a 30 de març de 2023 la quantiarebuda (22.220.675 €). Indicador inversió adjudicada a licitacions i compres: a 31 de desembre de 2023 s’ha d’haver adjudicat el total de la quantia rebuda.
A65: Conselleria d'Habitatge, Territori i Mobilitat | B65: Mobilitat | C65: Conferència Nacional de Transports | D65: 2022-11-17 | E65: Aprovat/Acord de Conferència Sectorial definitiu | F65: Transició verda | G65: C01. | H65: C01.I01. | I65: C01.I01.P03.S01. Ajudes per a la transformació de flotes de transport de viatgers i mercaderies d'empreses privades prestadores de serveis de transport. Illes Balears. | J65: 8324195.4 | L65: 3621025 | M65: 3621025 | N65: 1082145.4 | R65: SI | T65: MR050 | U65: =+VLOOKUP(T65,[1]Full1!$A$2:$B$120,2,0) ->  | V65: 3621025 | W65: 3621025 | X65: 3621025 | Z65: 2189516.67 | AA65: =3621025+3621025+1082145.4 -> 8324195.4 | AB65: Ministeri de Transports, Mobilitat i Agenda Urbana | AC65: 174000000 | AD65: 0.04784020345 | AE65: Criteri de distribució: nº de vehicles domiciliats a cada CCAA i a les Ciutats de Ceuta i Melilla, de transport públic de mercaderies i viatgers i transport privat complementari. Criteri i percentatge fixat a la distribució de 2021: 2,08%. La CAIB va sol·licitar un increment de l’import atès que l’assignat el 2021 s’havia exhaurit i el MITMA ha fet una resolució d’ampliació de la subvenció concedida. No informació sobre c`redit global que se reparteix per a l’ampliació | AF65: 19/10/2021: Autorització distribució CM. Se sotmet a consulta de la Conferència Sectorial els criteris i projecte de RD. És un RD a la CAIB perquè tregui les convocatories. 16/11/2021: RD 983/2021 (BOE 17/11/21). 28/12/2021: Ingrés Tresoreria. 17/11/2022: Resolució de la Secretaria d’Estat de Transports, Mobilitat i Agenda Urbana per la qual es concedeix a la CAIB una ampliació de la subvenció regulada al RD 983/2021. 29/11/2022: Ingrés Tresoreria. 22/06/2023: Orden TMA/686/2023, modifiquen els annexes I i III, del RD 983/2021 (BOE 152, 27.06.2023) 24/06/2023: Resolució de modificació de la convocatòria. 15/11/2023: Ordre TMA/1227/2023, de 10 de novembre de modificació dels Annexes I, III i V del RD 983/2021, de 16 de novembre (BOE 273 de 15/11/2023). 05/10/2023: Resolució 2ª ampliació de crèdit. 18/10/2023: Ingrés Tresoreria 2ª ampliació de crèdit. | AH65: Convocatòria de subvencions. CAIB: publicada BOIB 17/03/2022. Termini presentació solicituds fins 30/04/2024, excepte una activitat que és fins 31/12/2023. Termini màxim justificació beneficiaris: 30/11/2025 Ampliar la convocatòria de subvencions publicada el 17/03/2022 (BOIB 86 de 24.06.2023). | AI65: 2025-11-30 | AJ65: 1) Les convocatòries de les CCAA i les ciutats de Ceuta i Melilla han de efectuar-se en un termini màxim de 3 mesos. COMPLERT: BOIB 17/03/22. 2) Als 15 mesos, les CCAA i les Ciutats de Ceuta i Melilla, han d’haver compromès el 80% del pressupost assignat. 3) Als 21 mesos les CCAA i les ciutats de Ceuta i Melilla, han d’haver executat mínim el 80% del pressupost assignat. 4) No s’admetran justificacions d’actuacions subvencionades amb data posterior al 30 de novembre de 2025. | AK65: 2023-11-30 | AL65: Ajuda compromesa en el marc del programa d’incentius, ha de ser, com a mínim del 8’% del pressupost assignat. Es considera pressupost compromès, amb el registre de sol·licituds. Informes trimestrals de previsions. Informes semestrals con referència a les dates 30 de juny i 31 de desembre. Aquest informe s’ha de formalitzar per l’entitat executora abans del 20 de juliol i el 20 de de gener de cada any. 31/05/2024: informe final provisional. | AN65: Els indicadors són: 1) Seguiment de l’execució dels crèdits. 2) Nº de sol·licituds registrades. 3) Sol·licituds concedides. 4) Sol·licituds justificades. 5) Sol·licituds pagades. 6) Pressupost compromès i executat. | AQ65: La Conselleria d’Habitatge, Territori i Mobilitat ha realitzat sol·licitud d'ampliació de pressupost al MITMA (ens adjunten tant la sol·lictud com la resolució del MITMA).
A66: Conselleria d'Habitatge, Territori i Mobilitat | B66: Mobilitat | C66: Conferència Nacional de Transports | D66: 2022-10-25 | E66: Aprovat/Acord de Conferència Sectorial definitiu | F66: Transició verda | G66: C06. | H66: C06.I04. | I66: C06.I04. Línia acció 15: digitalització dels serveis de transport de viatges i mercaderies en l’àmbit autonòmic i local. | J66: =SUM(K66:Q66) -> 2723026 | M66: 2723026 | R66: SI | T66: MR049 | U66: =+VLOOKUP(T66,[1]Full1!$A$2:$B$120,2,0) ->  | W66: 2723026 | X66: 2723026 | AA66: =+M66 -> 2723026 | AB66: Ministeri de Transports, Mobilitat i Agenda Urbana | AC66: 110000000 | AD66: 0.02475478182 | AE66: Criteris de distribució: la distribució del pressupost per comunitats autònomes i ciutats de Ceuta i Melilla serà proporcional a la població. | AF66: 25/10/2022: RD 902/2022 de concessió directa (BOE 257 de 26/10/2022). 29/04/2023: Resolució convocatoria (BOIB 55, 29.04.2023). 13/11/2022: Ingrés Tresoreria. | AI66: 2025-12-31 | AJ66: Objectiu CID 99: 4rt trimestre de 2022 es publicarà al BOE la concessió de 800.000.000€ dins el marc del programa de transport sostenible i digital, projectes per a la digitalització dels serveis de transport de passatgers i mercaderies a l’àmbit autonòmic i local. Objectiu CID 100: 4rt trimestre de 2024 inici d’actuacions de tots els projectes adjudicats en el 4rt trimestre de 2022 (fita 99) per promoure el transport sostenible i digital. Objectiu CID 101: 2n trimestre de 2026 finalització de tots els projectes adjudicats durant el 4rt trimestre de 2022 (fita 99) per promoure el transport sostenible i digital. CAIB: admissió sol·licituds, fins 30/06/2024; Resolució concessió: fins 31/12/24. Justificació: 31/12/2025 (excepcionalment 30/04/26) | AK66: 2023-07-20 | AL66: Es realitzaran informes trimestrals de previsions. Informes semestrals, amb referència a les dates 30 de juny i 31 de desembre. Han de ser formalitzats per l’entitat executora abans del 20 de juliol i el 20 de gener de cada any. Hi ha dues fites de control de l’execució del pressupost que són el 30 de novembre de 2023 i el 31 de gener de 2024, en un termini màxim de 15 dies per presentar l’informe. Aquest informe ha d’incloure el grau de pressupost compromès (sol·licituds registrades), executat (sol·licituds resoltes favorablement) i pressupost total justificat. Abans del 31 de juliol de 2024, les CCAA i les ciutats de Ceuta i Melilla han de remetre al Ministerio de Transportes, Movilidad y Agenda Urbana un informe final provisional i abans del 31 de gener de 2025 un informe definitiu de tancament del programa. | AN66: 1. Mensualmente la càrrega d’informació tècnica i pressupostària a aplicación informàtica del Ministerio, amb les sol·licituds d’ajudes registrades, resoltes i executades, justificades i pagade. Informes de seguiment del programa a les CCAA. 2. Informació particularitzada respecte al complimient dels límits, condicions e intensitats d’ajuda. 3. El Ministeri pot requerir a les CCAA , la documentació per certificar la despesa inclosos els costos indirectes. 4. Es detallen camps que es podràn requerir en el seguiment de les ajudes i el disseny de les convocatòries per part de les CCAA i Ceuta i Melilla.
A67: Conselleria d'Empresa, Ocupació i Energia | B67: Ocupació | C67: Conferència Sectorial d’Ocupació i Assumptes Laborals | D67: 2022-05-19 | E67: Aprovat/Acord de Conferència Sectorial definitiu | F67: Ocupació | G67: C23. | H67: C23. I02 | I67: C23.I02.P02.PROVISIONAL.S04. Feina Dona. Programes de formació i inserció per a dones víctimes de violència de gènere o de trata i explotació sexual amb compromís de contractació. PAES (VII) – Formació e inserció. | J67: 507867 | L67: 169289 | M67: 169289 | N67: 169289 | R67: SI | S67: 338578 | T67: MR037 | U67: E06 | W67: =M67 -> 169289 | X67: =W67 -> 169289 | Y67: 169289 | Z67: 169289 | AA67: =169289+169289+169289 -> 507867 | AB67: Ministeri de Treball i Economia Social | AC67: =5000000+5000000+5000000 -> 15000000 | AD67: 0.0338578 | AE67: Criteris de distribució: mitjana aritmética del percentatge del nº de dones víctimes de violència masclista que han participat en servei o itinerari de foment de la feina o de FP per a la feina i del percentatge de contractes comunicats d’aquest colectiu a 2021 i 2022. | AF67: 06/07/2021: PAES – Formació. Acord de CM. 22/07/2021: Aprovació per CS. 19/08/2021: Distribució territorial per l’exercici 2021. Ordre TES/897/2021, de 19 d’agost. (BOE 202 de data 24/08/2021). 08/10/2021: Ingrés Tresoreria. 29/03/2022: Autorització CM. 06/04/2022: Acord CS. 17/05/2022: Distribució territorial per l’exercici 2020. Ordre TES/440/2022, de 17 de maig (BOE 119, de data 19.05.2022). 07/07/2022: Ingrés Tresoreria. L’acord fa referència a 2021. 2022 i 2023 són previsions. 11/04/2023: Autorització CM. No desglossa imports. 23/10/2023: Reintegrament de l’anualitat del 2021 i 2022. La quantitat a reintegrar és de 338.578,00 €. 15/09/2023: Ingrés Tresoreria anualitat 2023. | AG67: S’ha generat un fons finalista únic per als dos programes de Formació. S’executarà dins 2022 (correu 04/08/2021 Mercedes Isern). | AH67: Subvenció nominativa pressuposts CAIB 2022 + Conveni instrumental (BOIB 180, 30/12/2021). Publicat a la Llei de Pressuposts CAIB 2022 però encara no s’ha fet el Conveni Instrumental. Encara no s’ha realitzat la RF. | AI67: 2025-12-31 | AJ67: PAES VII; Objectiu CID 343: 2021: publicació DO instrument jurídic de la col·laboració. Participants 2021-2022: 17 programes de formació i inserció segons cost unitari i 8 participants al 2023 segons cost unitari, 20.000€. | AK67: 2022-03-31 | AL67: Publicació diari oficial convocatòria pública subvencions. Primer trimestre de 2022 | AQ67: No posada en marxa actuacions àmbit dona (part dels fons). Reintegrament a l’Estat la quantitat de 338.578,00€, corresponent als ingressos dels anys 2021 i 2022.
A68: Conselleria d'Empresa, Ocupació i Energia | B68: Ocupació | C68: Conferència Sectorial del Sistema de Qualificacions i Formació Professional per a l’Ocupació | D68: 2023-06-07 | E68: Aprovat/Acord de Conferència Sectorial definitiu | F68: Educació | G68: C20. | H68: C20.I01. | I68: C20.I01. Formació modular destinada al Reskilling i Upskilling d’ocupats i desocupats – Illes Balears. | J68: 9382598.65 | L68: =3328009.12+233857.14+48497.07 -> 3610363.33 | M68: 2940787.96 | N68: 2831447.36 | R68: SI | T68: MR068 | U68: E06 | W68: =+M68 -> 2940787.96 | X68: =+W68 -> 2940787.96 | Z68: 6464976.06 | AA68: =3610363.33+2940787.96+2831447.36 -> 9382598.65 | AB68: Ministeri d’Educació i Formació Professional | AC68: =87741699.74+87500000+111542000 -> 286783699.7 | AD68: 0.03271663856 | AE68: C) Número de mujeres desempleadas inscritas como demandantes de empleo a 31 de diciembre de 2020 en municipios de menos de 30.000 habitantes en un 30 %. | AF68: 16/11/2021: Autorització Consell de Govern. 01/12/2021: Acord de CS Nota premsa CS Ministeri. 28/12/2021: Ingrés Tresoreria anualitat 2021. 26/04/2022: Autorització Consell de Ministres. 30/05/2022: Acord CS. 30/06/2022: Publicació Acord CS 30/06/22. 09/08/2022: Ingrés Tresoreria anualitat 2022. 07/06/2023: Acord de CS. 26/06/2023: Resolució acord de CS amb distribució de fons (BOE 160 de 6.07.2023). 28/07/2023: Ingrés Tresoreria anualitat 2023. | AG68: Atenció prioritària sectors amb més persones en ERTE, de cura de les persones i estratègics. Desglossa 3 imports: sectors estratègics, cura de les persones i despoblació | AH68: S’ha de donar formació no reglada i el SOIB es planteja fer una aula virtual per poder arribar al nombre de persones requerides i executar-ho a través de Tragsa | AI68: 2024-12-31 | AJ68: Objectiu CID 298: Persones a formar assignació 2022 a les Illes Balears: 5.357. Persones a formar assignació 2023 a les Illes Balears: 5.157. Total 10.514 persones formades. Objectiu OA 298.1: compromís de 601 persones formades per al 2T del 2022. Objectiu OA 298.2: compromís de 6.008 persones formades per al 2T del 2023. Objectiu OA 298.3: compromís de 9.162 persones formades per al 2T del 2024. | AK68: 2024-03-31 | AL68: 31/03/2024: les CCAA remetran al Ministeri l’estat d’execució indicant les quanties totals de compromisos de crèdits, obligacions reconegudes i pagaments realitzats detallat per a l’aplicació pressupostària des de la que es realitza la transferència de crèdit. 30/06/2024: assoliment de OA 298.3 de 9.162 persones formades. 31/12/2024: 10.514 persones formades.
A69: Conselleria d'Empresa, Ocupació i Energia | B69: Ocupació | C69: Conferència Sectorial d’Ocupació i Assumptes Laborals | D69: 2023-04-28 | E69: Aprovat/Acord de Conferència Sectorial definitiu | F69: Ocupació | G69: C23. | H69: C23.I01. | I69: C23.I01.P02. Programa d’investigació INVESTIGO. Primeres experiències professionals en les Administracions Públiques i Programa investigació (PAES III) | J69: 4776148 | L69: 2350168 | M69: 1592049 | N69: 833931 | R69: SI | T69: MR038 | U69: E06 | V69: 2350168 | W69: 1592049 | X69: 1592049 | Y69: 833931 | AA69: =2350168+1592049+833931 -> 4776148 | AB69: Ministeri de Treball i Economia Social | AC69: =120000000+81290320+42580650 -> 243870970 | AD69: 0.01958473368 | AF69: 06/07/2021: Acord de CM. 21/07/2021: Aprovació per CS. 19/08/2021: Orden TES 897/2021 (BOE 202 de data 24.08.2021). 08/10/2021: Ingrés Tresoreria. 16/10/2021: Publicades bases reguladores Empleo Mujer. 19/11/2021: Publicades bases reguladores Programa Investigo (Empleo Joven). 23/12/2021: Convocatòria de subvencions (BOIB 175, 23/12/2021). 29/03/2022: Autorització CM. 06/04/2022: Acord CS. 17/05/2022: Orden TES/440/2022 (Publicació Ordre BOE 19/05/22). 07/07/2022: Ingrés Tresoreria. L’Acord fa fa referència a 2021, 2022 i 2023 són previsions. 11/04/2023: Autorització CM. No desglossa imports 15/09/2023: Ingrés tresoreria anualitat del 2023. | AG69: PAES Ocupació. Són 8 programes gestionats pel SOIB, excepte 2 que són DG Promoció Econòmica i DG Recerca. S’executarà dins 2022 (correu 04/08/2021 Mercedes Isern). 4 convocatòries publicades dins 2021 (2 SOIB i 2 DG Model Econòmic) S’ha generat un fons finalista per a 8 programes de formació, que s’han separat per inversió a la qual corresponen. | AH69: Convocatòria de subvencions. Actualment concedida. Inici de la seva execució. | AI69: 2025-12-31 | AJ69: Objectiu CID 342: Programa d’investigació: 119 participants 2021-2022 i 25 participant 2023 segons cost unitari; el cost de ref. és 33.108,92€ | AK69: 2022-03-31 | AL69: Publicació diari oficial convocatòria pública subvencions. Primer trimestre de 2022 | AP69: María del Carmen Moreno Abad ( SGPO3) cmoreno@soib.caib.es Elena Massanet Isern (SS 1) emassanet@soib.caib.es
A70: Conselleria de Turisme, Cultura i Esports | B70: Turisme | C70: Conferència Sectorial de Turisme | D70: 2023-12-29 | E70: Aprovat/Acord de Conferència Sectorial definitiu | F70: Turisme | G70: C14. | H70: C14.I04. | I70: C14.I04.P02.S06. Projectes d’eficiència energètica en allotjaments turístics (economia circular). Illes Balears. | J70: =SUM(K70:Q70) -> 21672100 | M70: 12721880 | N70: 8950220 | R70: SI | T70: MR053 | U70: E12 | Y70: 12263893 | Z70: 12263893 | AA70: 12721880 | AB70: Ministeri d’Indústria, Comerç i Turisme | AC70: =119600000+170000000 -> 289600000 | AD70: 0.07483459945 | AE70: Criteris de distribució: 1) Mitjana anual ponderada del nombre mensual establiments oberts per CCAA respecte del total nacional. 2) Mitjana ponderada del nombre d’habitacions obertes per CCAA respecte del total nacional. | AF70: 11/11/2021: (C14.I4.S2) Esborrany d’acord presentat a CS. 15/03/2022: Acord de CM. Modifica les previsions. 29/03/2022: Acord de CS. 31/03/2022: Resolució Acord de CS de 29/03/2022. Publicat al BOE 83 de 7.04.2022. 30/08/2022: Resolució de distribució efectiva de fons. Publicació al BOE 215 de data 7.09.2022. 18/11/2022: Ingrés Tresoreria. 05/12/2023: Distribució de fons per l’any 2023 per Acord de CM. 29/12/2023: Acord de CS (BOE 20, de 23.01.2023). | AI70: 2025-06-30 | AJ70: Objectiu CID 227: A les Illes Balears per l’any 2022, ha de rehabilitar 197 establiments turístics. Als 6 mesos des de la data de publicació de la convocatòria Autonòmica, registrat les sol·licituds pel núm. d’edificis a rehabilitar energèticament o el pressupost inicialment assignat. Als 12 mesos des de la data de publicació de la convocatòria Autonòmica, dictar resolucions de concessió pel nombre d’edificis a rehabilitar energèticament o el pressupost inicialment assignat. A les Illes Balears per l’any 2023 ha de rehabilitar 58 establiments turístics. El termini d’execució i justificació de les actuacions serà fins al 30/06/2025. | AP70: Tomeu Alcover
A71: Conselleria de Turisme, Cultura i Esports | B71: Turisme | C71: Conferència Sectorial de Turisme | D71: 2022-12-06 | E71: Aprovat/Acord de Conferència Sectorial definitiu | F71: Turisme | G71: C14. | H71: C14.I03. | I71: C14.I03.P01.S01. Actuacions de modernització i reconversió d'infraestructura turística, diversificació, millora de la connectivitat i la protecció mediambiental en territoris extrapeninsulars (Illes Balears). Fons per a la resiliència turística per als territoris extrapeninsulars. | J71: 100000000 | L71: 20000000 | M71: 50000000 | N71: 30000000 | R71: SI | T71: MR071 | U71: E12 | W71: 80000000 | X71: 20000000 | Y71: 65440000 | Z71: 65440000 | AA71: =20000000+80000000 -> 100000000 | AB71: Ministeri d’Indústria, Comerç i Turisme | AC71: =50000000+50000000+5000000+5000000+46000000+64000000 -> 220000000 | AD71: 0.4545454545 | AE71: 2021: Balears i Canàries igual i 3 M€ Ceuta i Melilla. 2022: Balears i Canàries igual i 5 M€ Ceuta i Melilla. 2023: Balears i Canàries igual i 2 M€ Ceuta i Melilla. | AF71: 22/12/2021: Aprovació de CS. 05/12/2022: Publicat RD concessió directa al BOE 06/12/2022. 15/06/2022: RD 449/2022 concessió subvenció directa – BOE. Aprovació de CS. 30/08/2022: Signatura conveni. 24/10/2022: Publicació conveni BOE 255. 18/11/2022: Ingrés Tresoreria. 06/12/2022: Acord de CS. 03/04/2023: Publicació conveni BOE 79. 18/04/2023: ingrés Tresoreria. | AG71: Vigència conveni fins 31/03/2025 amb possibilitat de pròrroga per un any. | AH71: Conveni amb l’Estat i actuacions amb instruments distints. | AI71: 2024-12-31 | AJ71: Termini execució: 1/01/2022 a 31/12/2024. Objectiu (CID 224): per al què almenys 400 agents econòmics i socials hauran de haver-se beneficiat de les inversions en les regions extrapeninsulars abans de juny de 2025. En IB: al menys 150 beneficiaris hagin completat projectes per millorar la competitivitat i capacitat d’adaptació als canvis dels mercats internacionals. En projectes d’execució plurianual, s’informarà anualment sobre el grau d’execució dels mateixos. | AL71: El termini per rendir comptes de cada projecte serà d'un màxim de tres mesos comptadors des de l'endemà de la conclusió del termini d'execució. Als projectes plurianuals, a més es rendiran comptes anualment i es realitzaran comprovacions que tindran caràcter provisional, a compte de la liquidació final del projecte, mentre no es justifiqui totalment l’activitat. | AN71: • Número de projectes finalitzats. | AP71: Tomeu Alcover
A72: Conselleria de Turisme, Cultura i Esports | B72: Turisme | C72: Conferència Sectorial de Turisme | D72: 2023-05-09 | E72: Aprovat/Acord de Conferència Sectorial definitiu | F72: Turisme | G72: C14. | H72: C14.I01. | I72: C14.I01.P02.S08. Estratègia de plans de sostenibilitat turística en destí. (Pla Territorial 2021) Illes Balears. C14.I01.P06.S03. Estratègia de plans de sostenibilitat turística en destí. (Pla territorial 2022). Illes Balears. C14.I01.P07.S01. Estratègia de plans de sostenibilitat turística en destí. (Pla territorial 2023). Illes Balears. | J72: 137489230 | L72: 47750000 | M72: 55229230 | N72: 34510000 | R72: SI | T72: MR070 | U72: E12 | X72: 55229230 | Y72: 6000000 | Z72: 42393379.15 | AA72: =47750000+55229230+34510000 -> 137489230 | AB72: Ministeri d’Indústria, Comerç i Turisme | AC72: =615000000+719770000+478000000 -> 1812770000 | AD72: 0.07584482863 | AE72: 2021: 1) Variables econòmiques (% de PIB turístic respecte de PIB autonòmic i caiguda en l’afiliació de treballadors del sector turístic entre desembre 2019 i desembre 2020); 2) Territorials (% superfície de la CCAA respecte superfície nacional i densitat de població); 3 ) Turístiques (número de turistes internacionals rebuts en 2019 i despeses dels turistes, xifres de l’INE). 2022: 11 PST a les Illes Balears ( 7 destí turistic sol i platja mixte/residencial, i 4 destí sol i platja molt internacionalitzar) i 2 ACD. 2023: 9 PST a les Illes Balears (NdP): (5 Destí turístic sol i platja mixte/residencial: Aj. Felanitx: 2.500.000€; Aj. Santa Eulària des Riu: 6.500.000€; Aj. Calvià: 2.000.000€; Aj. Inca: 1.299.998€; Aj. Muro: 3.500.000€. 3 Destí sol i platja molt internacionalitzat: Aj. Santanyí: 1.998.167,18€; CI Mallorca: 8.499.121,58€; CI Menorca: 4.200.000€. 1 Destí rural amb identitat turística: Mancomunitat des Raiguer: 2.000.000€. 1 ACD (lles Balears, circularitat com eix de competitivitat sostenible): CI Formentera i Ports IB: 2.012.713,24€. | AF72: 30/07/2021 – 20/09/2021: obert el termini per a que les entitats locals presentin les seves candidatures a la primera conv. Extraord. de Plans de Sostenibilitat, amb una financiació per destinació que oscila entre el milió i els 10 milions euros, segons la categoria de la destinació. 23/11/2021: Autorització CM. 21/12/2021: Acord de CS. 23/12/2021 i 4/01/2022: Resolució SE Turisme (BOE de 13/01/2022). 30/03/2022: Ingrés Tresoreria anualitat 2021. 29/11/2022: Autorització CM. 14/12/2022: CS amb import lleguerament superior a la previsió. Inclou el Plan Nacional de Destinacions Enogastronòmiques de 2022 (3,3 milions aprox). Ndp. 19/12/2022: Resolució acord de CS (BOE 310 de 27/12/2022). 04/01/2023: Resolució de modificació CS de 14.12.2022. (BOE 3 de 4.01.2022). 27/01/2023: Acord CS. Febrer-març 2023: Convocatòria projectes. 29/03/2023: Resolució de distribució de crèdits a les CCAA (BOE 88 de 13/04/2022). Maig 2023: Previsió CS aprovació projectes. 03/05/2023: Autorització CM. 09/05/2023: Acord de CS. 09/05/2023: Ingrés Tresoreria anualitat 2022. 22/05/2023: Resolució de CS publicada al BOE 129 de 31.05.2023. 18/08/2023: Ingrés Tresoreria anualitat 2023. 29/12/2023: Modificació de l’Acord de CS de Turisme de 21/12/2021 per la Res. d’aAcord de CS de 29/12/2023. BOE 26 de 30/01/2024. 29/12/2023: Modificació de l’Acord de CS de Turisme de 14/12/2022 per la Res. d’Acord de CS de 29/12/2023. BOE 26 de 30/01/2024. 29/12/2023: Modificació de l’Acord de CS de Turisme de 9/05/2023 per la Res. d’Acord de CS de 29/12/2023. BOE 26 de 30/01/2024. | AG72: Tenim document de la Conselleria sobre el projecte que es preveu desenvolupar i el document estatal de l’Estratègia. Import total Estatal previst 1.858 M €. Import previst: 133 m €. La meitat es preveu per als ajuntaments però els fons arribaran a la CAIB. Pendent de saber si es farà conveni o transferència. NdP CAIB Nota de premsa estatal CS. No doc. Conf.Sectorial | AH72: La forma d’execució ha estat la subvenció, la licitació i un projecte temporal. Per a la fita CID 220 del 4T de 2024, podem dir que s’ha executat un import 39.399.544 € dels 47.399.544 € adjudicats per l’any 2021 (fita del 75% executat). Per l’any 2022, podem dir que l’import executat és de 38.305.880,84€ dels 55.229.230€ adjudicats. El percentatge d’execució per l’any 2022 és del 50% i pel 2023 del 25%. Veure ordre global de 34S a 44S per l’any 2021. | AI72: 2026-06-30 | AJ72: Objectiu CID 217, 4rt trimestre 2021: Publicació BOE adjudicació a les entitats locals ajuda per aplicació «Plans Territorials de Sostenibilitat Turística en Destinacions», import mínim de 561.000.000 euros, el 35 % se destinarà a mesures de la transició verda. Els criteris de selecció hauran de garantir que, pressupost total definitiu per finançar la mesura, 511.000.000 de euros, com a mínim, pel compliment d’objectius relacionats amb el canvi climàtic amb coeficient climàtic del 100 %, i 140.000.000 de euros, mínim, als relacionats amb el coeficient climàtic del 40 %. Objectiu CID 218 4rt trimestre 2022: BOE adjudicació a les entitats locals d’ajuda per l’aplicació dels «Plans Territorials de Sostenibilitat Turística en Destinacions», per un mínim de 1.173.000.000 de euros (valor de referència: 31/12/21), dels quals, el 35% es destinarà a mesures de transició verda, sostenibilitat i l’eficiència energètica/electromobilitat en destinacions. Objectiu CID 219 4rt trimestre 2023: BOE adjudicació entitats locals d’ajudes per a l’aplicació «Plans Territorials de Sostenibilitat Turística en Destinacions» mínim de 1.788.600.000 euros , dels quals, el 35 % es destinarà a finançar mesures de transició verda, sostenibilitat i eficiència energètica/electromobilitat en destinacions. Fita 220 del CID: 4rt trimestre 2024: Las Comissions de Seguiment s’asseguraran de què totes les destinacions beneficiaries aconsegueixen com a mínim els percentatges d’execució de cada Plan de Sostenibilitat Turística. Al 2021 execució del 75 % en el cas de les destinacions adjudicades. Al 2022 execució del 50 % en el cas de destinacions adjudicades. Al 2023 execuci´ó del 25% en el cas de destinacions adjudicades. Amb la modificació de l’acord de CS de 21/12/2021 per l’Acord de 29/12/2023, es modifiquen els terminis d’execució, que seran del 50% en el cas de destinacions del 2021; 30% en el cas de destinacions adjudicades en 2022 i 15% en el cas de destinacions adjudicades al 2023. Fita 221 del CID: 2n trimestre 2026: Finalització de tots els projectes inclosos en els «Plans Territorials de Sostenibilitat Turística en Destinacions» i adjudicats en consonància amb els objectius 211, 212 i 213, el 35 % dels fons es destinaran a finançar mesures amb transició verda, sostenibilitat i l’eficiència energètica/electromobilitat en destinacions. Terminis d’execució: Any 2021, fins al 4rt trimestre de 2024. Any 2022, fins al 31 de desembre de 2024 per assolir el percentatge d’execució de la fita 220 del CID. Any 2023, fins al 31 de desembre de 2024 per assolir el percentatge d’execució de la fita de l’objectiu 220 del CID, en el cas de las destinacions adjudicades en aquest acord. S’exigeix justificar la finalització dels projectes abans del final del 2n semestre de 2026. | AK72: 2023-12-31 | AL72: 4T de 2023 publicació al BOE les adjudicacions de les ajudes a les EELL. 4T trimestre de 2024 s’ha d’haver executat el 75% de les destinacions adjudicades del 2021, un 50 % del 2022 i un 25% del 2023. | AM72: 2023-06-30
A73: Conselleria d'Empresa, Ocupació i Energia | B73: Ocupació | C73: Conferència Sectorial d’Ocupació i Assumptes Laborals | D73: 2023-04-28 | E73: Aprovat/Acord de Conferència Sectorial definitiu | F73: Ocupació | G73: C19. | H73: C19.I03. | I73: C19.I03.P08.PROVISIONAL.S04. Millora de les capacitats digitals per a persones desocupades per impulsar l’emprenedoria i el desenvolupament rural i reduir l’escletxa de gènere. PAES – Formació. | J73: 4026497 | L73: 2491395 | M73: 780134 | N73: 754968 | R73: SI | S73: Encàrrec de gestió a Tragsatec. Es preveu haver de tornar una part perquè no demanda suficient de cursos. | T73: MR037 | U73: E06 | W73: 2491395 | X73: 780134 | Y73: 754968 | AA73: =780134+2491395+754968 -> 4026497 | AB73: Ministeri de Treball i Economia Social | AC73: =31000000+99000000+29301107.88 -> 159301107.9 | AD73: 0.02527601379 | AE73: Criteris de distribució: 1) 35% Nº de persones inscrites com demandants de feina a 31 de desembre de 2022. 2) 35% Nº de persones desocupades a municipis de menys de 30.000 hab. inscrites com a demandants de feina, a 31 de desembre de 2022. 3) 30% Nº de dones desocupades inscrites com a demandants de feina a 31 de desembre de 2022 a municipis de menys de 30.000 hab. | AF73: 06/07/2021: PAES – Formació. Acord de CM. 21/07/2021: Aprovació per CS. 19/08/2021: Distribució territorial per l’exercici 2021. Ordre TES/897/2021, de 19 d’agost. (BOE 202 de data 24/08/2021). 08/10/2021: Ingrés Tresoreria. 29/03/2022: Autorització CM. 06/04/2022: Acord CS. 17/05/2022: Distribució territorial per l’exercici 2020. Ordre TES/440/2022, de 17 de maig (BOE 119, de data 19.05.2022). 07/07/2022: Ingrés Tresoreria. L’acord fa referència a 2021. 2022 i 2023 són previsions. 11/04/2023: Autorització CM. No desglossa imports. 28/04/2023: Acord de CS. 02/10/2023: Aprobació de l’Addenda espanyola per la Comissió Europea. Modficació del termini d’execució per a l’objectiu CID 292: T2 del 2026. 15/09/2023: Ingrés Tresoreria anualitat 2023. | AG73: PAES – Formació: S’ha generat un fons finalista únic per als dos programes de Formació. S’executarà dins 2022 (correu 04/08/2021 Mercedes Isern). | AH73: S’ha de donar formació no reglada i el SOIB es planteja fer una aula virtual per poder arribar al nombre de persones requerides i executar-ho a través de Tragsa (Encàrregs a mitjans propis, en fase d’elaboració de l’instrument jurídic). | AI73: 2026-06-30 | AJ73: Objectiu CID 292: Almenys 300.000 persones van participar en cursos de formació sobre competències digitals. Cada formació tindrà una durada mínima de 150 hores. (L’objectiu marcat abans de l’aprovació de l’Addenda era de 450.000 persones com a mínim). 2021: publicació DO instrument jurídic de la col·laboració. Participants 2021-2022: 6.291. 6.291 participants 2021-2022 segons cost unitari, i 1452 participants segons cost unitari, 520 €. Per a l’any 2022, el 10% del pressupost es destina a la contribució digital. Participants 2023: 1.452. Abans del 31/03/2024-2025 i 2026 elaborar informe de justificació dels fons. Ampliació del termini d’execució fins al 30/06/2026. | AK73: 2024-03-31 | AL73: Elaboració d’informe justificatiu dels fons. | AN73: Com indicadors de seguiment, fins el quart trimestre de 2022, 20% del total de persones previstes com objectiu CID han d’haver participat a les formacions de competències digitals. Al quart trimestre de 2023, al menys un altre 20%. | AP73: Catalina Mas Rigo (SGPO4) cmas@soib.caib.es
A74: Conselleria d'Empresa, Ocupació i Energia | B74: Ocupació | C74: Conferència Sectorial d’Ocupació i Assumptes Laborals | D74: 2023-04-28 | E74: Aprovat/Acord de Conferència Sectorial definitiu | F74: Ocupació | G74: C23. | H74: C23.I01. | I74: C23.I01.P03. Feina Jove. Primeres experiències professionals en les Administracions Públiques i Programa investigació (PAES II). | J74: 5216304 | L74: 2364872 | M74: 1964605 | N74: 886827 | R74: SI | T74: MR038 | U74: E06 | V74: 652000 | W74: =L74-V74 -> 1712872 | X74: 1964605 | Y74: 886827 | AA74: =2364872+1964605+886827 -> 5216304 | AB74: Ministeri de Treball i Economia Social | AC74: =78090000+94000000+35250000 -> 207340000 | AD74: 0.02515821356 | AF74: 06/07/2021: Acord de CM. 21/07/2021: Aprovació per CS. 19/08/2021: Orden TES 897/2021 (BOE 202 de data 24.08.2021). 08/10/2021: Ingrés Tresoreria. 16/10/2021: Publicades bases reguladores Empleo Mujer. 19/11/2021: Publicades bases reguladores Programa Investigo (Empleo Joven). 12/03/2022: Convocatòria de subvencions (BOIB 36 de 12/03/2022). 29/03/2022: Autorització CM. 06/04/2022: Acord CS. 17/05/2022: Orden TES/440/2022 (Publicació Ordre BOE 19/05/22). 07/07/2022: Ingrés Tresoreria. L’Acord fa fa referència a 2021, 2022 i 2023 són previsions. 11/04/2023: Autorització CM. No desglossa imports 21/06/2023: Orden TES/678/2023. (BOE 150 de 24/06/2023). 29/07/2023: Correcció errades Orden TES/678/2023 de distribució. (BOE 180). 15/09/2023: Ingrés tresoreria anualitat del 2023. | AG74: PAES Ocupació. Són 8 programes gestionats pel SOIB, excepte 2 que són DG Promoció Econòmica i DG Recerca. S’executarà dins 2022 (correu 04/08/2021 Mercedes Isern). 4 convocatòries publicades dins 2021 (2 SOIB i 2 DG Model Econòmic) S’ha generat un fons finalista per a 8 programes de formació, que s’han separat per inversió a la qual corresponen. | AH74: Publicada BOIB 30/12/21 CONVOCAT 1 per 3.939.813€ Convocatòria subv. 21-23 per promocionar l’ocupació autònoma per abordar el repte demogràfic i facilitar la transformació productiva cap a una economia verda i digitalPublicada BOIB 30/12/21 CONVOCAT 2 per 1.900.000€ Convocat d'ajudes per una 2a oportunitat dels treballadors autònoms o per compte propi per facilitar la transformació productiva cap a una economia verda i digital. Subvenció concedida. Inici execució. Març de 2023, 2n període de presentació de sol·licituds per poder adjudicar la resta de crèdit. | AI74: 2025-12-31 | AJ74: Objectiu CID 342: Primeres experiències professionals en les Adm. Pbliques: Objectiu : 127 participants entre 2021 i 2022; 28 participants el 2023. Cost unitari 22.300,94€ grups de cotització 5-9 i 33.003,92€ grups de cotització 1-4. | AK74: 2022-03-31 | AL74: Publicació diari oficial convocatòria pública subvencions. Primer trimestre de 2022. | AP74: Catalina Mas Rigo (SGPO4) cmas@soib.caib.es
A75: Conselleria d'Empresa, Ocupació i Energia | B75: Ocupació | C75: Conferència Sectorial d’Ocupació i Assumptes Laborals | D75: 2023-04-28 | E75: Aprovat/Acord de Conferència Sectorial definitiu | F75: Ocupació | G75: C23. | H75: C23.I05. | I75: C23.I05.P01 i P03.S05. PAES X. Creació i activitats de la xarxa de centres d’orientació i emprenedoria. Acompanyament i innovació per l’ocupació. | J75: 4500000 | L75: 1500000 | M75: =600000+590000 -> 1190000 | N75: 1810000 | R75: SI | T75: MR038 | U75: E06 | W75: 1500000 | X75: 1190000 | Y75: 1810000 | AA75: =1500000+1190000+1810000 -> 4500000 | AB75: Ministeri de Treball i Economia Social | AC75: =15300000+10200000+10200000+10030000+18700000+12070000 -> 76500000 | AD75: 0.05882352941 | AF75: 06/07/2021: Acord de CM. 21/07/2021: Aprovació per CS. 19/08/2021: Orden TES 897/2021 (BOE 202 de data 24.08.2021). 08/10/2021: Ingrés Tresoreria. 16/10/2021: Publicades bases reguladores Empleo Mujer. 19/11/2021: Publicades bases reguladores Programa Investigo (Empleo Joven). 29/03/2022: Autorització CM. 06/04/2022: Acord CS. 17/05/2022: Orden TES/440/2022 (Publicació Ordre BOE 19/05/22). 07/07/2022: Ingrés Tresoreria. L’Acord fa fa referència a 2021, 2022 i 2023 són previsions. 11/04/2023: Autorització CM. No desglossa imports 21/06/2023: Orden TES/678/2023. (BOE 150 de 24/06/2023). 29/07/2023: Correcció errades Orden TES/678/2023 de distribució. (BOE 180). 02/01/2023: Ingrés Tresoreria. 02/10/2023: Aprobació de l’Addenda espanyola per la Comissió Europea. Modficació del termini d’execució per a l’objectiu CID 347: T4 del 2024 15/09/2023: Ingrés tresoreria anualitat del 2023. | AG75: S’ha generat un fons finalista per a 8 programes de formació, que s’han separat per inversió a la qual corresponen. | AH75: COMPRA (adjudicació directa) LOCAL PER A SEU DEL CENTRE D’ ORIENTACIÓ: 2021. Previsió 652.000 €. Cost final: 480.000 €: https://intranet.caib.es/eboibfront/ca/2022/11514/657178/resolucio-del-president-del-soib-per-la-qual-s-apr Encàrrec a mitjans propis (P01), en fase d’elaboració d’instrument jurídic. Contracte (P03), en fase d’execució (BOIB 12 de 22/01/2022). | AI75: 2024-12-31 | AJ75: PAES X; Objectiu CID 347: 1 pla de feina 2022 i 1 pla de feina al 2023, cost unitari ref. de les activitats dels centres d’Orientació, empren. i inn. per a l’ocupació és de 766.666€ any, PAES X; Objectiu CID 347: 1 centre constituït entre 2021-2023, el cost unitari de referència per crear un COE és de 2.200.000 €. Ampliació del termini d’execució fins al 31/12/2024. | AP75: Responsable Programa P01: Victòria Forteza Ferrer - Cap de del servei d'Innovació de Polítiques Actives d'Ocupació / Tècnica d'Ocupació i Mercat deTreball - mvforteza@soib.caib.es Responsable Programa P03: César Martínez González – (SAG) cmartinezgonzalez@soib.caib.es
A76: Conselleria d'Empresa, Ocupació i Energia | B76: Ocupació | C76: Conferència Sectorial d’Ocupació i Assumptes Laborals | D76: 2023-04-28 | E76: Aprovat/Acord de Conferència Sectorial definitiu | F76: Ocupació | G76: C23. | H76: C23.I04. | I76: C23.I04.P01.S10. Nous projectes territorials per al reequilibri i l’equitat, col·lectius especialment vulnerables (PAES XVI). | J76: 5450675 | L76: 2319436 | M76: 2319436 | N76: 811803 | R76: SI | S76: 1446872 | T76: MR038 | U76: E06 | V76: 2319436 | W76: =2319436+2319436 -> 4638872 | X76: 2319436 | Y76: 811803 | AA76: =2319436+2319436+811803 -> 5450675 | AB76: Ministeri de Treball i Economia Social | AC76: =95000000+95000000+33250000 -> 223250000 | AD76: 0.02441511758 | AF76: 06/07/2021: Acord de CM. 21/07/2021: Aprovació per CS. 19/08/2021: Orden TES 897/2021 (BOE 202 de data 24.08.2021). 08/10/2021: Ingrés Tresoreria. 16/10/2021: Publicades bases reguladores Empleo Mujer. 19/11/2021: Publicades bases reguladores Programa Investigo (Empleo Joven). 23/12/2021: Convocatòria de subvencions (BOIB 175). 29/03/2022: Autorització CM. 06/04/2022: Acord CS. 17/05/2022: Orden TES/440/2022 (Publicació Ordre BOE 19/05/22). 07/07/2022: Ingrés Tresoreria. L’Acord fa fa referència a 2021, 2022 i 2023 són previsions. 11/04/2023: Autorització CM. No desglossa imports 23/10/2023: Reintegrament de part de l’anualitat del 2022 ja que no s’ha adjudicat a la convocatòria. Reintegrament per import de 1.446.872,00€. 15/09/2023: Ingrés tresoreria anualitat del 2023. | AG76: S’ha generat un fons finalista per a 8 programes de formació, que s’han separat per inversió a la qual corresponen. | AI76: 2023-12-31 | AJ76: PAES XVI; Objectiu CID 346: 850 participants 2021-2022 segons cost unitari, 6.000€ i incrementant un 10%; i 149 participants 2023 segons cost unitari. Cost unitari 5.000€ incrementant un 10%, pel 2022 el 25% del pressupost es destina a la contribució ecològica i el 25% del pressupost es destina a la contribució digital. | AL76: Subvenció concedida i en execució. | AP76: Catalina Mas Rigo (SGPO4) cmas@soib.caib.es | AQ76: S’ha retornat al SEPE la quantitat de 1.446.872,00 € corresponent a l’anualitat del 2022.
A77: Conselleria d'Empresa, Ocupació i Energia | B77: Ocupació | C77: Conferència Sectorial d’Ocupació i Assumptes Laborals | D77: 2023-04-28 | E77: Aprovat/Acord de Conferència Sectorial definitiu | F77: Ocupació | G77: C23. | H77: C23.I04. | I77: C23.I04.P02.S17. Nous projectes territorials per al reequilibri i l’equitat emprenedoria i microempreses (PAES XVII). | J77: 5839813 | L77: 4014871 | M77: 912471 | N77: 912471 | R77: SI | T77: MR038 | U77: E06 | V77: 4014871 | W77: =4014871+912471 -> 4927342 | X77: 912471 | Y77: 912471 | AA77: =4014871+912471+912471 -> 5839813 | AB77: Ministeri de Treball i Economia Social | AC77: =205000000+46590910+46590910 -> 298181820 | AD77: 0.0195847386 | AF77: 06/07/2021: Acord de CM. 21/07/2021: Aprovació per CS. 19/08/2021: Orden TES 897/2021 (BOE 202 de data 24.08.2021). 08/10/2021: Ingrés Tresoreria. 16/10/2021: Publicades bases reguladores Empleo Mujer. 19/11/2021: Publicades bases reguladores Programa Investigo (Empleo Joven). 29/03/2022: Autorització CM. 06/04/2022: Acord CS. 17/05/2022: Orden TES/440/2022 (Publicació Ordre BOE 19/05/22). 07/07/2022: Ingrés Tresoreria. L’Acord fa fa referència a 2021, 2022 i 2023 són previsions. 11/04/2023: Autorització CM. No desglossa imports 15/09/2023: Ingrés tresoreria anualitat del 2023. | AG77: S’ha generat un fons finalista per a 8 programes de formació, que s’han separat per inversió a la qual corresponen | AI77: 2023-12-31 | AJ77: PAES XVII; Objectiu CID 346: 1.084 iniciatives 2021-2022 i 201 iniciatives 2023, cost unitari 5.000€ incrementant un 10%, pel 2022 el 25% del pressupost es destina a la contribució ecològica i el 25% del pressupost es destina a la contribució digital. | AP77: Rafel Bestard Crespí (S Ec. Circular)rbestard@dgpe.caib.es
A78: Conselleria d'Empresa, Ocupació i Energia | B78: Ocupació | C78: Conferència Sectorial d’Ocupació i Assumptes Laborals | D78: 2023-04-28 | E78: Aprovat/Acord de Conferència Sectorial definitiu | F78: Ocupació | G78: C23. | H78: C23. I02 | I78: C23.I02.P01.PROVISIONAL.S04. Programes d’ocupació per a les dones: PAES (VI) Suport a les dones en els àmbits rural i urbà. | J78: 608142 | L78: 364885 | M78: 202714 | N78: 40543 | R78: SI | S78: 567599 | T78: MR038 | U78: E06 | V78: 364855 | W78: =M78 -> 202714 | X78: =W78 -> 202714 | Y78: 40543 | AA78: =364885+202714+40543 -> 608142 | AB78: Ministeri de Treball i Economia Social | AC78: =40000000+22222220+4444440 -> 66666660 | AD78: 0.009122130912 | AF78: 06/07/2021: Acord de CM. 21/07/2021: Aprovació per CS. 19/08/2021: Orden TES 897/2021 (BOE 202 de data 24.08.2021). 08/10/2021: Ingrés Tresoreria. 16/10/2021: Publicades bases reguladores Empleo Mujer. 19/11/2021: Publicades bases reguladores Programa Investigo (Empleo Joven). 29/03/2022: Autorització CM. 06/04/2022: Acord CS. 17/05/2022: Orden TES/440/2022 (Publicació Ordre BOE 19/05/22). 07/07/2022: Ingrés Tresoreria. L’Acord fa referència a 2021, 2022 i 2023 són previsions. 11/04/2023: Autorització CM. No desglossa imports 23/10/2023: Reintegrament de l’anualitat del 2021 i 2022. Import a reintegrar 567.599,00 €. 15/09/2023: Ingrés tresoreria anualitat del 2023. | AG78: S’ha generat un fons finalista per a 8 programes de formació, que s’han separat per inversió a la qual corresponen | AI78: 2025-12-31 | AJ78: PAES VI; Objectiu CID 343: Suport a les dones en els àmbits rural i urbà: Objectius: 221 participants entre 2021 i 2022; 16 participants el 2023 ; cost unitari de referència 2.565 €, pel 2022 el 35% del pressupost es destina a la contribució ecològica i el 35% del pressupost a contribució digital. Fites: Publicació diari oficial instrument que articuli la col·laboració 31/03/2022. | AK78: 2023-03-31 | AL78: Publicació diari oficial instrument que articuli la col·laboració 31/03/2022. | AQ78: No posada en marxa actuacions àmbit dona (part dels fons). Reintegrament a l’Estat la quantitat de 567.599,00€ corresponents a les anualitats del 2021 i 2022.
A79: Conselleria d'Empresa, Ocupació i Energia | B79: Ocupació | C79: Conferència Sectorial d’Ocupació i Assumptes Laborals | D79: 2023-04-28 | E79: Aprovat/Acord de Conferència Sectorial definitiu | F79: Ocupació | G79: C23. | H79: C23. I02 | I79: C23.I02.P03.S05. Programes d’ocupació per a les dones: PAES (VIII): Accions per afavorir la transversalitat de gènere. | J79: 176471 | L79: 58824 | M79: 58823 | N79: 58824 | R79: SI | T79: MR038 | U79: E06 | V79: 58824 | W79: 58823 | X79: 58823 | Y79: 58824 | AA79: =58824+58823+58824 -> 176471 | AB79: Ministeri de Treball i Economia Social | AC79: =1000000+1000000+1000000 -> 3000000 | AD79: 0.05882366667 | AF79: 06/07/2021: Acord de CM. 21/07/2021: Aprovació per CS. 19/08/2021: Orden TES 897/2021 (BOE 202 de data 24.08.2021). 08/10/2021: Ingrés Tresoreria. 16/10/2021: Publicades bases reguladores Empleo Mujer. 19/11/2021: Publicades bases reguladores Programa Investigo (Empleo Joven). 29/03/2022: Autorització CM. 06/04/2022: Acord CS. 17/05/2022: Orden TES/440/2022 (Publicació Ordre BOE 19/05/22). 07/07/2022: Ingrés Tresoreria. L’Acord fa referència a 2021, 2022 i 2023 són previsions. 11/04/2023: Autorització CM. No desglossa imports 15/09/2023: Ingrés tresoreria anualitat del 2023. | AG79: S’ha generat un fons finalista per a 8 programes de formació, que s’han separat per inversió a la qual corresponen | AH79: Diversos contractes | AI79: 2025-12-31 | AJ79: PAES VIII; Objectiu CID 343: Accions per afavorir la transversalitat: 2 actuacions plans d’igualtat 2021-2023 segons cost unitari, 176.469€ i 1 actuació plans d’igualtat 2023 segons cost unitari. | AK79: 2022-03-31 | AL79: Publicació diari oficial instrument que articule la col·laboració. Primer trimestre de 2022 | AP79: Antònia Puiggròs Rebassa - Cap del Servei d'Avaluació, Estratègia de Polítiques Actives i Desenvolupament Local – apuiggros@soib.caib.es
A80: Conselleria d'Empresa, Ocupació i Energia | B80: Ocupació | C80: Conferència Sectorial d’Ocupació i Assumptes Laborals | D80: 2023-04-28 | E80: Aprovat/Acord de Conferència Sectorial definitiu | F80: Ocupació | G80: C23. | H80: C23.I05. | I80: C23.I05.P02.S11. PAES XXI. Governança i impuls al Pla Nacional de PAE. Formació permanent del sistema nacional de feina. | J80: 197048 | L80: 69920 | M80: =63564 -> 63564 | N80: 63564 | R80: SI | T80: MR039 | U80: E06 | W80: =63564+69920 -> 133484 | X80: =63564+69920 -> 133484 | Y80: 63564 | AA80: =69920+63564+63564 -> 197048 | AB80: Ministeri de Treball i Economia Social | AC80: =2750000+2500000+2500000 -> 7750000 | AD80: 0.02542554839 | AF80: 06/07/2021: Acord de CM. 21/07/2021: Aprovació de CS. 17/05/2021: Orden TES/897/2021 ( BOE 202 de 24.08.2021). 08/10/2021: Ingrés Tresoreria. 29/03/2022: Autorització CM. 06/04/2022: Acord CS. 17/05/2022: Orden TES/440/2022 ( Publicació Ordre BOE 19/05/22). 07/07/2022: Ingrés Tresoreria. Acord fa referència a 2021, 2022 i 2023 són previsions. 11/04/2023: Autorització CM. No desglossa imports. 15/09/2023: Ingrés Tresoreria anualitat 2023. | AG80: S’ha generat un fons finalista únic per als dos programes de governança (PAES XV i PAES XXI). | AH80: Execució EBAP | AI80: 2023-12-31 | AJ80: Objectiu CID 348 (PAES XXI): 362 participants 2021-22 segons cost unitari, i 172 participants 2023 segons cost unitari; 12,30 € i una durada de la formació de 30 hores. | AP80: Antònia Puiggròs Rebassa - Cap del Servei d'Avaluació, Estratègia de Polítiques Actives i Desenvolupament Local – apuiggros@soib.caib.es
A81: Conselleria d'Empresa, Ocupació i Energia | B81: Ocupació | C81: Conferència Sectorial d’Ocupació i Assumptes Laborals | D81: 2023-04-28 | E81: Aprovat/Acord de Conferència Sectorial definitiu | F81: Ocupació | G81: C23. | H81: C23.I03. | I81: C23.I03.P05. Adquisició de noves competències per a la transformació digital i productiva. Detecció de necessitats formatives i formació permanent del sistema nacional d’ocupació (PAES XV). | J81: 38139 | L81: 12713 | M81: 12713 | N81: 12713 | R81: SI | T81: MR039 | U81: E06 | W81: =L81 -> 12713 | X81: =W81 -> 12713 | Y81: 12713 | AA81: =12713+12713+12713 -> 38139 | AB81: Ministeri de Treball i Economia Social | AC81: 500000 | AD81: 0.076278 | AF81: 06/07/2021: Acord de CM. 21/07/2021: Aprovació de CS. 17/05/2021: Orden TES/897/2021 ( BOE 202 de 24.08.2021). 08/10/2021: Ingrés Tresoreria. 29/03/2022: Autorització CM. 06/04/2022: Acord CS. 17/05/2022: Orden TES/440/2022 ( Publicació Ordre BOE 19/05/22). 07/07/2022: Ingrés Tresoreria. Acord fa referència a 2021, 2022 i 2023 són previsions. 11/04/2023: Autorització CM. No desglossa imports. 15/09/2023: Ingrés Tresoreria anualitat 2023. | AG81: S’ha generat un fons finalista únic per als dos programes de governança (PAES XV i PAES XXI). | AH81: Contracte menor. | AI81: 2024-03-31 | AJ81: Objectiu CID 344 (PAES XV): 8 actuacions sobre necessitats formatives 2021-2022 segons el cost unitari, 3.203 €. I 4 actuacions sobre necessitats formatives 2023 segons el cost unitari, 3.203 €. 2021: publicació DO instrument jurídic de la col·laboració + participació elaboració Pla Formació. Participants 2021-2022: 362. Participants 2023: 172 (programa 1). Programa 2: Actuacions sobre necessitats formatives 21-22: 8; 2023:4 | AL81: Publicació en diari oficial instrument jurídic que articuli la col·laboració. Primer trimestre de 2022 | AP81: Maria del Mar Ribas Mas – (Observatòri treball)- mmribas@dgeconomia.caib.es
A82: Conselleria de Famílies i Afers Socials | B82: Igualtat | C82: Conferència Sectorial d’Igualtat | D82: 2023-03-03 | E82: Aprovat/Acord de Conferència Sectorial definitiu | F82: Protecció social | G82: C22. | H82: C22.I04. | I82: C22.I04.P01.PROVISIONAL.S04. Pla “España te protege (III)”: creació de serveis d’atenció integral 24 hores a víctimes de violència sexual. | J82: 1949848.45 | L82: 465036.62 | M82: 1085085.44 | N82: 399726.39 | R82: SI | T82: MR005 | U82: =+VLOOKUP(T82,[1]Full1!$A$2:$B$120,2,0) ->  | V82: 465036.62 | W82: 1085085.44 | X82: 1085085.44 | Y82: 1551000 | Z82: 1551000 | AA82: =465036.62+1085085.44+399726.39 -> 1949848.45 | AB82: Ministeri d’Igualtat | AC82: =19800000+46200000+17058700 -> 83058700 | AD82: 0.02347554741 | AE82: Criteris de distribució 2021 i 22: 1) Quantia fixa per a un centre per província: 1.000.000€ /província. 2) 2% Insularitat. 3) 15% Distribució de dones de 16 i més anys. 4) 4,21% Dispersió de la població. Criteri distribució 2023: quantia fixa per província: 250.000 € (76,21%); insularitat (2%), dones de 16 i més anys (15%), dispersió de la població (6,79%) | AF82: 06/04/2021: Aprovat per CM. 13/07/2021: Acord de CS (BOIB 170 de 17.07.2021). 01/08/2021: Ingrés Tresoreria. 14/06/2022: Resolució aprobació CS (BOIB 148 de 22.06.2022). 30/08/2022: Ingrés Tresoreria. 28/02/2023: NdeP CM. Igualtat destina 177 milions d'euros per lluitar contra totes les formes de violències masclistes. Del total de 17.058.700,00€, se destina a les Illes Balears 399.726,39€. 16/03/2023: Resolució Acord de CS (BOE 67 de 20/03/2023). 18/05/2023: Ingrés Tresoreria anualitat 2023 26/06/2023: Signatura de conveni entre CAIB, IBDona i Consell Insular (NdP). 02/10/2023: Aprobació de l’Addenda espanyola per la Comissió Europea. Modficació del termini d’execució per a l’objectiu CID 376: T4 del 2024 | AH82: Convenis amb els consells insulars perquè crein ells els centres els fa la Conselleria de Presidència. Juny 2023: signat CIMallorca. Els fons 2023 els gestionaria IB Dona amb l’IBAVI (arreglar pisos) i s’ha de valorar si s’amplia la dotació previst per als convenis amb els Consells no firmats (Menorca i Eivissa), sobretot Eivissa ho reclama. | AI82: 2024-12-31 | AJ82: Objectiu CID 327: Mínim 1 centre de crisi en funcionament a data de 31/12/2023. Ampliació del termini d’execució fins al 31/12/2024 per la Decisión de Ejecución del Consejo (UE). 22/12/2023: Resolució d’Acord de CS de 19/12/2023 per la qual s’amplia el termini d’execució dels crèdits pressupostaris destinats a la creació de centres d’atenció integral 24 hores a víctimes de violencia sexual fins al 31/12/2024. (BOE 305 de 22/12/2023). | AK82: 2023-12-31 | AL82: Tenir un centre d’atenció integral a les víctimes de violència sexual operatiu a data de 31/12/2023. (Publicació i firma del conveni amb el Consell Insular de Mallorca juny 2023). | AQ82: Falta executar 1 M€. Fita se compliria si CIMa pot executar, tot i que l’Import és inferior a l’assignat per a 2021-22. En negociació altres convenis i actuacions import 2023. Consell de Mallorca encara no ha fet res.
A83: Conselleria de Salut | B83: Salut | C83: Consell Interterritorial del Sistema Nacional de Salut | D83: 2022-07-27 | E83: Aprovat/Acord de Conferència Sectorial definitiu | F83: Protecció social | G83: C18. | H83: C18.I03. | I83: C18.I03.P02.S02. Nou sistema d’informació de la Xarxa de Vigilància en salut pública: integració de sistemes d’informació. Illes Balears. | J83: 581160.99 | L83: 466263.39 | M83: 114897.6 | R83: SI | T83: MR035 | U83: E04 | V83: 466263.39 | W83: 114897.6 | X83: =W83 -> 114897.6 | Y83: 420545 | Z83: 450958.11 | AA83: =466263.39+114897.6 -> 581160.99 | AB83: Ministeri de Sanitat | AC83: =13000000+3200000 -> 16200000 | AD83: 0.03587413519 | AE83: 40% lineal; 60% població | AF83: 06/10/2021: Proposta criteris distribució signada. 13/10/2021: Aprovat per CS. 17/12/2021: Ingrés Tresoreria. 27/07/2022: Acord de distribució de fons. 30/09/2022: Ingrés Tresoreria. 02/10/2023: Aprobació de l’Addenda espanyola per la Comissió Europea. Modficació del termini d’execució per a l’objectiu CID 281: T4 del 2025. | AH83: Contractació + adquisició hardware + projecte inversió immat (personal) | AI83: 2025-12-31 | AJ83: Objectiu CID 281: Sistema d'Informació de la Xarxa de Vigilància de la Salut Pública que permeti detectar problemes que puguin suposar un risc per a la salut, difondre informació de les autoritats competents i facilitar l'aplicació de les mesures de control. 15/06/22: estat d’execució: expedient de contractacions; 4t trimestre 2022: Publicació d’estudis tècnics necessàries per crear i implementar la nova Xarxa de Vigilància en Salut Pública. 31/03/2022: enviar estat execució de fons i memòria d’activitat d’acord amb els models que es trametin. Octubre 2023: Certificat d’ entrada en funcionament Sistema d’Informació de la Xarxa de Vigilància en Salut Pública. Nou termini d’execució ampliat fins al 31/12/2025. | AK83: 2023-10-31 | AL83: Certificat d’entrada en funcionament Sistema d’Informació de la Xarxa de Vigilància en Salut Pública. | AN83: 3 sistemes de vigilància. | AP83: Maribel Garau | AQ83: No arribam per complir terminis (info setembre 23).
A84: Conselleria de Salut | B84: Salut | C84: Consell Interterritorial del Sistema Nacional de Salut | D84: 2022-06-15 | E84: Aprovat/Acord de Conferència Sectorial definitiu | F84: Protecció social | G84: C18. | H84: C18.I01. | I84: C18.I01.P01.S01. Pla d’inversió en equipaments d’alta tecnologia en el Sistema Nacional de Salut: renovació i ampliació. Illes Balears. | J84: 22062886.82 | L84: 8667580 | M84: 13395306.82 | R84: SI | T84: MR020 | U84: E04 | V84: =L84 -> 8667580 | W84: =+M84 -> 13395306.82 | X84: =+W84 -> 13395306.82 | AA84: =+L84+M84 -> 22062886.82 | AB84: Ministeri de Sanitat | AC84: =393878029.97+398993103 -> 792871133 | AD84: 0.02782657345 | AE84: Criteris de distribució: 1) Nombre d'equips amb 12 anys o més. ALP i les TC de 10-11 anys instal·lats en centres de titularitat i gestió pública de l'SNS, i explotació pública. 2) Nombre d'equips seleccionats al fons competitiu d'ampliació, dotat de la diferència entre el pressupost total i l'estimat per a la renovació. Les CCAA i INGESA van presentar un total de 292 projectes valorats amb criteris definits en el model objectiu de priorització, sent especialment rellevants la taxa de densitat mitjana d'equips per 100.000 habitants i l’esforç inversor realitzat en renovació. Els projectes seleccionats van ser classificats en dues categories: elegibles i en reserva tipus 1. 3) Nombre d'equips amb bandes tecnològiques altament sofisticades (nivell 3/situacions especials) sol·licitats per les CCAA, sent el criteri de compensació el que l'equip fos instal·lat en un centre de referència del SNS (CSUR). | AF84: 22/06/2021: Proposta a la Comissió de Prestacions, Assegurament i Financiació autoritzada pel CM i aprovada pel Consell Interterritorial del Sistema Nacional de Salut. Aquest acord només fa referència a l’any 2021. El Pla de referència també a 2022. Pressuposts 13,4 m € pressupost 2022. 30/08/2021: Ingrés Tresoreria. 15/06/2022: Acord CS. 18/08/2022: Ingrés Tresoreria. | AG84: Es preveu adquirir equips per als diferents hospitals (Acelerador lineal, TAC, angiógrafo vascular, etc.). Nombre equips: 21 (13 per renovar i 8 per ampliar). INGESA (Instituto Nacional de Gestión Sanitaria) farà un acord marc i la CAIB s’hi podrà adherir l’any 2022 per fer els corresponents contractes derivats. Previsió fi instal·lació: setembre 2023. LICITACIÓ 1: Publicat ct mixt submin., serveis i obres el 25.12.21. Pressupost de licitació: 16.204.833€ (MRR= 10.205.653€, que és la part de subministrament) | AH84: contractació | AI84: 2023-12-31 | AJ84: Objectiu (CID 278): aprobació del Pla INVEAT al CISNS. Termini el Q4 de 2021. Aprobació al Consell Interterritorial del SNS el 30/06/2021. Objectiu (CID 279): instal·lació i posada en funcionament dels equips d’alta tecnologia seleccionats com a finançables en el Pla INVEAT. Total equips IB 21. Fites: 2n quadrimestre 2022: 100% licitats; 3r quadrimestre: 100% adjudicats | AL84: Justificació de la despesa abans del 31/08/2023. | AM84: 2023-08-31 | AN84: (95% equips majors de 12/10 anys instal·lats i en funcionament) + indicadors seguiment (intermitjos) | AO84: IB-Salut | AP84: Ángel Cogolludo | AQ84: Contractes licitats i adjudicats: Ordre global: 4L, 12L, 19L, 21L, 22L, 23L, 24L, 30L, 32L, 34L, 35L, 45L, 49L, 54L.
A85: Conselleria de Salut | B85: Digitalització | C85: Conferència Sectorial d’Administració Pública | D85: 2022-09-22 | E85: Aprovat/Acord de Conferència Sectorial definitiu | F85: Digitalització | G85: C11. | H85: C11.I03. | I85: C11.I03. Transformació Digital i Modernizació del Ministeri de Política Territorial i Funció Pública i de les Administracions de les Comunitats Autònomes i de les Entitats Locals. | J85: 7967920.1 | M85: 2425019.16 | N85: 5542900.94 | R85: SI | T85: MR075 | U85: E04 | W85: 2425019.16 | X85: 2425019.16 | Y85: 5542900.94 | AA85: =2425019.16+5542900.94 -> 7967920.1 | AB85: Ministeri d’Hisenda i Funció Pública | AC85: 229999999.7 | AD85: 0.03464313092 | AE85: Línea 6: Població 84% , quantitat fixa i igual (10%) i projectes en col·laboració (6%) | AF85: Comissió sectorial de Telecomunicacions: tenim nota informativa del Ministeri de Política Territorial relativa a la proposta de repartiment enviada amb posterioritat a la reunió. Hi ha 6 línies i la 6a és de salut. 01/08/2022: Autorització CM. 22/09/2022: Acord CS (BOE 228, de 22/09/22). 07/10/2022: Ingrés Tresoreria. 17/02/2023: Ingrés Tresoreria. 22/12/2023: Resolució d’acord de CS de 05/12/2023 de moficiació de l’acord de 1/12/2021 i 7/12/2022. (BOE 305 de 22/12/2023) | AH85: Transferit a la Conselleria de Salut | AI85: 2026-06-30 | AJ85: Certificar la recepció o conformitat de l’objecte dels contractes adjudicats (abans del 30/06/26, fita 169) D’acord amb la modificació de l’acord de CS publicat el 22/12/2023 al BOE: Els crèdits han d’estar compromesos abans del 30 de juny de 2025 i totalment executats abans del 30/06/2026. Els projectes executats abans de juny de 2024 s’han de reflectir a l’informe de seguiment de situació de l’objectiu 168.1 amb la documentació per tal de verificar el compliment de l’objectiu 169. | AK85: 2025-06-30 | AL85: Crèdits compromesos abans del 30/06/2025.
A86: Conselleria de Salut | B86: Salut | C86: Consell Interterritorial del Sistema Nacional de Salut | D86: 2022-09-05 | E86: Aprovat/Acord de Conferència Sectorial definitiu | F86: Protecció social | G86: C18. | H86: C18.I02. | I86: C18.I02.P03. Campanya de prevenció del càncer. Cribratge poblacional de càncer colorrectal i d’úter. | J86: 390265.46 | L86: =34319.48+63972.9 -> 98292.38 | M86: 145986.54 | N86: 145986.54 | R86: SI | T86: MR055 | U86: E04 | V86: 98292.38 | W86: 145986.56 | X86: 145986.56 | Y86: 145986.54 | AA86: =98292.38+145986.54+145986.54 -> 390265.46 | AB86: Ministeri de Sanitat | AC86: =4000000+12000000 -> 16000000 | AD86: 0.02439159125 | AE86: Població diana (persones de 50 a 69 anys) . | AF86: 27/04/2021: Aprovat per CM. 16/06/2021: Aprovat per la Comissió Europea. 13/10/2021: Aprovada la distribució de FONS per CS. 16/12/2021: Ingrés Tresoreria anualitat 2021. 12/07/2021: Acord de la Comissió de Salut Pública que acorda els criteris per a la distribució entre les CCAA i CEA. 05/09/2022: Aprovat per CS distribució dels fons. Documentació: fitxa Conselleria per a l’elaboració dels Pressuposts 2023. 28/10/2022: Ingrés Tresoreria anualitat 2022. 05/04/2023: Ingrés Tresoreria anualitat 2023. | AH86: Contractació. | AI86: 2023-12-31 | AJ86: Objetiu 280. Campanyes i accions en l’ambit de la salut pública: 31/12/2023 | AP86: Maribel Garau | AQ86: No arribam per complir terminis (info setembre 23)
A87: Conselleria d'Empresa, Ocupació i Energia | B87: PIME | C87: Conferència Sectorial de Comerç | D87: 2022-05-27 | E87: Aprovat/Acord de Conferència Sectorial definitiu | F87: Digitalització | G87: C13. | H87: C13.I04. | I87: C13.I04.P03.S16. Fons tecnològic: subvencions per a inversions tecnològiques per a comerciants i associacions de comerciants. Illes Balears. | J87: 2880968 | M87: 1440484 | N87: 1440484 | R87: SI | T87: MR076 | U87: E11 | Y87: 1440484 | AA87: =+M87+N87 -> 2880968 | AB87: Ministeri d’Indústria, Comerç i Turisme | AC87: 100000000 | AD87: 0.02880968 | AF87: Acord inicial CS 15/03/2022. Es distribueix l’import 2022 i 2023, 50 M€ cada any i l’import de cada any és el mateix. Autorització CM 3/5/22. Aprovació CS: 9/5/22. Publicació Acord BOE: BOE 27/05722. Criteris de distribució BOE 126, de 2705/22. Data ingrés 2022 el 28/07/2022 (segons indica l’excel de Tresoreria). Data ingrés 2023 el 30/03/2023. 25/05/2023: Ordre 19/2023, bases reguladores i convocatòria Programa de Modernització del comerç Fons Tecnològic (BOIB 69 de 25.05.2023). 18/09/2023: Modificació Acord de CS de Comerç de 9 de maig de 2022. Els projectes han d’estar totalment pagats abans del 31/12/2023. (BOE 234 de 30/09/2023). 2/02/2024: Resolució de modificació de l’Acord de CS de 9/05/2022 (Fons Tecnològic per als exercicis 2022 i 2023). BOE 29 de 2/02/2024. | AH87: Convocatòria de subvencions (se’n prevuen fer dues, una cada any). Destinaran un 6% a la realització d’un projecte temporal de personal, d’acord amb el que preveu la convocatòria. | AI87: 2023-12-31 | AJ87: Objectiu 210. Objectiu: mínim 6 pimes o associacions comercials han de rebre ajuda del fons tecnològic. Fites: 1. Publicar convocatòria abans de 31 desembre de cada any. 2. Projectes concedits i pagats abans de 31/12/2023. 3. Justificació: 30/06/2024. | AK87: 2023-12-31 | AL87: Projectes totalment pagats abans del 31/12/2023. | AM87: 2024-06-30 | AN87: La informació dels indicadors de compliment de les fites i objectius en curs i dels seus mecanismes de verificació haurà d’estar actualitzat en el sistema informàtic amb el resultat de les medicions corresponents a l’ últim dia de cada mes de refer. no més tard del 10 del mes següent | AO87: Les CCAA les responsables de la recopilació i valoració de la documentació i informació presentada pels adjudicataris o destinataris finals
A88: Conselleria d'Empresa, Ocupació i Energia | B88: Energia | C88: Conferència Sectorial d’Energia | D88: 2023-03-24 | E88: Aprovat/Acord de Conferència Sectorial definitiu | F88: Transició verda | G88: C01. | H88: C01.I02. | I88: C01.I02.P03.S14. MOVES territorialitzat Illes Balears. Programes d’incentius destinats a promoure la mobilitat elèctrica (MOVES III). Fons addicionals el 2022 i 2023. | J88: 26575856 | L88: 9875856 | M88: 8400000 | N88: 8300000 | R88: SI | T88: MR001 | U88: E05 | V88: 1534400 | W88: 8323242 | X88: =W88+18213.3 -> 8341455.3 | Y88: 6266224 | Z88: 11768209.84 | AA88: =9875856+8400000+8300000 -> 26575856 | AB88: Ministeri per a la Transició Ecològica i el Repte Demogràfic | AC88: =400000000+124926409+122392433 -> 647318842 | AD88: 0.04105527952 | AE88: Criteri de distribució: per comunitats autònomes i ciutats de Ceuta i Melilla per al pressupost inicial serà el Padró municipal d’habitants. | AF88: 13/04/2021: RD 266/2021 (BOE 89 de 14.04.2021) de concessió ajudes a CCAA per executar MOVES III. La convocatòria s’ha de realitzar en 3 mesos des del 14/04/2021. 14/05/2021: Ingrés Tresoreria assingaci´`o 2021. 28/06/2021: Publicació convocatòria al BOIB 88 de 3.07.2021. 08/04/2022: Resolució presidenta de l’IDAE ampliació pressupost MOVES III. 03/08/2022: Ingrés Tresoreria assignació 2022. 22/03/2023: Resolució presidenta de l’IDAE ampliació de pressupost MOVES III. 05/04/2023: Ingrés Tresoreria assignació 2023. 29/05/2023: RD 406/2023 de modificació del RD 266/2021, de 13 d’abril. (BOE 129 de 31/05/2023). 02/10/2023: Aprobació de l’Addenda espanyola per la Comissió Europea. Modficació del termini d’execució per a l’objectiu CID 419: T4 del 2025 15/11/2023: RD 821/2023, de 14 de noviembre(BOE, 272 de 15/11/2023) , pel qual s’adapta al marc europeu d’ajudes d’estat el RD 266/2021, de 13 d’abril, d’aprovació de concessió directa d’ajudes a les comunitats autònomes i a les ciutats de Ceuta i Melilla per a l’execució del programa d’incentius lligats a la mobilitat elèctrica (MOVES III). | AG88: Projecte d’inversió per a despeses personal , sistema de gestió i difusió: 246.896 + convocatòria subvencions (ampliada) Pàgina web Convocatòria. S’han concedit fons addicionals per a 4 CCAA que han sol·licitat ampliació del pressupost el 2022 i 23. | AH88: Convocatòria de subvencions (3.07.21) ordre global 4S + projecte inversió per a costos indirectes (Tragsa encàrreg de gestió: ordre global 38L i 87L; i projecte temporal ordre global 19AI ) | AI88: 2025-12-31 | AJ88: Objectiu CID 419: Almenys 238.000 vehicles elèctrics (BEV, REEV, PHEV o FCEV) i punts de recàrrega, inclosos, entre altres, punts de recàrrega d'ús públic en zones residencials, així com en la xarxa nacional de carreteres. Art 4.2 RD Admissió sol·licituds fins a 31-12-2023. Art 7.5 El saldo no executat ni compromès a 31-12-2023 haurà de reintegrar-se al IDAE, es considera compromès amb la convocatòria corresponent i el posterior registre de sol·licituds i executat amb la resolució de concessió d'ajudes. Ampliació del termini 7 mesos més, fins el 31/07/2024, veure RD 821/2023, de 14 de novembre (BOE 273 de 15/11/2023). Art 16.6: Resolució convocatòries 6 mesos des de presentació sol·licitud. Art 16.7: Termini 12 mesos des de notificació de la concessió els tercers beneficiaris han de justificar realització inversió. Comprovada l'execució la CAIB ordenarà el pagament. (art 16.7) Ampliació del termini d’execució fins al 31/12/2025. | AK88: 2023-12-31 | AL88: La subvenció es troba en procés de concessió. S’han publicat diverses propostes i resolucions de concessió des de 6/11/21. La propera fita es troba indicada a l’art 4.2 RD: el termini d’admisió de sol·licituds serà fins 31/12/2023. Es podria demanar reintegrament anticipat al IDAE d'un percentatge del 50% del pressupost no compromès per les comunitats autònomes i ciutats de Ceuta i Melilla, si als quinze mesos des de la publicació d'aquest reial decret, es constatés un grau de compromís del pressupost assignat a cadascuna d'elles inferior a un percentatge del 80% d'aquest (FITA 2022 OK). | AN88: Indicadors d'Impacte: Emissions evitades de CO₂, nombre de vehicles elèctrics incentivats i nombre de punts de recàrrega incentivats. IDAE facilitarà hipòtesi per a l'estimació de les emissions evitades de les actuacions.
A89: Conselleria d'Empresa, Ocupació i Energia | B89: Energia | C89: Conferència Sectorial d’Energia | D89: 2023-12-21 | E89: Aprovat/Acord de Conferència Sectorial definitiu | F89: Transició verda | G89: C07. | H89: C07.I01. | I89: C07.I01 i C08.I01. Programes d’incentius lligats a l’autoconsum i a l’emmagatzematge, amb fonts d’energia renovable, així com a la implantació de sistemes tèrmics renovables. | J89: 27634982 | L89: 11458467 | M89: 11458467 | N89: 4323213 | O89: 394835 | R89: SI | T89: MR021 | U89: E07 | V89: =29251*(11458467/13399755) -> 25013.26466 | W89: =13370504*(11458467/13399755) -> 11433453.74 | X89: =W89 -> 11433453.74 | AA89: =11458467+11458467+4323213+394835 -> 27634982 | AB89: Ministeri per a la Transició Ecològica i el Repte Demogràfic | AC89: =J89/AD89 -> 1042516308 | AD89: =13399755/505499265.98 -> 0.02650796134 | AE89: Criteris de distribució: - Programa d'incentius 1: El VAB serveis. El pressupost assignat a aquest programa distingeix entre pressupost per a instal·lacions de generació i el pressupost destinat a instal·lacions d'emmagatzematge. - Programa d'incentius 2: El VAB industrial i el VAB agrícola, ramader, silvicultura i pesca. El pressupost assignat a aquest programa distingeix entre pressupost per a instal·lacions de generació i el pressupost destinat a instal·lacions demmagatzematge. - Programes d'incentius 3: EL VAB del sector serveis i d'altres sectors productius. - Programa d'incentius 4: El total d'habitatges principals o llars segons el cens 2011 de l'INE. - Programes d'incentius 5 i 6: El total d'habitatges principals o llars segons el cens 2011 de l'INE. Als programes d'incentius 1, 2 i 4 s'ha realitzat la divisió del pressupost per categories «autoconsum renovable» (C7) i «emmagatzematge» (C8). | AF89: 12/05/2021: Aprovat per CS. 29/06/2021: RD 447/2021 de 29 de juny (BOE 155 de 30.06.2021). 02/08/2021: Ingrés Tresoreria. 17/05/2022: RD 377/2022, per ampliar la tipologia dels beneficiaris del RD 477/2021de 29 de juny (BOE 118 de 18.05.2022). 10/06/2022: Resolució de l’IDAE d’ampliació de pressupost del RD 477/2021. 03/08/2022: Ingrés Tresoreria. 18/10/2023: Resolució d’ampliació de pressupost de l’IDAE, assignació any 2023. 30/11/2023: Ingrés Tresoreria. 21/12/2023: Resolució d’ampliació de pressupost de l’IDAE, assignació any 2024. 10/01/2024: Ingrés Tresoreria. | AG89: Publicades les convocatòries al BOIB: 11/09/21 | AH89: Convoca`tories de subvencions (3) Convocatòria tèrmiques residencial; Convocatòria autoconsum; Convocatòria autoconsum empreses | AI89: 2026-06-30 | AJ89: Objectiu CID 115: aquest objectiu està assolit amb la publicació al BOE de la primera licitació per al suport a la inversió en capacitat renovable innovadora o valor afegit. Objetius CID 125 i 126 (component 8, inversió 1): Desplegament de l’emmagatzematge energètic, contribueix als indicadors de seguiment 125.1 i 126.1, relatius a l’adjudicació abans del darrer trimestre de 2022, i a la posada en operació abans del primer trimestre de 2025, de 2 projectos d’emmagatzematge energètic innovadors. a) Als quinze mesos des de la data d'entrada en vigor d'aquest Reial decret, haver registrat sol·licituds o, en el cas d'inversions directes, haver publicat els plecs de licitació, per valor de la potència de generació renovable i capacitat de emmagatzematge corresponents. b) Al cap de vint-i-un mesos des de la data d'entrada en vigor d'aquest Reial decret, haver emès resolucions de concessió o, en el cas d'inversions directes, haver adjudicat els corresponents contractes, per valor de la potència de generació renova-ble i capacitat d'emmagatzematge corresponents. Termini de 18 mesos des de la notificació de la concessió, els tercers han de justificar l’inversió. | AK89: 2023-12-31 | AL89: Admissió sol fins 31/12/2023. El crédito no compromès a aquesta data s’ha de reintegrar IDAE; es considera compromès amb la convoc. i executat amb la resol. Concessió. Ordre global: 5S, 6S, 7S són les convocatòries de subvencions anuals que es troba en procés de concessió. Té un projecte temporal amb ordre global 18AI pagat, amb un import executat de 209.493,63€.
A90: Conselleria d'Empresa, Ocupació i Energia | B90: Energia | C90: Conferència Sectorial d’Energia | D90: 2023-12-21 | E90: Aprovat/Acord de Conferència Sectorial definitiu | F90: Transició verda | G90: C08. | H90: C08.I01. | I90: C07.I01 i C08.I01. Programes d’incentius lligats a l’autoconsum i a l’emmagatzematge, amb fonts d’energia renovable, així com a la implantació de sistemes tèrmics renovables. | J90: 4268131 | L90: 1941288 | M90: 1941288 | N90: 357142 | O90: 28413 | R90: SI | T90: MR021 | U90: E07 | V90: =29251*(1941288/13399755) -> 4237.735338 | W90: =13370504*(1941288/13399755) -> 1937050.265 | X90: =J90 -> 4268131 | AA90: =1941288+1941288+357142+28413 -> 4268131 | AB90: Ministeri per a la Transició Ecològica i el Repte Demogràfic | AC90: =J90/AD90 -> 161013174.3 | AD90: =13399755/505499265.98 -> 0.02650796134 | AE90: Criteris de distribució: - Programa d'incentius 1: El VAB serveis. El pressupost assignat a aquest programa distingeix entre pressupost per a instal·lacions de generació i el pressupost destinat a instal·lacions d'emmagatzematge. - Programa d'incentius 2: El VAB industrial i el VAB agrícola, ramader, silvicultura i pesca. El pressupost assignat a aquest programa distingeix entre pressupost per a instal·lacions de generació i el pressupost destinat a instal·lacions demmagatzematge. - Programes d'incentius 3: EL VAB del sector serveis i d'altres sectors productius. - Programa d'incentius 4: El total d'habitatges principals o llars segons el cens 2011 de l'INE. - Programes d'incentius 5 i 6: El total d'habitatges principals o llars segons el cens 2011 de l'INE. Als programes d'incentius 1, 2 i 4 s'ha realitzat la divisió del pressupost per categories «autoconsum renovable» (C7) i «emmagatzematge» (C8). | AF90: 12/05/2021: Aprovat per CS. 29/06/2021: RD 447/2021 de 29 de juny (BOE 155 de 30.06.2021). 02/08/2021: Ingrés Tresoreria. 17/05/2022: RD 377/2022, per ampliar la tipologia dels beneficiaris del RD 477/2021de 29 de juny (BOE 118 de 18.05.2022). 10/06/2022: Resolució de l’IDAE d’ampliació de pressupost del RD 477/2021. 03/08/2022: Ingrés Tresoreria. 18/10/2023: Resolució d’ampliació de pressupost de l’IDAE, assignació any 2023. 30/11/2023: Ingrés Tresoreria. 21/12/2023: Resolució d’ampliació de pressupost de l’IDAE, assignació any 2024. 10/01/2024: Ingrés Tresoreria. | AG90: Publicades les convocatòries al BOIB: 11/09/21 | AH90: Convoca`tories de subvencions (3) Convocatòria tèrmiques residencial; Convocatòria autoconsum; Convocatòria autoconsum empreses | AI90: 2026-06-30 | AJ90: Objectiu CID 115: aquest objectiu està assolit amb la publicació al BOE de la primera licitació per al suport a la inversió en capacitat renovable innovadora o valor afegit. Objetius CID 125 i 126 (component 8, inversió 1): Desplegament de l’emmagatzematge energètic, contribueix als indicadors de seguiment 125.1 i 126.1, relatius a l’adjudicació abans del darrer trimestre de 2022, i a la posada en operació abans del primer trimestre de 2025, de 2 projectos d’emmagatzematge energètic innovadors. a) Als quinze mesos des de la data d'entrada en vigor d'aquest Reial decret, haver registrat sol·licituds o, en el cas d'inversions directes, haver publicat els plecs de licitació, per valor de la potència de generació renovable i capacitat de emmagatzematge corresponents. b) Al cap de vint-i-un mesos des de la data d'entrada en vigor d'aquest Reial decret, haver emès resolucions de concessió o, en el cas d'inversions directes, haver adjudicat els corresponents contractes, per valor de la potència de generació renova-ble i capacitat d'emmagatzematge corresponents. Termini de 18 mesos des de la notificació de la concessió, els tercers han de justificar l’inversió. | AK90: 2023-12-31 | AL90: Admissió sol fins 31/12/2023. El crédito no compromès a aquesta data s’ha de reintegrar IDAE; es considera compromès amb la convoc. i executat amb la resol. Concessió. Ordre global: 5S, 6S, 7S són les convocatòries de subvencions anuals que es troba en procés de concessió. Té un projecte temporal amb ordre global 18AI pagat, amb un import executat de 209.493,63€.
A91: Conselleria d'Empresa, Ocupació i Energia | B91: Energia | D91: 2022-06-15 | E91: Aprovat/Acord de Conferència Sectorial definitiu | F91: Transició verda | G91: C07. | H91: C07.I02. | I91: C07.I02.P01.S01. Impuls a la transició energètica i les energies renovables per a les Illes Balears. | J91: 197000000 | M91: 197000000 | R91: SI | T91: MR052 | U91: E07 | W91: 197000000 | X91: 26611655.87 | AA91: =M91 -> 197000000 | AB91: Ministeri per a la Transició Ecològica i el Repte Demogràfic | AC91: =197000000+301700000 -> 498700000 | AD91: =J91/AC91 -> 0.3950270704 | AE91: Concessió directa a les Illes Balears i Canarias. | AF91: 14/06/2022: RD 451/2022 de 14 de juny, publicat al BOE 142 en data 15.06.2022. Concessió directa d’ajudes a Canaries i Balears. 24/04/2023: Convocatòria pública d'ajuts (BOIB 54 de 27.04.2023) 24/04/2023: Extracte convocatòria (BOIB 54 de 27.04.2023) 02/08/2022: Ingrés Tresoreria. 28/04/2023: Orden TED/448/2023, de 28 d’abril, s’estableixen les Bases Reguladores per al programa de concesió d’ajudes per a instal·lacions de generació d’energía elèctrica a les illes, de fonts d’energía Renovable (BOE 107 de 5.05.2023). 02/10/2023: Aprobació de l’Addenda espanyola per la Comissió Europea. Modficació del termini d’execució per a l’objectiu CID 119: T3 del 2025 i ampliació de les accions a realitzar entre Illes Balears i Canaries. 24/11/2023: Resolució de l’IDAE que modifica la resolució de 22/07/2022 relativa al programa operatiu que implica un augment de l’import inicial de 26.500.000 per a inversions directes fins als 38.500.000 €. Aquest increment s’incorpora al Programa 6 i el realitza IBE. | AG91: L’import total d'ajut destinat a la CAIB és de 197.000.000 euros. El Pla d'Inversions per a la Transició Energètica dels Illes Balears estableix sis programes d'actuació. El programa 2«Inversions en projectes innovadors, tractors o estratègics» s'estableix la línia d'actuació P2.L2 sobre el suport a l'emprenedoria en el sector energètic. L’import total del programa 2 és de 33.800.000 euros, dels quals es preveu destinar-hi 30.000.000 euros a aquesta convocatòria pública d'ajuts per a la transició energètica en inversions en projectes innovadors, tractors o estratègics; 3.300.000 euros a línies d'ajuts gestionades directament per l'Institut per a la Diversificació i Estalvi de l'Energia (IDAE), i 500.000 euros a despeses indirectes. | AH91: Convocatòries subvencions: 167,6 M€. Oficines (gestió IBE): 6,5 M€ Millora autconsum CAIB: 20 M€ (bona part salut) | AI91: 2026-06-30 | AJ91: Compliment objectius 119, 120 (pag. 24 Doc. Texto RD_Concesión Directa Islas IDAE-limpia_v.2). Objectiu CID 119: 500 actuacions, projectes o programes al quart trimestre de 2024 entre Illes Balears i Canàries. A les Illes Balears es preveu la realització de més de 400 actuacions, a més d’aquelles que tenen origen a les Oficines de Dinamització i els projectes Innovadors. Amb l’aprovació de l’Addenda, es modifica el termini d’excució fins al 3r Trimestre de 2025. Objectiu CID 120: increment de 180 MW (a les Illes Balears es superarà una instal·lació d’energies renovables superior als 300MW) a la capacitat de producció d’energia renovable mitjançant licitacions de capacitat renovable a les illes. Objectiu per al segon trimestre del 2026. | AK91: 2025-09-30 | AL91: Veure a l’Annexe III la datació de l’acompliment dels objectius 119 i 120 al RD 451/2022, de 14 de juny, pel qual es regula la concessió directa dajuts destinats al finançament destratègies denergia sostenible per a les Illes Balears i Canàries. | AQ91: INFO NOVEMBRE 23: convocatòries publicades. Han convocat una comissió de seguiment del PITEIB amb IDAE per fer alguns canvis i està pendent que s’aprovi per la Secretaria d’Estat dins 2023. Preveuen treure 4 convocatòries noves anticipades de despesa: pimes (10M€), polígons (15M€), comunitats propietaris (8M€) i particulars (10,5M€)
A92: Conselleria d'Empresa, Ocupació i Energia | B92: Energia | C92: Conferència Sectorial d’Energia | D92: 2021-08-04 | E92: Aprovat/Acord de Conferència Sectorial definitiu | F92: Transició verda | G92: C02. | H92: C02.I04. | I92: C02.I04.P01.S12. Programa de rehabilitació energètica d’edificis en municipis del repte demogràfic (PREE 5.000). Illes Balears. | J92: 532500 | L92: 532500 | R92: SI | T92: MR029 | U92: E07 | W92: =L92 -> 532500 | X92: =W92 -> 532500 | Y92: 209585 | Z92: 291107.98 | AA92: =L92 -> 532500 | AB92: Ministeri per a la Transició Ecològica i el Repte Demogràfic | AC92: 50000000 | AD92: 0.01065 | AE92: Criteris de distribució: 1) Nombre de municipis menors de 5.000 hab. 2) Població a aquests municipis. | AF92: 12/05/2021: Acord de CS. 03/08/2021: Autoritzat CM. 03/08/2021: RD 691/2021 (publicat al BOE de 4.08.2021). Repartiment definitiu de fons. 03/08/2021: RD 692/2021 (publicat al BOE 185 de 04.08.2021). 04/10/2021: Ingrés Tresoreria. 10/11/2021: Resolució de convocatòria de subvenció (publicat al BOIB de data 16.11.2021). | AG92: Per a municipis menors de 5.000 habitants. Convocatoria BOIB 211116: Import convocatòria: 515.330 €. | AH92: Ordre global 8S: Convocatòria de subvenció publicada 16/11/2021. No s’ha executat cap import. | AI92: 2025-11-30 | AJ92: Admissió sol·licituds fins 31/12/2023. El crèdit no compromès a aquesta data s’ha de reintegrar IDAE; es considera compromès amb la convoc. i executat amb la resolució de concessió. Justificació subvencions: 30/11/2025 138 vivendes rehabilitades a Balears. Als 12 mesos des de l’entrada en vigor del RD, registrar les sol·licituds, publicar els plegs de licitació, pel nombre de vivendes rehabilitades energèticament o el pressupost inicial signat. Als 18 mesos des de l’entrada en vigor del RD, resolucions de concesió o d’inversions directes, adjudicació dels contractes, per valor de nombre de vivendes rehabilitades energèticament o el pressupost inicial signat. | AK92: 2023-12-31 | AL92: Admissió de sol·licituds fins 31/12/2023. | AQ92: Molt poques sol·licituds (i 0 concessions de moment)
A93: Conselleria d'Empresa, Ocupació i Energia | B93: Energia | C93: Conferència Sectorial d’Energia | E93: Aprovat/Acord de Conferència Sectorial definitiu | F93: No catalogat | G93: C01. | H93: C01.I02. | I93: C01.I02. Programes d’incentius destinats a promoure la mobilitat elèctrica (MOVES II). | J93: 1930000 | K93: 1930000 | R93: SI | T93: 20096 | U93: E05 | AB93: Ministeri per a la Transició Ecològica i el Repte Demogràfic | AF93: Fons rebuts el 2020 i considerats MRR (Correu IGAE 15/11/21). No documentació. D’acord amb el correu de l’IGAE eren 2.531.518 €. La web del MITECO diu que són1,93 milions d’euros. RD 569/2020, de 16 de juliol de 2020 (Publicat al BOE 169 de 17.06.2020). Distribució de fons. | AG93: Component 1. Inversió 2. Fons provinents de l’IDAE; Subprojecte COFFEE és Moves II i III. | AI93: 2023-12-31
A94: Conselleria d'Empresa, Ocupació i Energia | B94: Energia | C94: Conferència Sectorial d’Energia | E94: Aprovat/Acord de Conferència Sectorial definitiu | F94: No catalogat | G94: C02. | H94: C02.I03. | I94: C02.I03.P01.S14. Programa de rehabilitació energètica d’edificis (PREE 2020). Illes Balears | J94: 7128000 | K94: 7128000 | R94: SI | T94: 20105 | U94: E07 | AB94: Ministeri per a la Transició Ecològica i el Repte Demogràfic | AF94: Fons rebuts el 2020 i considerats MRR (Correu IGAE 15/11/21). No documentació | AG94: Component 2. Inversió 3. Fons provinents de l’IDAE. | AI94: 2026-06-30
A95: Conselleria d'Empresa, Ocupació i Energia | B95: Energia | C95: Conferència Sectorial d’Energia | D95: 2021-12-22 | E95: Aprovat/Acord de Conferència Sectorial definitiu | F95: Transició verda | G95: C07. | H95: C07.I01. | I95: C07.I01. Programa d’incentius per a la implantació d’instal·lacions d’energies renovables tèrmiques en diferents sectors de l’economia. | J95: 2944884 | L95: 2944884 | R95: SI | T95: MR072 | U95: E07 | X95: =393130 -> 393130 | AA95: =L95 -> 2944884 | AB95: Ministeri per a la Transició Ecològica i el Repte Demogràfic | AC95: 150000000 | AD95: 0.01963256 | AF95: RD 1124/2021, de concessió directa de subvencions a les comunitats autònomes (BOE 22/12/2021). Tenim una nota de premsa de la Conselleria i proposta d’acord amb 3 projectes de juliol de 2021. Sembla que el RD és l’aprovació definitiva per 2 d’ells i la quantia és finalment superior. Ingressat 18/03/22 | AG95: C7.I1. Inclou dos programes: realització d’instal·lacions d’energies renovables tèrmiques en els sectors industrial, agropecuari, serveis i altres sectors de l’economia, inclòs el sector residencial; i Realización de instalaciones de energías renovables térmicas en edificios no residenciales, establecimientos e infraestructuras del sector público. | AH95: convocatòries de subvencions | AI95: 2026-06-30 | AJ95: Objectiu CID 117 C7.I1: instal·lar almenys 3.800 MW de generació renovable per al primer semestre de 2026 segons l'«Annex de la Proposta de Decisió d'Execució del Consell relativa a l'aprovació de l'avaluació del Pla de Recuperació i Resiliència d'Espanya», de data 16 de juny de 2021. Indicadors de seguiment 117.2 i 117.3 mitjançant, d'una banda la publicació de les corresponents convocatòries d'ajudes i, d'altra banda, a aconseguir els objectius d'haver convocat ajudes per almenys 3.500 MW en l'últim trimestre de 2023 i per almenys 3.800 MW en el segon trimestre de 2025. Al 15 mesos de l’entrada en vigor del RD, registrat les sol·licituds o en el seu cas d’inversions directes, publicat els plecs de licitació, per valor de la potència tèrmica renovable corresponent (6,0 MW) . Als 21 mesos des de la data d’entrada en vigor del RD, emès resolucions de concessió o, en el seu cas d’inversions directes, adjudicat els corresponents contractes, per valor de la potencia tèrmica renovable corresponent (6,0 MW).
A96: Conselleria de Salut | B96: Salut | C96: Conferència Sectorial per a la Transformació Digital | D96: 2022-12-20 | E96: Acord de Conferència Sectorial INICIAL | F96: Digitalització | G96: C18. | H96: C18.I06. | I96: C18.I06. Creació de l’Espai Nacional de Dades de Salut o Data Lake Sanitari. | J96: 958521 | N96: 958521 | R96: SI | T96: MR083 | U96: E04 | AA96: =M96 -> 0 | AB96: Ministeri d’Afers Econòmics i Transformació Digital | AC96: 28000000 | AD96: 0.03423289286 | AE96: Quantitat fixa + criteri poblacional | AF96: Acord CM: 20/12/2022. | AG96: Només informació del Consell de Ministres | AI96: 2023-12-30 | AJ96: CID O 284. La data prevista de compliments d’objectius serà el quart trimestre de 2023. ADDENDA: en el text diu que s’amplia a 31 desembre 2025, però no ho diu el quadre resum. S’ha contactat amb al SG Fons Europeus i diuen que el CID és per a l’Estat i que es treballa en què les CCAA no participin en complir aquesta data i per tant el termini seria fins a 31/12/2025. | AP96: Maribel Garau | AQ96: En licitació IB-Salut. Termini de compliment just. Sembla que el termini amb l’addenda s’amplia a desembre de 2025, però està així al text, però no al quadre de CIDs. S’ha contactat amb la SG Fons Europeus i diuen que el CID és per a l’Estat i que es treballa en què les CCAA no participin en complir aquesta data i per tant el termini seria fins a 31/12/2025. Pendent confirmació.
A97: Conselleria de Salut | B97: Salut | C97: Consell Interterritorial del Sistema Nacional de Salut | D97: 2023-03-17 | E97: Aprovat/Acord de Conferència Sectorial definitiu | F97: Protecció social | G97: C18. | H97: C18.I04. | I97: C18.I04.P02.PROVISONAL.S04. Formació dels professionals sanitaris en l’àmbit dels plans de formació continuada. Illes Balears. | J97: 321792.57 | L97: 102010.85 | M97: 120933.02 | N97: 98848.7 | R97: SI | T97: MR054 | U97: E04 | V97: 102010.85 | W97: 120933.02 | X97: 120933.02 | Y97: 98848.7 | Z97: 98848.7 | AA97: =102010.85+120933.02+98848.7 -> 321792.57 | AB97: Ministeri de Sanitat | AC97: =3500000+3000000+3500000 -> 10000000 | AD97: 0.032179257 | AE97: Criteris de distribució: a l’any 2021 el criteri és lineal i poblacional. Als anys 2022-23 el criteri és el grau de compliment dels objectius en els exercicis anteriors. | AF97: 04/11/2021: Aprovació Consejo Interterritorial Salud. 30/12/2021: Ingrés Tresoreria anualitat 2021. 22/06/2022: Aprovació Consejo Interterritorial Salud. 18/08/2022: Ingrés Tresoreria anualitat 2022. 17/03/2023: Aprovació Consejo Interterritorial Salud. 01/06/2023: Ingrés Tresoreria anualitat 2023. | AH97: Minutes professionals. | AI97: 2023-12-31 | AJ97: 30/6/22 i 31/08/23: 918 sanitaris formats i 3.672 crèdits per l’any 2021. 30/6/22 i 31/08/23: 1.142 professionals sanitaris formats i 4.567,2 crèdits a completar. Professionals a formar: 847; Crèdits a completar: 3.389. | AK97: 2023-12-31 | AL97: 1) En un període màxim de 2 MESOS (21/5/2023) des de la transferència de crèdit aportar certificat de generació de crèdit a la Conselleria de Salut o òrgan que executi la despesa; remissió de la proposta tècnica de les activitats formatives de 2023. 2) Trimestralment: informació per a la monitorització dels indicadors i resta de documentació requerida en el mecanisme de verificació (31/03/2023- 30/06/2023-30/09/2023-31/12/2023). A tancament del projecte a 31/12/2023, s’haurà de remetre certificat de realització de tota la formació (excel amb nº d’activitats formatives realitzades, durada, crèdits, DNI candidats formats, tipus de formació, assistència (presencial/on line)) 3) ABANS 31/1/2024: expedient de contractació administrativa complet o documentació acreditativa de despesa, certificat `òrgan CAIB d’execució de despesa per la finalitat prevista, altra documentació econòmic-financera (comandes, factures, certificat d’instal·lació d’equips...), breu memòria explicativa. | AN97: 918 sanitaris formats/ 3.672 crèdits a completar 1.142 professionals sanitaris/4.567,2 crèdits a completar 847 professionals sanitaris formats/3.389 crèdits a completar | AP97: Maribel Garau | AQ97: En execució. Compliment o proper
A98: Conselleria d'Educació i Universitats | B98: Educació | C98: Convocatòria de subvencions | D98: 2022-12-23 | E98: Aprovat/Acord de Conferència Sectorial definitiu | F98: Educació | G98: C20. | H98: C20.I02. | I98: C20.I02.P04.PROVISONAL.S16. Xarxa estatal de centres d’excelència de formació professional – Illes Balears. | J98: 2931200 | M98: =1000000+931200+1000000 -> 2931200 | R98: SI | T98: MR085 | U98: E06 | X98: 2931200 | AA98: =+M98 -> 2931200 | AB98: Ministeri d’Educació i Formació Professional | AC98: 42622567.8 | AD98: 0.06877107953 | AF98: 22/07/2022: Ordre 712/2022 convocatòria (BOE 180 28/07/22). 22/07/2022: Extracte de la convocatòria (BOE 180 de 28/07/2022). 23/12/2022: Resolució de concessió de subvenció. 30/03/2023: Ingrés Tresoreria. | AG98: Centres d’Excel·lència de Formació Professional: CIFP Pau Casesnoves, CIFP Francesc de Borja Moll, CIFP Juniper Serra. El pagament serà amb caràcter anticipat pel 100% de l’ajuda concebuda. | AI98: 2024-12-31 | AJ98: S’estableix un termini de tres mesos màxim des de la finalització de les actuacions subvencionades per a la presentació de la justificació econòmica i tècnica. | AQ98: Modificat termini execució perquè a COFFEE figura 2024. Confirmar amb Educació
A99: Conselleria d'Economia, Hisenda i Innovació | B99: Digitalització | C99: Conferència Sectorial per a la Transformació Digital | D99: 2023-05-18 | E99: Aprovat/Acord de Conferència Sectorial definitiu | F99: Digitalització | G99: C14. | H99: C14.I02. | I99: C14.I02.P02.PROVISIONAL.S05. RETECH IA. Spain Living Lab. | J99: 810000 | N99: 810000 | R99: SI | T99: MR086 | U99: E12 | AB99: Ministeri d’Afers Econòmics i Transformació Digital | AC99: =N99/AD99 -> 91866514.5 | AD99: =(N99+N100)/163318248 -> 0.008817140875 | AE99: Criteri de distribució: és el derivat de cada una de les propostes presentades en conjunt de les CCAA. Aquest import s’ha anat concretant a les reunions tècniques mantingudes a les que s’han acordat les quantitats per projecte, tenint en compte la disponibilitat pressupostaria. | AF99: 28/03/2023: Autorització CM. 18/05/2023: Acord CS. Projectes en cooperació amb altres CCAA (Andalucia, Aragó, Principado Asturias, Canàries -coordina-, Castilla La Mancha i Navarra). | AG99: CAIB haurà d’aportar 25%. Import projecte: 43,9M€. El projecte enmarcat contribueix a la Submesura 2 d’aquesta inversió del Pla de Transformació Digital d’Empreses de la cadena de valor turística mitjançant la Inteligència Artificail i altes tecnologies habilitadores. | AH99: Subvenció nominativa a favor de la Cambra de comerç de Mallorca | AI99: 2025-06-30 | AJ99: Data límit d’implementació de la inversió el 2n trimestre de 2025. | AK99: 2025-06-30 | AL99: Data límit d’implementació de la inversió el 2n trimestre de 2025. SENSE INFORMACIÓ A SEGUIMENT I PREVISSIO (CODI FF?) | AQ99: Fet: subvenció nominativa, prevista pressuposts generals CAIB 2023, concedida a favor de la Cambra de comerç de Mallorca, per import de 60,000 € Previsió: pendent de justificar la subvenció. * Pendent aclarir compromís d’aportacions per participació empreses, (Inetum/Plexus?), veure pàg. 120 Informe Traspàs DGMAD.
A100: Conselleria d'Economia, Hisenda i Innovació | B100: Digitalització | C100: Conferència Sectorial per a la Transformació Digital | D100: 2023-05-18 | E100: Aprovat/Acord de Conferència Sectorial definitiu | F100: Digitalització | G100: C16. | H100: C16.R01. | I100: C16.R01. RETECH IA. Red de Hubs de Inteligencia Artificial. | J100: 630000 | N100: 630000 | R100: SI | T100: MR087 | U100: E11 | AB100: Ministeri d’Afers Econòmics i Transformació Digital | AC100: =N100/AD100 -> 71451733.5 | AD100: =(N99+N100)/163318248 -> 0.008817140875 | AE100: Criteri de distribució: és el derivat de cada una de les propostes presentades en conjunt de les CCAA. Aquest import s’ha anat concretant a les reunions tècniques mantingudes a les que s’han acordat les quantitats per projecte, tenint en compte la disponibilitat pressupostaria. | AF100: 28/03/2023: Autorització CM. 18/05/2023: Acord CS. Projectes en cooperació amb altres CCAA (Catalunya - coordina- i Comunitat Valenciana) | AG100: CAIB haurà d’aportar 25%. Import projecte: 38,7M€ | AH100: Subvenció nominativa a favor de la UIB | AI100: 2026-03-31 | AJ100: Objectiu (CID 252): posar en marxa la financiació de projectes de missions específiques de país amb solucions innovadores impulsades per IA per solucionar problemes detectats a àrees com salut, industria, medi ambient, societat, energia, agricultura i economia. Data límit d’acompliment 1r trimestre de 2026. Fita 251: compromís de pressupost compromés per ajudes a projectes I+D IA, Nodo de Talento Español en IA, beques d’investigació relatives a IA, institut multidisciplinar sobre IA, observatoris, computació quantitativa i programa nacional d’algoritmes verds. Data límit d’acompliment 4rt trimestre de 2023. Fita 253: finalització de projectes sobre I+D a IA, Nodo de talento español en IA, beques d’investigació sobre IA, institut multidisciplinar de IA, observatoris, computació quàntica i els algoritmes verds. Data límit d’acompliment 1r trimestre de 2026. | AK100: 2023-12-31 | AL100: Fita 251: pressupost compromès per ajudes I+D IA, al Nodo de Talento Español en IA, beques d’investigació IA, a l’Institut Multidisciplinar sobre IA, observatoris, computació qüàntica i programa nacional d’algoritmes verds. Data límit d’aquest objectiu: 4rt trimestre de 2023. SENSE INFORMACIÓ A SEGUIMENT I PREVISSIÓ (CODI FF?) Fita 253: finalització de projectes I+D IA, al Nodo de Talento Español en IA, beques d’investigació IA, a l’Institut Multidisciplinar sobre IA, observatoris, computació qüàntica i programa nacional d’algoritmes verds. Data límit d’aquest objectiu: 1r trimestre de 2026. | AQ100: Previsió: pendent de tramitar la subvenció nominativa, prevista al pressupostos generals CAIB 2023, a favor de la UIB per crear la Càtedra d’Intel·ligència Artificial en Sostenibilitat i Qualitat de Vida, per import de 60,000 €
A101: Conselleria d'Economia, Hisenda i Innovació | B101: Digitalització | E101: Acord de Conferència Sectorial INICIAL | G101: C15+C19 | H101: C15+C19C15.I07 + C19.I0 | I101: RETECH CIBER.Creació d’una càtedra de ciberseguretat turística per comentar l’ecosistema innovador vinculat a empreses i universitats | J101: 1440000 | N101: 1440000 | R101: SI | T101: MR092 | AA101: 432000 | AB101: Ministeri d’Afers Econòmics i Transformació Digital | AC101: 10198570.15 | AD101: =(N100+N101)/163318248 -> 0.01267464001 | AE101: Les aportacions de INCIBE amb càrrec a fons europeus no superaran en cap cas el 75% màxim. | AF101: Projectes en cooperació amb altres CCAA (coordina Navarra i participa Astúries, Cantàbria, Castella La Mancha, Extremadura, Múrcia i Canàries). Signat conveni amb l’Estat el 27/10/2023 i Addenda d’incorporació de la nostra CCAA (pendent de signatura). | AG101: Import projecte: 27,9 M€ | AH101: En tramitació conveni adhesió a INCIBE per rebre fons. (Projecte CIBERREG-Impuls a la ciberseguretat des dels territoris). No es podran fer subvencions. CAIB ha d’aportar 690.000 €. Justificant de pagament anticipat de 432.000€ (G:\OIE\05. SEGUIMENT\03 CONFERENCIES SECTORIALS\DIGITALITZACIÓ - C. D'ECONOMIA, HISENDA I INNOVACIÓ - C19 Conferencia Sectorial per a la Transformació Digital) | AI101: 2026-06-30 | AJ101: 27/10/2023: Conveni signat amb l’estat i les CCAA de Canaries, Cantabria, Murcia, Navarra i INCIBE. Pendent de signatura l’addenada de la CAIB. Vigencia del conveni des de la data de signatura i fins el 30 de desembre de 2026, prorrogable per un termini màxim igual a la durada inicial. Termini d’execució fins el 30/06/2026 per a les actuacions del C15.I7 i fins el 31/12/2025 pel C19.I4. 18/01/2024: Justificant de pagament anticipat a la CAIB de 432.000€. | AK101: 2025-12-31 | AL101: Objectiu CID 245 i 248 per al C15.I7. (És l’objectiu que es realitzarà a les Illes Balears). Objectiu CID 294 per al C19.I4. | AQ101: Previsió: es preveu signar una addenda al conveni inicial de l’INCIBE per a la distribució dels fons. En aquest projecte la CAIB ha d’aportar 690.000 €
A102: Conselleria d'Economia, Hisenda i Innovació | B102: Digitalització | C102: Conferència Sectorial per al Repte Demogràfic | D102: 2023-04-27 | E102: Aprovat/Acord de Conferència Sectorial definitiu | F102: Digitalització | G102: C19. | H102: C19.I01. | I102: C19.I01.P05.PROVISIONAL.S05. Capacitats digitals per al Repte demogràfic. Illes Balears. (Població amb especials dificultats demogràfiques. Prioritari la qualificació professional com instrument per fomentar l’activitat econòmica, impulsar la renovació productiva i propiciar la innovació social i transformació dels territoris més afectats per la transformació econòmica i els canvis demogràfics). | J102: 1395430 | N102: 1395430 | R102: SI | T102: MR088 | U102: E06 | Y102: 1395430 | AA102: 1395430 | AB102: Ministeri d’Afers Econòmics i Transformació Digital | AC102: 69000000 | AD102: =J46/AC46 -> 0.02473268884 | AE102: Criteris de distribució: 1) 30% Nº total d’habitants dels municipis identificats com de baixa densitat (entre 8 i 12,5 hab/km2). 2) 50% Nº total d’habitants dels municipis identificats com de molt baixa densitat (població inferior a 8 hab/km2). 3) 20% Pes relatiu a la disminució de població (perdua del 10%). | AF102: 27/04/2023: Acord CS. 29/06/2023: Ingrés Tresoreria anualitat 2023. 16/01/2024: Acord de CS (Document dins carpeta de CS). | AI102: 2026-06-30 | AJ102: Objectiu CID 286: 75% del pressupost per formar en compentències digitals abans del Q4 de 2023. Objectiu CID 288: 5.967 persones formades a les Illes Balears. El termini finalitzarà el 30/06/2026 Durada mínima de les accions formatives (7,5 hores). | AK102: 2023-12-31 | AL102: Compromís de despesa del 75% del pressupost. CID 286: document resum que justifiqui el compliment; document comptable; llistat de la publicació de las adjudicacions al butlletí oficial o plataforma de contractació. CID 288: document resum que justifiqui el compliment; nom del programa formatiu; certificats justificatius del compliment de les accions formatives; descripció de les accions formatives finalitzades; convocatòria de les accions formatives; identificador únic de les persones inscrites. Fita intermitja CID288.1: 1.469 persones participants formades abans del 2n trimestre de 2026.
A103: Universitat de les Illes Balears | B103: R+D+I | C103: Convocatòria de subvencions | E103: Aprovat/Acord de Conferència Sectorial definitiu | G103: C17. | H103: C17.I03. | I103: C17.I03. Projectes de R+D+i «Programació Conjunta Internacional» 2020. | J103: 130450 | K103: 130450 | R103: NO | AB103: Ministeri de Ciència i Innovació | AC103: 9000000 | AD103: 0.018837275 | AF103: 13/03/2019: Bases reguladores (BOE 69 de 21/03/2019). 06/05/2020: Extracte de la convocatòria ((BOE 134 de 13/05/2020). Nº BDNS 504639. 02/12/2020: Resolució concessió UIB.
A104: Universitat de les Illes Balears | B104: R+D+I | C104: Convocatòria de subvencions | D104: 2021-06-15 | E104: Aprovat/Acord de Conferència Sectorial definitiu | G104: C17. | H104: C17.I04. | I104: C17.I04. Ajudes per a contractes Juan de la Cierva-formació 2021. | J104: 259200 | M104: 139200 | N104: 120000 | R104: NO | AB104: Ministeri de Ciència i Innovació | AC104: 32400000 | AD104: 0.02086899329 | AF104: 17/12/2021: Bases reguladores (BOE 312 de 29/12/2021). 27/12/2021: Extracte de la convocatòria (BOE 314 de 31/12/2021). Nº BDNS 602417. 16/11/2022: Resolució de concessió.
A105: Universitat de les Illes Balears | B105: R+D+I | C105: Convocatòria de subvencions | E105: Aprovat/Acord de Conferència Sectorial definitiu | G105: C17. | H105: C17.I03. | I105: C17. I03. Projectes R+D+i «Proves de Concepte» 2021. | J105: 286350 | L105: 214762.5 | M105: 71587.5 | R105: NO | AB105: Ministeri de Ciència i Innovació | AC105: 40000000 | AD105: 0.039759 | AF105: 13/03/2019: Bases reguladores (BOE 69 de 21/03/2019). 21/04/2021: Extracte de la convocatòria (BOE 100 de 27/04/2021). 23/11/2021: Resolució de concessió. Nº BDNS 556969.
A106: Universitat de les Illes Balears | B106: R+D+I | C106: Convocatòria de subvencions | E106: Aprovat/Acord de Conferència Sectorial definitiu | G106: C17. | H106: C17.I03. | I106: C17.I03. Projectes de R+D+i en línies estratègiques, en col·laboració públic-privada 2021. | J106: 190000 | M106: 190000 | R106: NO | AB106: Ministeri de Ciència i Innovació | AC106: 86000000 | AD106: 0.2140652 | AF106: 30/09/2013: Bases reguladores (BOE 236 de 2/10/2013). 19/04/2021: Resolució de convocatòria 2021. 19/04/2021: Extracte de la convocatòria (BOE 98 de 24/04/2021). Nº de BDNS. 01/12/2021: Resolució de concessió.
A107: Conselleria d'Educació i Universitats | B107: Educació | C107: Convocatòria de subvencions | E107: Aprovat/Acord de Conferència Sectorial definitiu | G107: C20. | H107: C20.I03. | I107: C20.I03. Projectes Innovació FP 2021. | J107: 165930 | L107: 103706.25 | M107: 62223.75 | R107: SI | U107: E06 | AB107: Ministeri d’Educació i Formació Professional | AC107: 24000016 | AD107: 0.03790088792 | AF107: 20/04/2005: Bases reguladores. 31/05/2021: Resolució de la convocatòria. 31/05/2021: Extracte de la convocatòria (BOE 136 de 8/06/2021). Nº de BDNS. 17/12/2021: Resolució de la Secretaria General de Formació Profesional, de concessió d’ajudes destinades a la realització de projectes d’innovació i investigació aplicades i transferència del coneixement a la FP. | AG107: IES ALGARB IES POLITÊCNIC IES JUNÍPER SERRA | AH107: Ajuts que sol·liciten i reben directament els centres educatius sense passar per la CAIB (confirmat per Mª del Pilar Jiménez Cortés. Cap` del Servei de Gestió de Fons Europeus).
A108: Universitat de les Illes Balears | B108: R+D+I | C108: Convocatòria de subvencions | E108: Aprovat/Acord de Conferència Sectorial definitiu | G108: C17. | H108: C17.I03. | I108: C17.I03. Ajudes corresponents a la convocatòria 2021 de projectes estratègics orientats a la transició ecològica i digital del Pla estatal de recerca científica, tècnica i d'innovació 2021 – 2023. | J108: 2404190 | M108: =94133.25+91494+15659.55+43518.3+87388.5+14134.65+56773.2+196242.9+52785+89265.3+93840+24398.4+58298.1+98532+38122.5+108502+35248.65+17595+10205.1 -> 1226136.4 | N108: 1178053.6 | R108: NO | AB108: Ministeri de Ciència i Innovació | AC108: 288690590.4 | AD108: 0.01597247561 | AF108: 03/12/2021: Bases reguladores Ordre CIN/1360/2021(BOE 291 de 6/12/2021). 03/12/2021: Extracte de la convocatòria (BOE 293 de 8/12/2021). 19/12/2022: Resolució de concessió.. Nº BDNS 598843.
A109: IDISBA | B109: R+D+I | C109: Convocatòria de subvencions | E109: Aprovat/Acord de Conferència Sectorial definitiu | G109: C17. | H109: C17.I03. | I109: C17.I03. Ajudes corresponents a la convocatòria 2022 de projectes de "prova de concepte", en el marc del programa estatal per a impulsar la recerca científica-tècnica i la seva transferència, del Pla estatal de recerca científica i tècnica i d'innovació 2021-2023. | J109: 149500 | M109: 112125 | N109: 37375 | R109: SI | AB109: Ministeri de Ciència i Innovació | AC109: 40000000 | AD109: 0.00755465 | AF109: 04/05/2022: Bases reguladores (BOE 113 de 12/05/2022). 04/05/2022: Extracte (BOE 114 de 13/05/2022). 21/12/2022: Resolució de concessió. Nº BDNS 625205.
A110: Universitat de les Illes Balears | B110: R+D+I | C110: Convocatòria de subvencions | E110: Aprovat/Acord de Conferència Sectorial definitiu | G110: C17. | H110: C17.I03. | I110: C17.I03. Ajudes corresponents a la convocatòria 2022 de projectes de "prova de concepte", en el marc del programa estatal per a impulsar la recerca científica-tècnica i la seva transferència, del Pla estatal de recerca científica i tècnica i d'innovació 2021-2023. | J110: 148350 | M110: 111262.5 | N110: 37087.5 | R110: NO | AB110: Ministeri de Ciència i Innovació | AC110: 40000000 | AD110: 0.014414397 | AF110: 04/05/2022: Bases reguladores (BOE 113 de 12/05/2022). 04/05/2022: Extracte (BOE 114 de 13/05/2022). 21/12/2022: Resolució de concessió. Nº BDNS 625205.
A111: Universitat de les Illes Balears | B111: R+D+I | C111: Convocatòria de subvencions | E111: Aprovat/Acord de Conferència Sectorial definitiu | G111: C17. | H111: C17.I03. | I111: C17.I03. Ajudes a projectes de col·laboració públic-privada (ajudes per a activitats no econòmiques d'organismes de recerca + ajudes subjectes a RCEC) | J111: 192373 | M111: 89780.48 | N111: 89780.48 | O111: 12812.04 | R111: NO | AB111: Ministeri de Ciència i Innovació | AC111: 240100000 | AD111: 0.01602777778 | AF111: 27/12/2021: Bases reguladores (BOE 314 de 31/12/2021). 27/12/2021: Extracte (BOE 3 de 4/01/2022). Nº BDNS 602450 | AG111: UIB + CENTER FOR INTELLIGENT RESEARCH IN CRYSTAL ENGINEERING SL + LAMINAR PHARMACEUTICALS SA
A112: Universitat de les Illes Balears | B112: Educació | C112: Convocatòria de subvencions | E112: Aprovat/Acord de Conferència Sectorial definitiu | G112: C21. | H112: C21.I05. | I112: C21.I05. Ajudes a universitat públiques per a la modernització i digitalització del sistema universitari espanyol 2021. | J112: 925788.9 | L112: 791468.2 | M112: 134320.7 | R112: NO | AB112: Ministeri d’Educació i Formació Professional | AC112: 76850000 | AD112: 0.02658926
A113: Universitat de les Illes Balears | B113: Educació | C113: Convocatòria de subvencions | E113: Aprovat/Acord de Conferència Sectorial definitiu | G113: C21. | H113: C21.I04. | I113: C21.I04. Ajudes per la qualificació del sistema universitari espanyol 2021-2023. | J113: 3629151 | L113: 1209717 | M113: 1209717 | N113: 1209717 | R113: NO | AB113: Ministeri d’Educació i Formació Professional | AC113: 361560000 | AD113: 0.0752
A114: Universitat de les Illes Balears | B114: R+D+I | C114: Convocatòria de subvencions | E114: Aprovat/Acord de Conferència Sectorial definitiu | G114: C17. | H114: C17.I03. | I114: C17.I03. Accions de Dinamització «Europa Recerca» 2020. | J114: 9000 | K114: 2700 | L114: 6300 | R114: NO | AB114: Ministeri de Ciència i Innovació | AC114: 3000000 | AD114: 0.0778 | AF114: 13/03/2019: Bases reguladores. Publicat al (BOE 69 de data 21.03.2019). 30/10/2020: Resolució de concessió. Nº BDNS 506190.
A115: IDISBA | B115: R+D+I | C115: Convocatòria de subvencions | E115: Aprovat/Acord de Conferència Sectorial definitiu | G115: C17. | H115: C17.I06. | I115: C17.I06. ISCIII-Medicina de precisió. | J115: 115907 | L115: 115907 | R115: SI | AB115: Ministeri de Ciència i Innovació | AC115: 29500000 | AD115: 0.01510766 | AF115: 22/03/2021: Bases reguladores (BOE 75 de 28/03/2021). 16/12/2021: Anexo 1 a la Resolución de la Dirección del Instituto de Salud Carlos III, O.A., M.P., por la que se conceden subvenciones para Proyectos de Investigación de Medicina Personalizada de Precisión de la Acción Estratégica en Salud 2017-2020, con cargo a los fondos europeos del Plan de Recuperación, Transformación y Resiliencia. Nº BDNS 574666. 02/10/2023: Aprobació de l’Addenda espanyola per la Comissió Europea. Modficació del termini d’execució per a l’objectiu CID 267: T1 del 2024. | AI115: 2024-03-31 | AJ115: Objectiu CID 267: Publicació en el DO d'almenys 436.185.000 EUR concedits: * 174.000.000€ en projectes destinats a reforçar les capacitats estratègiques i la internacionalització del Sistema Nacional de Salut, entre els quals s'inclouen: - 80.000.000€: Acció Estratègica en matèria de Salut - 75.000.000€: en subvencions per a augmentar les capacitats científiques dels centres de recerca associats al sistema nacional de salut (SNS) i subvencions per a propostes relacionades amb el finançament de projectes científics i de desenvolupament de la salut. equips tècnics, inclosa la renovació d'equips cientificotècnics en fase d'obsolescència, - 6.000.000€: subvencions al Segell d'Excel·lència Institut de Salut Carles III; - 13.000.000€: subvencions per a la col·laboració públic-privada per a la incorporació de l'entorn GMP/*GLP en els grups de recerca del SNS, és a dir, ajudes per a la internacionalització del SNS. * 140.500.000€: projectes relacionats amb l'Estratègia de Medicina Personalitzada, incloent: - 29.500.000€: convocatòria general de Medicina Personalitzada - 91.500.000€: convocatòria de programes específics de Medicina Personalitzada - 15.000.000€: convocatòria per al Pla de Teràpies Personalitzades i Avançades - 4.500.000€: convocatòria per a la internacionalització espanyola de Medicina Personalitzada. I almenys 1 contribució de 36.685.000€ a un vehicle d'inversió públic-privat en teràpies avançades. * 85.000.000€ en accions del PERTE per a la sanitat d'avantguarda: i.) Convocatòria de missions conjuntes del Ministeri de Sanitat i del Ministeri de Ciència i Innovació en Malalties Rares. ii.) Convocatòria de missions conjuntes del Ministeri de Sanitat i del Ministeri de Ciència i Innovació en la implantació de la medicina de precisió. Iii.) Convocatòria per a invertir en capacitació, infraestructura millorada, disseny i equipament per a les capacitats de recerca de les Unitats de Recerca Clínica Orientades al Pacient. | AK115: 2024-03-31
A116: IDISBA | B116: R+D+I | C116: Convocatòria de subvencions | E116: Aprovat/Acord de Conferència Sectorial definitiu | G116: C17. | H116: C17.I06. | I116: C17.I06. ISCIII- Xarxa de recerca en cronicitat, atenció primària i promoció de la salut (RICAPPS). | J116: 287248.5 | L116: 287248.5 | R116: SI | AB116: Ministeri de Ciència i Innovació | AC116: 134.453.674.46 | AD116: 0.02468963636 | AF116: 22/03/2019: Bases reguladores (BOE 75 de 28/03/2019). 31/12/2020: Extracte de la convocatòria (BOE 341 de 31/12/2020). 22/06/2021: Modificació de la convocatòria (la subvenció passa a estar finançada per fons MRR). 22/06/2021: Extracte de la modificació de la convocatòria (BOE 154 de 29/06/2021). Nº BDNS 541699. 16/12/2021: Annex 1 de Resolució de concessió. 02/10/2023: Aprobació de l’Addenda espanyola per la Comissió Europea. Modficació del termini d’execució per a l’objectiu CID 267: T1 del 2024. | AI116: 2024-03-31 | AJ116: Objectiu CID 267: Publicació en el DO d'almenys 436.185.000 EUR concedits: * 174.000.000€ en projectes destinats a reforçar les capacitats estratègiques i la internacionalització del Sistema Nacional de Salut, entre els quals s'inclouen: - 80.000.000€: Acció Estratègica en matèria de Salut - 75.000.000€: en subvencions per a augmentar les capacitats científiques dels centres de recerca associats al sistema nacional de salut (SNS) i subvencions per a propostes relacionades amb el finançament de projectes científics i de desenvolupament de la salut. equips tècnics, inclosa la renovació d'equips cientificotècnics en fase d'obsolescència, - 6.000.000€: subvencions al Segell d'Excel·lència Institut de Salut Carles III; - 13.000.000€: subvencions per a la col·laboració públic-privada per a la incorporació de l'entorn GMP/*GLP en els grups de recerca del SNS, és a dir, ajudes per a la internacionalització del SNS. * 140.500.000€: projectes relacionats amb l'Estratègia de Medicina Personalitzada, incloent: - 29.500.000€: convocatòria general de Medicina Personalitzada - 91.500.000€: convocatòria de programes específics de Medicina Personalitzada - 15.000.000€: convocatòria per al Pla de Teràpies Personalitzades i Avançades - 4.500.000€: convocatòria per a la internacionalització espanyola de Medicina Personalitzada. I almenys 1 contribució de 36.685.000€ a un vehicle d'inversió públic-privat en teràpies avançades. * 85.000.000€ en accions del PERTE per a la sanitat d'avantguarda: i.) Convocatòria de missions conjuntes del Ministeri de Sanitat i del Ministeri de Ciència i Innovació en Malalties Rares. ii.) Convocatòria de missions conjuntes del Ministeri de Sanitat i del Ministeri de Ciència i Innovació en la implantació de la medicina de precisió. Iii.) Convocatòria per a invertir en capacitació, infraestructura millorada, disseny i equipament per a les capacitats de recerca de les Unitats de Recerca Clínica Orientades al Pacient. | AK116: 2024-03-31
A117: IDISBA | B117: R+D+I | C117: Convocatòria de subvencions | E117: Aprovat/Acord de Conferència Sectorial definitiu | G117: C17. | H117: C17.I06. | I117: C17.I06. ISCIII-RICORS-ICTUS. | J117: 138274.4 | L117: 138274.4 | R117: SI | AB117: Ministeri de Ciència i Innovació | AC117: 134.453.674.46 | AD117: 0.02461 | AF117: 22/03/2019: Bases reguladores (BOE 75 de 28/03/2019). 31/12/2020: Extracte de la convocatòria (BOE 341 de 31/12/2020). 22/06/2021: Modificació de la convocatòria (la subvenció passa a estar finançada per fons MRR). 22/06/2021: Extracte de la modificació de la convocatòria (BOE 154 de 29/06/2021). Nº BDNS 541699. 16/12/2021: Annex 1 de Resolució de concessió. 02/10/2023: Aprobació de l’Addenda espanyola per la Comissió Europea. Modficació del termini d’execució per a l’objectiu CID 267: T1 del 2024. | AI117: 2024-03-31 | AJ117: Objectiu CID 267: Publicació en el DO d'almenys 436.185.000 EUR concedits: * 174.000.000€ en projectes destinats a reforçar les capacitats estratègiques i la internacionalització del Sistema Nacional de Salut, entre els quals s'inclouen: - 80.000.000€: Acció Estratègica en matèria de Salut - 75.000.000€: en subvencions per a augmentar les capacitats científiques dels centres de recerca associats al sistema nacional de salut (SNS) i subvencions per a propostes relacionades amb el finançament de projectes científics i de desenvolupament de la salut. equips tècnics, inclosa la renovació d'equips cientificotècnics en fase d'obsolescència, - 6.000.000€: subvencions al Segell d'Excel·lència Institut de Salut Carles III; - 13.000.000€: subvencions per a la col·laboració públic-privada per a la incorporació de l'entorn GMP/*GLP en els grups de recerca del SNS, és a dir, ajudes per a la internacionalització del SNS. * 140.500.000€: projectes relacionats amb l'Estratègia de Medicina Personalitzada, incloent: - 29.500.000€: convocatòria general de Medicina Personalitzada - 91.500.000€: convocatòria de programes específics de Medicina Personalitzada - 15.000.000€: convocatòria per al Pla de Teràpies Personalitzades i Avançades - 4.500.000€: convocatòria per a la internacionalització espanyola de Medicina Personalitzada. I almenys 1 contribució de 36.685.000€ a un vehicle d'inversió públic-privat en teràpies avançades. * 85.000.000€ en accions del PERTE per a la sanitat d'avantguarda: i.) Convocatòria de missions conjuntes del Ministeri de Sanitat i del Ministeri de Ciència i Innovació en Malalties Rares. ii.) Convocatòria de missions conjuntes del Ministeri de Sanitat i del Ministeri de Ciència i Innovació en la implantació de la medicina de precisió. Iii.) Convocatòria per a invertir en capacitació, infraestructura millorada, disseny i equipament per a les capacitats de recerca de les Unitats de Recerca Clínica Orientades al Pacient. | AK117: 2024-03-31
A118: IDISBA | B118: R+D+I | C118: Convocatòria de subvencions | E118: Aprovat/Acord de Conferència Sectorial definitiu | G118: C17. | H118: C17.I06. | I118: C17.I06. Biobancs i biomodels. | J118: 169950 | L118: 169950 | R118: SI | AB118: Ministeri de Ciència i Innovació | AC118: 27440000 | AD118: 0.02461 | AF118: Nº de BDNS 519347 22/03/2019: Bases reguladores (BOE 75 de 28.03.2019). 06/08/2020: Convocatòria de subvencions. 12/07/2021: Resolució convocatoria subvencions Fons MRR. 06/08/2020: Extracte resolució convocatòria (BOE 217 de 12.08.2020). 02/10/2023: Aprobació de l’Addenda espanyola per la Comissió Europea. Modficació del termini d’execució per a l’objectiu CID 267: T1 del 2024. | AI118: 2024-03-31 | AJ118: Objectiu CID 267: Publicació en el DO d'almenys 436.185.000 EUR concedits: * 174.000.000€ en projectes destinats a reforçar les capacitats estratègiques i la internacionalització del Sistema Nacional de Salut, entre els quals s'inclouen: - 80.000.000€: Acció Estratègica en matèria de Salut - 75.000.000€: en subvencions per a augmentar les capacitats científiques dels centres de recerca associats al sistema nacional de salut (SNS) i subvencions per a propostes relacionades amb el finançament de projectes científics i de desenvolupament de la salut. equips tècnics, inclosa la renovació d'equips cientificotècnics en fase d'obsolescència, - 6.000.000€: subvencions al Segell d'Excel·lència Institut de Salut Carles III; - 13.000.000€: subvencions per a la col·laboració públic-privada per a la incorporació de l'entorn GMP/*GLP en els grups de recerca del SNS, és a dir, ajudes per a la internacionalització del SNS. * 140.500.000€: projectes relacionats amb l'Estratègia de Medicina Personalitzada, incloent: - 29.500.000€: convocatòria general de Medicina Personalitzada - 91.500.000€: convocatòria de programes específics de Medicina Personalitzada - 15.000.000€: convocatòria per al Pla de Teràpies Personalitzades i Avançades - 4.500.000€: convocatòria per a la internacionalització espanyola de Medicina Personalitzada. I almenys 1 contribució de 36.685.000€ a un vehicle d'inversió públic-privat en teràpies avançades. * 85.000.000€ en accions del PERTE per a la sanitat d'avantguarda: i.) Convocatòria de missions conjuntes del Ministeri de Sanitat i del Ministeri de Ciència i Innovació en Malalties Rares. ii.) Convocatòria de missions conjuntes del Ministeri de Sanitat i del Ministeri de Ciència i Innovació en la implantació de la medicina de precisió. Iii.) Convocatòria per a invertir en capacitació, infraestructura millorada, disseny i equipament per a les capacitats de recerca de les Unitats de Recerca Clínica Orientades al Pacient. | AK118: 2024-03-31
A119: IDISBA | B119: R+D+I | C119: Convocatòria de subvencions | E119: Aprovat/Acord de Conferència Sectorial definitiu | G119: C17. | H119: C17.I06. | I119: C17.I06. Suport per a la recerca clínica. | J119: 266211 | L119: 266211 | R119: SI | AB119: Ministeri de Ciència i Innovació | AC119: 27440000 | AD119: 0.02469 | AF119: Nº de BDNS 519347 22/03/2019: Bases reguladores (BOE 75 de 28.03.2019). 06/08/2020: Convocatòria de subvencions. 12/07/2021: Resolució convocatoria subvencions Fons MRR. 06/08/2020: Extracte resolució convocatòria (BOE 217 de 12.08.2020). 02/10/2023: Aprobació de l’Addenda espanyola per la Comissió Europea. Modficació del termini d’execució per a l’objectiu CID 267: T1 del 2024. | AI119: 2024-03-31 | AJ119: Objectiu CID 267: Publicació en el DO d'almenys 436.185.000 EUR concedits: * 174.000.000€ en projectes destinats a reforçar les capacitats estratègiques i la internacionalització del Sistema Nacional de Salut, entre els quals s'inclouen: - 80.000.000€: Acció Estratègica en matèria de Salut - 75.000.000€: en subvencions per a augmentar les capacitats científiques dels centres de recerca associats al sistema nacional de salut (SNS) i subvencions per a propostes relacionades amb el finançament de projectes científics i de desenvolupament de la salut. equips tècnics, inclosa la renovació d'equips cientificotècnics en fase d'obsolescència, - 6.000.000€: subvencions al Segell d'Excel·lència Institut de Salut Carles III; - 13.000.000€: subvencions per a la col·laboració públic-privada per a la incorporació de l'entorn GMP/*GLP en els grups de recerca del SNS, és a dir, ajudes per a la internacionalització del SNS. * 140.500.000€: projectes relacionats amb l'Estratègia de Medicina Personalitzada, incloent: - 29.500.000€: convocatòria general de Medicina Personalitzada - 91.500.000€: convocatòria de programes específics de Medicina Personalitzada - 15.000.000€: convocatòria per al Pla de Teràpies Personalitzades i Avançades - 4.500.000€: convocatòria per a la internacionalització espanyola de Medicina Personalitzada. I almenys 1 contribució de 36.685.000€ a un vehicle d'inversió públic-privat en teràpies avançades. * 85.000.000€ en accions del PERTE per a la sanitat d'avantguarda: i.) Convocatòria de missions conjuntes del Ministeri de Sanitat i del Ministeri de Ciència i Innovació en Malalties Rares. ii.) Convocatòria de missions conjuntes del Ministeri de Sanitat i del Ministeri de Ciència i Innovació en la implantació de la medicina de precisió. Iii.) Convocatòria per a invertir en capacitació, infraestructura millorada, disseny i equipament per a les capacitats de recerca de les Unitats de Recerca Clínica Orientades al Pacient. | AK119: 2024-03-31
